{"text_format":"1","workbook":"xlsx","n_sheets":1,"sheets":["2025"],"not_rendered":{"charts":0,"images":0,"macros":0,"external_links":0,"defined_names":1,"comments":0,"pivot_tables":0},"unopened":[],"bounds":{"document_bytes":16777216,"sheet_cells":100000,"rows_first":2000,"rows_last":500,"rows_between":2000,"halvings":0,"cell_chars":16384,"cell_head_chars":4096},"cells_cut":0,"cells_raw":0,"read":"whole","date_system":"1900"}

{"sheet":"2025","index":0,"n_rows":1797,"n_cols":18,"rows_kept":1797,"cut":false,"hidden":false,"merged":[[10,14,10,15],[7,6,7,13],[10,6,10,13],[3,0,3,3]]}
["TRVALKY ŘÍZKOVANÉ - mladé rostliny na multiplatech - 2025"]
["objednávkový formulář - kupní smlouva mezi"]
["odběratel"]
[]
["IČ/DIČ"]
["dodavatel"]
["VITROFLORA z.o.o. 86-022 Dobrzc Poland, zastoupená THOOLEN s.r.o. Rakovník"]
[]
["ceny jsou uváděny vč. licencí a dopravy do vaší firmy",null,null,null,null,"týden dodání",12,16,18,20,22,24,32,34,null,null,{"$f":"SUM(Q13:Q2639)","v":0},{"$f":"SUM(R13:R2639)","v":0}]
["TC - tkáňový řízek , RC - klasický řízek",null,null,null,null,"celkem plat",{"$f":"SUM(G13:G2053)","v":0},{"$f":"SUM(H13:H2053)","v":0},{"$f":"SUM(I13:I2053)","v":0},{"$f":"SUM(J13:J2053)","v":0},{"$f":"SUM(K13:K2053)","v":0},{"$f":"SUM(L13:L2053)","v":0},{"$f":"SUM(M13:M2053)","v":0},{"$f":"SUM(N13:N2053)","v":0},{"$f":"SUM(G10:N10)","v":0}]
[null,null,null,null,null,null,"expedice",null,null,null,null,null,null,null,"CENA"]
["code","plato","kultivar",null,null,"etikety","19.3","16.4","30.4","14.5","28.5","11.6","6.8","20.8","rostlina","plato","za objed.","s DPH"]
[73329,100,"Acaena inermis","Kupferteppich","RC","✓",null,null,null,null,null,null,null,null,10.63,1063.1300000000001,{"$f":"P13*(G13+H13+I13+J13+K13+L13+M13+N13)","v":0},{"$f":"Q13*1.12","v":0}]
[73330,100,"Acaena inermis","Purpurea","RC",null,null,null,null,null,null,null,null,null,10.63,1063.1300000000001,{"$f":"P14*(G14+H14+I14+J14+K14+L14+M14+N14)","v":0},{"$f":"Q14*1.12","v":0}]
[73328,100,"Acaena microphylla","Acaena microphylla","RC",null,null,null,null,null,null,null,null,null,10.63,1063.1300000000001,0,0]
[79317,28,"Acanthus hybrida","Whitewater","TC","✓",null,null,null,null,null,null,null,null,70.92,1985.72,0,0]
[79317,84,"Acanthus hybrida","Whitewater","TC","✓",null,null,null,null,null,null,null,null,52.33,4395.47,0,0]
[79992,84,"Acanthus mollis","Tasmanian Angel™","TC",null,null,null,null,null,null,null,null,null,44.41,3730.37,0,0]
[74301,84,"Acorus gramineus","Argenteostriatus","RC",null,null,null,null,null,null,null,null,null,13.77,1156.76,0,0]
[74302,84,"Acorus gramineus","Golden Delight","RC",null,null,null,null,null,null,null,null,null,13.77,1156.76,0,0]
[74306,84,"Acorus gramineus","Hakuro Nishiki","RC",null,null,null,null,null,null,null,null,null,13.77,1156.76,0,0]
[74304,84,"Acorus gramineus","Ogon","RC","✓",null,null,null,null,null,null,null,null,13.77,1156.76,0,0]
[74305,84,"Acorus gramineus","Pusillus","RC",null,null,null,null,null,null,null,null,null,13.77,1156.76,0,0]
[70758,84,"Actaea pachypoda","Misty Blue","TC",null,null,null,null,null,null,null,null,null,42.69,3585.79,0,0]
[79414,28,"Actaea simplex","Black Negligee","TC","✓",null,null,null,null,null,null,null,null,60.59,1696.55,0,0]
[79414,84,"Actaea simplex","Black Negligee","TC","✓",null,null,null,null,null,null,null,null,44.75,3759.29,0,0]
[74472,84,"Actaea simplex","Carbonella","TC",null,null,null,null,null,null,null,null,null,42.69,3585.79,0,0]
[70763,28,"Actaea simplex","Pink Spike","TC","✓",null,null,null,null,null,null,null,null,53.02,1484.49,0,0]
[70763,84,"Actaea simplex","Pink Spike","TC","✓",null,null,null,null,null,null,null,null,37.520000000000003,3152.03,0,0]
[73331,100,"Aethionema armenum","Warley Rose","RC","✓",null,null,null,null,null,null,null,null,13.04,1304.0999999999999,0,0]
[78402,100,"Agastache hybrida","Beelicious® Pink","RC",null,null,null,null,null,null,null,null,null,19.579999999999998,1958.18,0,0]
[74408,100,"Agastache hybrida","Beelicious® Purple","RC","✓",null,null,null,null,null,null,null,null,19.579999999999998,1958.18,0,0]
[70739,100,"Agastache hybrida","Black Adder","RC","✓",null,null,null,null,null,null,null,null,14.07,1407.38,0,0]
[70729,100,"Agastache hybrida","Blue Boa","RC","✓",null,null,null,null,null,null,null,null,17.52,1751.63,0,0]
[70764,100,"Agastache hybrida","Blue Fortune","RC","✓",null,null,null,null,null,null,null,null,12.7,1269.68,0,0]
[70766,100,"Agastache hybrida","Danish Delight","RC",null,null,null,null,null,null,null,null,null,19.239999999999998,1923.75,0,0]
[74418,100,"Agastache hybrida","Kudos Coral","RC","✓",null,null,null,null,null,null,null,null,16.829999999999998,1682.78,0,0]
[74419,100,"Agastache hybrida","Kudos Mandarin","RC","✓",null,null,null,null,null,null,null,null,16.829999999999998,1682.78,0,0]
[75427,100,"Agastache hybrida","Kudos Red","RC","✓",null,null,null,null,null,null,null,null,16.829999999999998,1682.78,0,0]
[74455,100,"Agastache hybrida","Kudos Yellow","RC","✓",null,null,null,null,null,null,null,null,16.829999999999998,1682.78,0,0]
[74411,100,"Agastache hybrida","Mango Tango","RC",null,null,null,null,null,null,null,null,null,16.829999999999998,1682.78,0,0]
[75402,100,"Agastache hybrida","Morello","RC","✓",null,null,null,null,null,null,null,null,16.829999999999998,1682.78,0,0]
[75402,40,"Agastache hybrida","Morello","RC","✓",null,null,null,null,null,null,null,null,30.19,1207.71,0,0]
[74412,100,"Agastache hybrida","Purple Haze","RC",null,null,null,null,null,null,null,null,null,12.7,1269.68,0,0]
[74414,100,"Agastache hybrida","Rosie Posie","RC",null,null,null,null,null,null,null,null,null,15.45,1545.08,0,0]
[70791,100,"Agastache mexicana","Red Fortune","RC",null,null,null,null,null,null,null,null,null,16.14,1613.93,0,0]
[74407,100,"Agastache rugosa","Alabaster","RC",null,null,null,null,null,null,null,null,null,12.7,1269.68,0,0]
[74406,100,"Agastache rugosa","Crazy Fortune","RC",null,null,null,null,null,null,null,null,null,19.579999999999998,1958.18,0,0]
[74409,100,"Agastache rugosa","Fleur","RC",null,null,null,null,null,null,null,null,null,12.7,1269.68,0,0]
[74410,100,"Agastache rugosa","Little Adder","RC",null,null,null,null,null,null,null,null,null,17.52,1751.63,0,0]
[78403,100,"Agastache rugosa","Spicey","RC",null,null,null,null,null,null,null,null,null,12.7,1269.68,0,0]
[79017,100,"Achillea filipendulina","Coronation Gold","RC","✓",null,null,null,null,null,null,null,null,12.7,1269.68,0,0]
[79019,100,"Achillea hybrida","Little Moonshine","RC",null,null,null,null,null,null,null,null,null,17.52,1751.63,0,0]
[79010,100,"Achillea hybrida","Moonshine","RC","✓",null,null,null,null,null,null,null,null,13.73,1372.95,0,0]
[79024,100,"Achillea kellereri","Achillea kellereri","RC","✓",null,null,null,null,null,null,null,null,13.73,1372.95,0,0]
[79020,100,"Achillea lewisii","King Edward","RC",null,null,null,null,null,null,null,null,null,13.73,1372.95,0,0]
[75506,100,"Achillea millefolium","Alabaster","RC","✓",null,null,null,null,null,null,null,null,13.73,1372.95,0,0]
[79009,100,"Achillea millefolium","Appleblossom","RC",null,null,null,null,null,null,null,null,null,13.39,1338.53,0,0]
[79060,100,"Achillea millefolium","Cerise Queen","RC",null,null,null,null,null,null,null,null,null,13.73,1372.95,0,0]
[75492,100,"Achillea millefolium","Lachsschönheit","RC",null,null,null,null,null,null,null,null,null,13.39,1338.53,0,0]
[75491,100,"Achillea millefolium","Lilac Beauty","RC",null,null,null,null,null,null,null,null,null,13.39,1338.53,0,0]
[79011,100,"Achillea millefolium","Paprika","RC","✓",null,null,null,null,null,null,null,null,13.73,1372.95,0,0]
[75493,100,"Achillea millefolium","Pretty Belinda","RC",null,null,null,null,null,null,null,null,null,13.39,1338.53,0,0]
[79079,100,"Achillea millefolium","Safran","RC",null,null,null,null,null,null,null,null,null,13.39,1338.53,0,0]
[75496,100,"Achillea millefolium","Sassy Summer Lemon","RC",null,null,null,null,null,null,null,null,null,18.89,1889.33,0,0]
[75502,100,"Achillea millefolium","Sassy Summer Sangria","RC",null,null,null,null,null,null,null,null,null,18.89,1889.33,0,0]
[75497,100,"Achillea millefolium","Sassy Summer Sunset","RC",null,null,null,null,null,null,null,null,null,18.89,1889.33,0,0]
[75498,100,"Achillea millefolium","Sassy Summer Taffy","RC",null,null,null,null,null,null,null,null,null,18.89,1889.33,0,0]
[79022,100,"Achillea millefolium","Schneetaler","RC",null,null,null,null,null,null,null,null,null,13.39,1338.53,0,0]
[75488,100,"Achillea millefolium","Skysail Bright Pink","RC","✓",null,null,null,null,null,null,null,null,13.73,1372.95,0,0]
[75486,100,"Achillea millefolium","Skysail Fire","RC","✓",null,null,null,null,null,null,null,null,13.73,1372.95,0,0]
[75487,100,"Achillea millefolium","Skysail Yellow","RC","✓",null,null,null,null,null,null,null,null,13.73,1372.95,0,0]
[75503,100,"Achillea millefolium","Summerwine","RC","✓",null,null,null,null,null,null,null,null,13.73,1372.95,0,0]
[79013,100,"Achillea millefolium","Terracotta","RC",null,null,null,null,null,null,null,null,null,13.39,1338.53,0,0]
[75495,100,"Achillea millefolium","Walther Funcke","RC",null,null,null,null,null,null,null,null,null,13.39,1338.53,0,0]
[79023,100,"Achillea ptarmica","Nana Compacta","RC","✓",null,null,null,null,null,null,null,null,13.39,1338.53,0,0]
[70759,100,"Ajuga reptans","Ajuga reptans","RC",null,null,null,null,null,null,null,null,null,11.66,1166.4000000000001,0,0]
[70740,100,"Ajuga reptans","Alba","RC",null,null,null,null,null,null,null,null,null,11.66,1166.4000000000001,{"$f":"P78*(G78+H78+I78+J78+K78+L78+M78+N78)","v":0},{"$f":"Q78*1.12","v":0}]
[75411,100,"Ajuga reptans","Atropurpurea","RC",null,null,null,null,null,null,null,null,null,11.66,1166.4000000000001,0,0]
[70741,100,"Ajuga reptans","Black Scallop","RC","✓",null,null,null,null,null,null,null,null,14.76,1476.23,0,0]
[72801,100,"Ajuga reptans","Braun Hertz","RC",null,null,null,null,null,null,null,null,null,11.66,1166.4000000000001,0,0]
[72802,100,"Ajuga reptans","Burgundy Glow","RC","✓",null,null,null,null,null,null,null,null,11.66,1166.4000000000001,0,0]
[72803,100,"Ajuga reptans","Catlin's Giant","RC",null,null,null,null,null,null,null,null,null,11.66,1166.4000000000001,0,0]
[74483,100,"Ajuga reptans","Gold Chang","RC","✓",null,null,null,null,null,null,null,null,15.8,1579.5,0,0]
[72804,100,"Ajuga reptans","Mahogany","RC","✓",null,null,null,null,null,null,null,null,11.66,1166.4000000000001,0,0]
[70744,100,"Ajuga reptans","Rosea","RC",null,null,null,null,null,null,null,null,null,11.66,1166.4000000000001,0,0]
[72808,100,"Ajuga reptans","Variegata","RC",null,null,null,null,null,null,null,null,null,11.66,1166.4000000000001,0,0]
[70742,100,"Ajuga tenorii","Chocolate Chip","RC","✓",null,null,null,null,null,null,null,null,11.66,1166.4000000000001,0,0]
[75426,100,"Ajuga tenorii","Princess Nadia","RC","✓",null,null,null,null,null,null,null,null,15.11,1510.65,0,0]
[70108,100,"Alchemilla mollis","Auslese","RC","✓",null,null,null,null,null,null,null,null,10.63,1063.1300000000001,0,0]
[73280,40,"Allium hybrida","Lavender Bubbles","RC","✓",null,null,null,null,null,null,null,null,42.24,1689.66,0,0]
[75293,100,"Allium hybrida","Millenium","RC","✓",null,null,null,null,null,null,null,null,19.93,1992.6,0,0]
[75293,40,"Allium hybrida","Millenium","RC","✓",null,null,null,null,null,null,null,null,37.08,1483.11,0,0]
[73279,40,"Allium hybrida","Serendipity","RC","✓",null,null,null,null,null,null,null,null,42.24,1689.66,0,0]
[77904,100,"Alyssum wulfenianum","Golden Spring","RC","✓",null,null,null,null,null,null,null,null,16.14,1613.93,0,0]
[77302,100,"Amsonia hybrida","Blue Ice","RC",null,null,null,null,null,null,null,null,null,12.01,1200.83,0,0]
[77308,100,"Anaphalis triplinervis","Anaphalis triplinervis","RC",null,null,null,null,null,null,null,null,null,12.35,1235.25,0,0]
[77303,100,"Anaphalis triplinervis","Silberregen","RC",null,null,null,null,null,null,null,null,null,12.35,1235.25,0,0]
[77304,100,"Anaphalis triplinervis","Silver Wave","RC",null,null,null,null,null,null,null,null,null,12.35,1235.25,0,0]
[77305,100,"Anaphalis triplinervis","Sommerschnee","RC","✓",null,null,null,null,null,null,null,null,12.35,1235.25,0,0]
[73210,100,"Anemone","Andrea Atkinson","RC","✓",null,null,null,null,null,null,null,null,11.32,1131.98,0,0]
[73210,28,"Anemone","Andrea Atkinson","TC/RC","✓",null,null,null,null,null,null,null,null,44.41,1243.51,0,0]
[73210,84,"Anemone","Andrea Atkinson","TC/RC","✓",null,null,null,null,null,null,null,null,17.21,1445.93,0,0]
[73214,100,"Anemone","Anemone leveillei","RC",null,null,null,null,null,null,null,null,null,22.34,2233.58,0,0]
[73250,100,"Anemone","Bressingham Glow","RC","✓",null,null,null,null,null,null,null,null,11.32,1131.98,0,0]
[73250,28,"Anemone","Bressingham Glow","TC/RC","✓",null,null,null,null,null,null,null,null,44.41,1243.51,0,0]
[73250,84,"Anemone","Bressingham Glow","TC/RC","✓",null,null,null,null,null,null,null,null,17.21,1445.93,0,0]
[73277,28,"Anemone","Garden Breeze Pink Touch","TC/RC",null,null,null,null,null,null,null,null,null,50.61,1417.01,0,0]
[73277,84,"Anemone","Garden Breeze Pink Touch","TC/RC",null,null,null,null,null,null,null,null,null,23.41,1966.44,0,0]
[73273,28,"Anemone","Garden Breeze Rosy Red","TC/RC",null,null,null,null,null,null,null,null,null,50.61,1417.01,0,0]
[73273,84,"Anemone","Garden Breeze Rosy Red","TC/RC",null,null,null,null,null,null,null,null,null,23.41,1966.44,0,0]
[73266,28,"Anemone","Garden Breeze Whirlwind Pink","TC/RC","✓",null,null,null,null,null,null,null,null,50.61,1417.01,0,0]
[73266,84,"Anemone","Garden Breeze Whirlwind Pink","TC/RC","✓",null,null,null,null,null,null,null,null,23.41,1966.44,0,0]
[73256,100,"Anemone","Hadspen Abundance","RC",null,null,null,null,null,null,null,null,null,11.32,1131.98,0,0]
[73201,100,"Anemone","Honorine Jobert","RC","✓",null,null,null,null,null,null,null,null,11.32,1131.98,0,0]
[73201,28,"Anemone","Honorine Jobert","TC/RC","✓",null,null,null,null,null,null,null,null,44.41,1243.51,0,0]
[73201,84,"Anemone","Honorine Jobert","TC/RC","✓",null,null,null,null,null,null,null,null,17.21,1445.93,0,0]
[73206,100,"Anemone","Königin Charlotte","RC","✓",null,null,null,null,null,null,null,null,11.32,1131.98,0,0]
[73206,28,"Anemone","Königin Charlotte","TC/RC","✓",null,null,null,null,null,null,null,null,44.41,1243.51,0,0]
[73206,84,"Anemone","Königin Charlotte","TC/RC","✓",null,null,null,null,null,null,null,null,17.21,1445.93,0,0]
[73270,84,"Anemone","Little Breeze Candy","TC/RC",null,null,null,null,null,null,null,null,null,20.66,1735.1,0,0]
[73252,84,"Anemone","Little Breeze Kiss ","TC/RC","✓",null,null,null,null,null,null,null,null,20.66,1735.1,0,0]
[73251,84,"Anemone","Little Breeze Pink","TC/RC","✓",null,null,null,null,null,null,null,null,20.66,1735.1,0,0]
[73260,84,"Anemone","Little Breeze Sweet","TC/RC","✓",null,null,null,null,null,null,null,null,20.66,1735.1,0,0]
[73220,100,"Anemone","Lorelei","RC","✓",null,null,null,null,null,null,null,null,11.32,1131.98,0,0]
[73220,28,"Anemone","Lorelei","TC/RC","✓",null,null,null,null,null,null,null,null,44.41,1243.51,0,0]
[73220,84,"Anemone","Lorelei","TC/RC","✓",null,null,null,null,null,null,null,null,17.21,1445.93,0,0]
[73209,100,"Anemone","Margarete","RC","✓",null,null,null,null,null,null,null,null,11.32,1131.98,0,0]
[73209,28,"Anemone","Margarete","TC/RC","✓",null,null,null,null,null,null,null,null,44.41,1243.51,0,0]
[73209,84,"Anemone","Margarete","TC/RC","✓",null,null,null,null,null,null,null,null,17.21,1445.93,0,0]
[73222,100,"Anemone","Mont-Rose","RC","✓",null,null,null,null,null,null,null,null,11.32,1131.98,0,0]
[73222,28,"Anemone","Mont-Rose","TC/RC","✓",null,null,null,null,null,null,null,null,44.41,1243.51,0,0]
[73222,84,"Anemone","Mont-Rose","TC/RC","✓",null,null,null,null,null,null,null,null,17.21,1445.93,0,0]
[73202,100,"Anemone","Pamina","RC","✓",null,null,null,null,null,null,null,null,11.32,1131.98,0,0]
[73202,28,"Anemone","Pamina","TC/RC","✓",null,null,null,null,null,null,null,null,44.41,1243.51,0,0]
[73202,84,"Anemone","Pamina","TC/RC","✓",null,null,null,null,null,null,null,null,17.21,1445.93,0,0]
[73213,100,"Anemone","Praecox","RC","✓",null,null,null,null,null,null,null,null,11.32,1131.98,0,0]
[73213,28,"Anemone","Praecox","TC/RC","✓",null,null,null,null,null,null,null,null,44.41,1243.51,0,0]
[73213,84,"Anemone","Praecox","TC/RC","✓",null,null,null,null,null,null,null,null,17.21,1445.93,0,0]
[73234,84,"Anemone","Pretty Lady Emily","TC/RC","✓",null,null,null,null,null,null,null,null,24.79,2082.11,0,0]
[73237,28,"Anemone","Pretty Lady Maria","TC/RC","✓",null,null,null,null,null,null,null,null,51.98,1455.57,0,0]
[73237,84,"Anemone","Pretty Lady Maria","TC/RC","✓",null,null,null,null,null,null,null,null,24.79,2082.11,{"$f":"P142*(G142+H142+I142+J142+K142+L142+M142+N142)","v":0},{"$f":"Q142*1.12","v":0}]
[73203,100,"Anemone","Prinz Heinrich","RC","✓",null,null,null,null,null,null,null,null,11.32,1131.98,0,0]
[73203,28,"Anemone","Prinz Heinrich","TC/RC","✓",null,null,null,null,null,null,null,null,44.41,1243.51,0,0]
[73203,84,"Anemone","Prinz Heinrich","TC/RC","✓",null,null,null,null,null,null,null,null,17.21,1445.93,0,0]
[73223,100,"Anemone","Richard Ahrens","RC",null,null,null,null,null,null,null,null,null,11.32,1131.98,0,0]
[73223,84,"Anemone","Richard Ahrens","TC/RC",null,null,null,null,null,null,null,null,null,17.21,1445.93,0,0]
[73204,100,"Anemone","Robustissima","RC",null,null,null,null,null,null,null,null,null,11.32,1131.98,0,0]
[73259,100,"Anemone","Rosenschale","RC",null,null,null,null,null,null,null,null,null,11.32,1131.98,0,0]
[73259,84,"Anemone","Rosenschale","TC/RC",null,null,null,null,null,null,null,null,null,17.21,1445.93,0,0]
[73211,100,"Anemone","September Charm","RC","✓",null,null,null,null,null,null,null,null,11.32,1131.98,0,0]
[73211,28,"Anemone","September Charm","TC/RC","✓",null,null,null,null,null,null,null,null,44.41,1243.51,0,0]
[73211,84,"Anemone","September Charm","TC/RC","✓",null,null,null,null,null,null,null,null,17.21,1445.93,0,0]
[73205,100,"Anemone","Serenade","RC","✓",null,null,null,null,null,null,null,null,11.32,1131.98,0,0]
[73205,28,"Anemone","Serenade","TC/RC","✓",null,null,null,null,null,null,null,null,44.41,1243.51,0,0]
[73205,84,"Anemone","Serenade","TC/RC","✓",null,null,null,null,null,null,null,null,17.21,1445.93,0,0]
[73225,100,"Anemone","Splendens","RC","✓",null,null,null,null,null,null,null,null,11.32,1131.98,0,0]
[73225,28,"Anemone","Splendens","TC/RC","✓",null,null,null,null,null,null,null,null,44.41,1243.51,0,0]
[73225,84,"Anemone","Splendens","TC/RC","✓",null,null,null,null,null,null,null,null,17.21,1445.93,0,0]
[73267,28,"Anemone","Summer Breeze Baby Pink","TC/RC",null,null,null,null,null,null,null,null,null,50.61,1417.01,0,0]
[73267,84,"Anemone","Summer Breeze Baby Pink","TC/RC",null,null,null,null,null,null,null,null,null,24.79,2082.11,0,0]
[73262,28,"Anemone","Summer Breeze Bright Pink","TC/RC",null,null,null,null,null,null,null,null,null,50.61,1417.01,0,0]
[73262,84,"Anemone","Summer Breeze Bright Pink","TC/RC",null,null,null,null,null,null,null,null,null,24.79,2082.11,0,0]
[73272,28,"Anemone","Summer Breeze Picotee","TC/RC",null,null,null,null,null,null,null,null,null,50.61,1417.01,0,0]
[73272,84,"Anemone","Summer Breeze Picotee","TC/RC",null,null,null,null,null,null,null,null,null,24.79,2082.11,0,0]
[73268,28,"Anemone","Summer Breeze Snow","TC/RC","✓",null,null,null,null,null,null,null,null,50.61,1417.01,0,0]
[73268,84,"Anemone","Summer Breeze Snow","TC/RC","✓",null,null,null,null,null,null,null,null,24.79,2082.11,0,0]
[73261,28,"Anemone","Summer Breeze Vibrant Pink","TC/RC","✓",null,null,null,null,null,null,null,null,50.61,1417.01,0,0]
[73261,84,"Anemone","Summer Breeze Vibrant Pink","TC/RC","✓",null,null,null,null,null,null,null,null,24.79,2082.11,0,0]
[73212,100,"Anemone","Whirlwind","RC","✓",null,null,null,null,null,null,null,null,11.32,1131.98,0,0]
[73212,28,"Anemone","Whirlwind","TC/RC","✓",null,null,null,null,null,null,null,null,44.41,1243.51,0,0]
[73212,84,"Anemone","Whirlwind","TC/RC","✓",null,null,null,null,null,null,null,null,17.21,1445.93,0,0]
[79517,100,"Anchusa azurea","Loddon Royalist","RC",null,null,null,null,null,null,null,null,null,14.42,1441.8,0,0]
[73332,100,"Antennaria dioica","Alba","RC",null,null,null,null,null,null,null,null,null,11.66,1166.4000000000001,0,0]
[73366,100,"Antennaria dioica","Alex Duguid","RC","✓",null,null,null,null,null,null,null,null,11.66,1166.4000000000001,0,0]
[73335,100,"Anthemis hybrida","E.C. Buxton","RC",null,null,null,null,null,null,null,null,null,11.32,1131.98,0,0]
[73336,100,"Anthemis tinctoria","Sauce Hollandaise","RC","✓",null,null,null,null,null,null,null,null,11.32,1131.98,0,0]
[70124,100,"Arenaria montana","Mont Blanc","RC",null,null,null,null,null,null,null,null,null,11.32,1131.98,0,0]
[79809,100,"Armeria juniperifolia","New Zealand Form","RC","✓",null,null,null,null,null,null,null,null,12.7,1269.68,0,0]
[79815,100,"Armeria maritima","Nifty Thrifty","RC",null,null,null,null,null,null,null,null,null,12.01,1200.83,0,0]
[73325,100,"Artemisia arborescens","Powis Castle","RC",null,null,null,null,null,null,null,null,null,12.35,1235.25,0,0]
[73324,100,"Artemisia dracunculus","French Dragon","RC",null,null,null,null,null,null,null,null,null,12.7,1269.68,0,0]
[73364,100,"Artemisia ludoviciana","Silver Queen","RC",null,null,null,null,null,null,null,null,null,12.35,1235.25,0,0]
[73338,100,"Artemisia schmidtiana","Nana","RC",null,null,null,null,null,null,null,null,null,12.35,1235.25,0,0]
[73319,100,"Artemisia stelleriana","Silver Brocade","RC","✓",null,null,null,null,null,null,null,null,13.73,1372.95,0,0]
[79539,45,"Arundo donax","Ely","TC","✓",null,null,null,null,null,null,null,null,38.58,1736.13,0,0]
[73973,100,"Aster ageratoides","Adustus Nanus (Kalimeris inc. Nana Blue)","RC","✓",null,null,null,null,null,null,null,null,11.66,1166.4000000000001,0,0]
[73977,100,"Aster ageratoides","Ashvi","RC",null,null,null,null,null,null,null,null,null,11.66,1166.4000000000001,0,0]
[73978,100,"Aster ageratoides","Asmö","RC",null,null,null,null,null,null,null,null,null,11.66,1166.4000000000001,0,0]
[73979,100,"Aster ageratoides","Asran","RC","✓",null,null,null,null,null,null,null,null,11.66,1166.4000000000001,0,0]
[73956,100,"Aster ageratoides","Ezo Murazaki","RC",null,null,null,null,null,null,null,null,null,11.66,1166.4000000000001,0,0]
[73970,100,"Aster ageratoides","Stardust","RC",null,null,null,null,null,null,null,null,null,11.66,1166.4000000000001,0,0]
[73945,100,"Aster ageratoides","Starshine","RC","✓",null,null,null,null,null,null,null,null,17.170000000000002,1717.2,0,0]
[74025,100,"Aster cordifolius","Little Carlow","RC","✓",null,null,null,null,null,null,null,null,11.66,1166.4000000000001,0,0]
[73980,100,"Aster divaricatus","Aster divaricatus","RC","✓",null,null,null,null,null,null,null,null,13.39,1338.53,0,0]
[73955,100,"Aster divaricatus","Eastern Star","RC",null,null,null,null,null,null,null,null,null,13.39,1338.53,0,0]
[73976,100,"Aster dumosus","Anneke","RC",null,null,null,null,null,null,null,null,null,10.98,1097.55,0,0]
[73959,100,"Aster dumosus","Herbstgruss vom Bresserhof","RC",null,null,null,null,null,null,null,null,null,10.98,1097.55,0,0]
[73940,100,"Aster dumosus","Island Bahamas","RC","✓",null,null,null,null,null,null,null,null,13.04,1304.0999999999999,0,0]
[73942,100,"Aster dumosus","Island Samoa","RC","✓",null,null,null,null,null,null,null,null,13.04,1304.0999999999999,0,0]
[73943,100,"Aster dumosus","Island Tonga","RC","✓",null,null,null,null,null,null,null,null,13.04,1304.0999999999999,0,0]
[73962,100,"Aster dumosus","Jenny","RC","✓",null,null,null,null,null,null,null,null,10.98,1097.55,0,0]
[73906,100,"Aster dumosus","Lady in Blue","RC",null,null,null,null,null,null,null,null,null,10.98,1097.55,0,0]
[73908,100,"Aster dumosus","Peter Harrison","RC",null,null,null,null,null,null,null,null,null,10.98,1097.55,0,0]
[73911,100,"Aster dumosus","Prof. Anton Kippenberg","RC","✓",null,null,null,null,null,null,null,null,10.98,1097.55,0,0]
[73910,100,"Aster dumosus","Schneekissen","RC",null,null,null,null,null,null,null,null,null,10.98,1097.55,{"$f":"P206*(G206+H206+I206+J206+K206+L206+M206+N206)","v":0},{"$f":"Q206*1.12","v":0}]
[73966,100,"Aster ericoides","Monte Cassino","RC",null,null,null,null,null,null,null,null,null,10.98,1097.55,0,0]
[73998,100,"Aster ericoides","Pink Cloud","RC",null,null,null,null,null,null,null,null,null,10.98,1097.55,0,0]
[73999,100,"Aster ericoides","Schneetanne","RC",null,null,null,null,null,null,null,null,null,10.98,1097.55,0,0]
[73969,100,"Aster ericoides","Snowflurry","RC",null,null,null,null,null,null,null,null,null,10.98,1097.55,0,0]
[73965,100,"Aster frikartii","Mönch","RC","✓",null,null,null,null,null,null,null,null,13.39,1338.53,0,0]
[73988,100,"Aster hybrida","Treffpunkt","RC",null,null,null,null,null,null,null,null,null,12.7,1269.68,0,0]
[74029,100,"Aster hybrida","Wood's Pink","RC","✓",null,null,null,null,null,null,null,null,11.66,1166.4000000000001,0,0]
[73981,100,"Aster hybrida","Wood's Purple","RC",null,null,null,null,null,null,null,null,null,12.01,1200.83,0,0]
[73993,100,"Aster macrophyllus","Albus","RC",null,null,null,null,null,null,null,null,null,12.01,1200.83,0,0]
[73992,100,"Aster macrophyllus","Twilight","RC",null,null,null,null,null,null,null,null,null,12.01,1200.83,0,0]
[74028,100,"Aster novae-angliae","Andenken am Alma Pötschke","RC","✓",null,null,null,null,null,null,null,null,10.98,1097.55,0,0]
[73967,100,"Aster novae-angliae","Purple Dome","RC","✓",null,null,null,null,null,null,null,null,13.73,1372.95,0,0]
[74018,100,"Aster novi belgii","Neron","RC",null,null,null,null,null,null,null,null,null,12.01,1200.83,0,0]
[73974,100,"Aster novi-belgii","Crimson Brocade","RC",null,null,null,null,null,null,null,null,null,12.01,1200.83,0,0]
[73957,100,"Aster novi-belgii","Fellowship","RC",null,null,null,null,null,null,null,null,null,12.01,1200.83,0,0]
[73964,100,"Aster novi-belgii","Marie Ballard","RC",null,null,null,null,null,null,null,null,null,12.01,1200.83,0,0]
[73968,100,"Aster novi-belgii","Sarah Ballard","RC",null,null,null,null,null,null,null,null,null,12.01,1200.83,0,0]
[73971,100,"Aster novi-belgii","White Ladies","RC",null,null,null,null,null,null,null,null,null,12.01,1200.83,0,0]
[73972,100,"Aster novi-belgii","Winston Churchill","RC",null,null,null,null,null,null,null,null,null,12.01,1200.83,0,0]
[73994,100,"Aster oblongifolius","October Skies","RC","✓",null,null,null,null,null,null,null,null,12.01,1200.83,0,0]
[74017,100,"Aster tataricus","JIndai","RC",null,null,null,null,null,null,null,null,null,13.73,1372.95,0,0]
[73995,100,"Aster thomsonii","Aster thomsonii","RC",null,null,null,null,null,null,null,null,null,12.7,1269.68,0,0]
[79929,84,"Astrantia hybrida","Astra Red","TC",null,null,null,null,null,null,null,null,null,33.74,2833.95,0,0]
[79930,84,"Astrantia hybrida","Astra White","TC",null,null,null,null,null,null,null,null,null,33.74,2833.95,0,0]
[71602,84,"Astrantia major","Cerise Button","TC","✓",null,null,null,null,null,null,null,null,37.520000000000003,3152.03,0,0]
[71607,84,"Astrantia major","Pink Button","TC","✓",null,null,null,null,null,null,null,null,37.520000000000003,3152.03,0,0]
[71522,84,"Astrantia major","Roma®","TC","✓",null,null,null,null,null,null,null,null,39.25,3296.62,0,0]
[73502,100,"Aubrieta gracilis","Glacier Blue","RC",null,null,null,null,null,null,null,null,null,12.35,1235.25,0,0]
[73513,100,"Aubrieta gracilis","Rock on Blue","RC","✓",null,null,null,null,null,null,null,null,13.39,1338.53,0,0]
[73514,100,"Aubrieta gracilis","Rock on Pink","RC","✓",null,null,null,null,null,null,null,null,13.39,1338.53,0,0]
[73519,100,"Aubrieta gracilis","Rock on Purple","RC","✓",null,null,null,null,null,null,null,null,13.39,1338.53,0,0]
[73529,100,"Aubrieta hybrida","Axcent™ Burgundy","RC","✓",null,null,null,null,null,null,null,null,13.04,1304.0999999999999,0,0]
[73524,100,"Aubrieta hybrida","Axcent™ Deep Purple Impr.","RC",null,null,null,null,null,null,null,null,null,13.04,1304.0999999999999,0,0]
[73525,100,"Aubrieta hybrida","Axcent™ Light Blue","RC","✓",null,null,null,null,null,null,null,null,13.04,1304.0999999999999,0,0]
[73511,100,"Ballota pseudodictamnus","Ballota pseudodictamnus","RC",null,null,null,null,null,null,null,null,null,12.7,1269.68,0,0]
[73509,100,"Ballota pseudodictamnus","Compact Form","RC",null,null,null,null,null,null,null,null,null,12.7,1269.68,0,0]
[70784,84,"Bergenia hybrida","Dragonfly™ Angel Kiss","TC","✓",null,null,null,null,null,null,null,null,34.08,2862.86,0,0]
[70785,84,"Bergenia hybrida","Dragonfly™ Sakura","TC","✓",null,null,null,null,null,null,null,null,34.770000000000003,2920.7,0,0]
[70702,84,"Bergenia hybrida","Dragonfly™ Pink Dragonfly","TC","✓",null,null,null,null,null,null,null,null,32.020000000000003,2689.36,0,0]
[78902,84,"Bergenia hybrida","Early Brilliance Magenta","TC",null,null,null,null,null,null,null,null,null,34.770000000000003,2920.7,0,0]
[74433,84,"Bergenia hybrida","Flirt","TC","✓",null,null,null,null,null,null,null,null,34.770000000000003,2920.7,0,0]
[78903,84,"Bergenia hybrida","Vintage Blush","TC","✓",null,null,null,null,null,null,null,null,34.770000000000003,2920.7,0,0]
[79499,84,"Bergenia hybrida","Vintage Pink","TC","✓",null,null,null,null,null,null,null,null,34.770000000000003,2920.7,0,0]
[78901,84,"Bergenia hybrida","Vintage Rose","TC",null,null,null,null,null,null,null,null,null,34.770000000000003,2920.7,0,0]
[78915,84,"Bergenia hybrida","Wintermarchen","TC","✓",null,null,null,null,null,null,null,null,28.57,2400.19,0,0]
[76075,100,"BlooMix","BlooMix Blue Emotion","RC",null,null,null,null,null,null,null,null,null,38.17,3817.13,0,0]
[76076,100,"BlooMix","BlooMix Blue Lagoon","RC",null,null,null,null,null,null,null,null,null,38.520000000000003,3851.55,0,0]
[76074,100,"BlooMix","BlooMix Blue Mountain","RC",null,null,null,null,null,null,null,null,null,37.83,3782.7,0,0]
[76077,100,"BlooMix","BlooMix Lavender Flavour","RC",null,null,null,null,null,null,null,null,null,34.729999999999997,3472.88,0,0]
[76054,100,"BlooMix","BlooMix Pink Emotion","RC",null,null,null,null,null,null,null,null,null,37.14,3713.85,0,0]
[76058,100,"BlooMix","BlooMix Pinky Winky","RC",null,null,null,null,null,null,null,null,null,36.11,3610.58,0,0]
[76056,100,"BlooMix","BlooMix Pollinators Pot","RC",null,null,null,null,null,null,null,null,null,41.61,4161.38,0,0]
[76055,100,"BlooMix","BlooMix Purple Passion","RC",null,null,null,null,null,null,null,null,null,38.86,3885.98,0,0]
[76073,100,"BlooMix","BlooMix Rosefield","RC",null,null,null,null,null,null,null,null,null,37.479999999999997,3748.28,0,0]
[76071,100,"BlooMix","BlooMix Snow Flake","RC",null,null,null,null,null,null,null,null,null,38.86,3885.98,0,0]
[76057,100,"BlooMix","BlooMix Wildlife","RC",null,null,null,null,null,null,null,null,null,45.06,4505.63,0,0]
[76072,100,"BlooMix","BlooMix Yellowstone","RC",null,null,null,null,null,null,null,null,null,41.96,4195.8,0,0]
[71880,84,"Brunnera macrophylla","Alexander's Great","TC","✓",null,null,null,null,null,null,null,null,38.21,3209.87,0,0]
[70434,84,"Brunnera macrophylla","Betty Bowring","TC",null,null,null,null,null,null,null,null,null,29.26,2458.0300000000002,0,0]
[79702,84,"Brunnera macrophylla","Brunnera macrophylla","TC",null,null,null,null,null,null,null,null,null,30.29,2544.7800000000002,0,0]
[71829,84,"Brunnera macrophylla","Sea Heart","TC","✓",null,null,null,null,null,null,null,null,36.15,3036.37,0,0]
[71830,84,"Brunnera macrophylla","Silver Heart","TC","✓",null,null,null,null,null,null,null,null,36.15,3036.37,0,0]
[70436,84,"Brunnera macrophylla","Variegata","TC","✓",null,null,null,null,null,null,null,null,32.020000000000003,2689.36,0,0]
[75479,18,"Buddleja davidii","Butterfly Candy Little Lila","RC","✓",null,null,null,null,null,null,null,null,67.36,1212.53,{"$f":"P270*(G270+H270+I270+J270+K270+L270+M270+N270)","v":0},{"$f":"Q270*1.12","v":0}]
[75479,84,"Buddleja davidii","Butterfly Candy Little Lila","RC","✓",null,null,null,null,null,null,null,null,26.16,2197.77,0,0]
[75479,84,"Buddleja davidii","Butterfly Candy Little Lila","RC","✓",null,null,null,null,null,null,null,null,26.16,2197.77,0,0]
[75484,18,"Buddleja davidii","Butterfly Candy Little Pink","RC","✓",null,null,null,null,null,null,null,null,67.36,1212.53,0,0]
[75484,84,"Buddleja davidii","Butterfly Candy Little Pink","RC","✓",null,null,null,null,null,null,null,null,26.16,2197.77,0,0]
[75484,84,"Buddleja davidii","Butterfly Candy Little Pink","RC","✓",null,null,null,null,null,null,null,null,26.16,2197.77,0,0]
[75480,18,"Buddleja davidii","Butterfly Candy Little Purple","RC","✓",null,null,null,null,null,null,null,null,67.36,1212.53,0,0]
[75480,84,"Buddleja davidii","Butterfly Candy Little Purple","RC","✓",null,null,null,null,null,null,null,null,26.16,2197.77,0,0]
[75480,84,"Buddleja davidii","Butterfly Candy Little Purple","RC","✓",null,null,null,null,null,null,null,null,26.16,2197.77,0,0]
[75483,18,"Buddleja davidii","Butterfly Candy Little Ruby","RC","✓",null,null,null,null,null,null,null,null,67.36,1212.53,0,0]
[75483,84,"Buddleja davidii","Butterfly Candy Little Ruby","RC","✓",null,null,null,null,null,null,null,null,26.16,2197.77,0,0]
[75483,84,"Buddleja davidii","Butterfly Candy Little Ruby","RC","✓",null,null,null,null,null,null,null,null,26.16,2197.77,0,0]
[75482,18,"Buddleja davidii","Butterfly Candy Little Sweetheart","RC","✓",null,null,null,null,null,null,null,null,67.36,1212.53,0,0]
[75482,84,"Buddleja davidii","Butterfly Candy Little Sweetheart","RC","✓",null,null,null,null,null,null,null,null,26.16,2197.77,0,0]
[75482,84,"Buddleja davidii","Butterfly Candy Little Sweetheart","RC","✓",null,null,null,null,null,null,null,null,26.16,2197.77,0,0]
[75481,18,"Buddleja davidii","Butterfly Candy Little White","RC","✓",null,null,null,null,null,null,null,null,67.36,1212.53,0,0]
[75481,84,"Buddleja davidii","Butterfly Candy Little White","RC","✓",null,null,null,null,null,null,null,null,26.16,2197.77,0,0]
[75481,84,"Buddleja davidii","Butterfly Candy Little White","RC","✓",null,null,null,null,null,null,null,null,26.16,2197.77,0,0]
[75416,18,"Buddleja davidii","Lavender Cupcake","RC","✓",null,null,null,null,null,null,null,null,63.92,1150.56,0,0]
[75416,84,"Buddleja davidii","Lavender Cupcake","RC","✓",null,null,null,null,null,null,null,null,23.75,1995.35,0,0]
[75416,84,"Buddleja davidii","Lavender Cupcake","RC","✓",null,null,null,null,null,null,null,null,23.41,1966.44,0,0]
[75415,18,"Buddleja davidii","Magenta Munchkin","RC","✓",null,null,null,null,null,null,null,null,63.92,1150.56,0,0]
[75415,84,"Buddleja davidii","Magenta Munchkin","RC","✓",null,null,null,null,null,null,null,null,23.75,1995.35,0,0]
[75415,84,"Buddleja davidii","Magenta Munchkin","RC","✓",null,null,null,null,null,null,null,null,23.41,1966.44,0,0]
[74450,84,"Buddleja davidii","Pink Cascade","RC","✓",null,null,null,null,null,null,null,null,23.75,1995.35,0,0]
[74450,84,"Buddleja davidii","Pink Cascade","RC","✓",null,null,null,null,null,null,null,null,23.41,1966.44,0,0]
[75446,18,"Buddleja davidii","Prince Charming","RC","✓",null,null,null,null,null,null,null,null,63.92,1150.56,0,0]
[75446,84,"Buddleja davidii","Prince Charming","RC","✓",null,null,null,null,null,null,null,null,23.75,1995.35,0,0]
[75446,84,"Buddleja davidii","Prince Charming","RC","✓",null,null,null,null,null,null,null,null,23.41,1966.44,0,0]
[75413,84,"Buddleja davidii","Wisteria Lane","RC","✓",null,null,null,null,null,null,null,null,23.75,1995.35,0,0]
[75413,84,"Buddleja davidii","Wisteria Lane","RC","✓",null,null,null,null,null,null,null,null,23.41,1966.44,0,0]
[73510,100,"Buglossoides purpurocaerulea","Buglossoides purpurocaerulea","RC","✓",null,null,null,null,null,null,null,null,13.04,1304.0999999999999,0,0]
[79089,84,"Calamagrostis brachytricha","Calamagrostis brachytricha","RC","✓",null,null,null,null,null,null,null,null,17.21,1445.93,0,0]
[79089,155,"Calamagrostis brachytricha","Calamagrostis brachytricha","RC","✓",null,null,null,null,null,null,null,null,13.36,2070.06,0,0]
[74156,84,"Calamagrostis splendens","Cheju-Do","RC","✓",null,null,null,null,null,null,null,null,17.21,1445.93,0,0]
[74156,155,"Calamagrostis splendens","Cheju-Do","RC","✓",null,null,null,null,null,null,null,null,13.7,2123.42,0,0]
[79081,84,"Calamagrostis x acutiflora","England","RC","✓",null,null,null,null,null,null,null,null,17.21,1445.93,0,0]
[79081,40,"Calamagrostis x acutiflora","England","RC","✓",null,null,null,null,null,null,null,null,34.32,1372.95,0,0]
[79081,155,"Calamagrostis x acutiflora","England","RC","✓",null,null,null,null,null,null,null,null,13.7,2123.42,0,0]
[79898,84,"Calamagrostis x acutiflora","Karl Foerster","RC","✓",null,null,null,null,null,null,null,null,17.21,1445.93,0,0]
[79898,40,"Calamagrostis x acutiflora","Karl Foerster","RC","✓",null,null,null,null,null,null,null,null,34.32,1372.95,0,0]
[79898,155,"Calamagrostis x acutiflora","Karl Foerster","RC","✓",null,null,null,null,null,null,null,null,13.7,2123.42,0,0]
[79037,84,"Calamagrostis x acutiflora","Overdam","RC","✓",null,null,null,null,null,null,null,null,17.21,1445.93,0,0]
[79037,40,"Calamagrostis x acutiflora","Overdam","RC","✓",null,null,null,null,null,null,null,null,34.32,1372.95,0,0]
[79037,155,"Calamagrostis x acutiflora","Overdam","RC","✓",null,null,null,null,null,null,null,null,12.32,1909.98,0,0]
[70225,100,"Calamintha grandiflora","Calamintha grandiflora","RC",null,null,null,null,null,null,null,null,null,10.98,1097.55,0,0]
[70194,100,"Calamintha nepeta","Blue Cloud","RC",null,null,null,null,null,null,null,null,null,10.98,1097.55,0,0]
[70195,100,"Calamintha nepeta","Calamintha nepeta ssp. nepeta","RC","✓",null,null,null,null,null,null,null,null,10.98,1097.55,0,0]
[70197,100,"Calamintha nepeta","White Cloud","RC",null,null,null,null,null,null,null,null,null,10.98,1097.55,0,0]
[70150,84,"Campanula / Adenophora","Gaudi Violet","RC","✓",null,null,null,null,null,null,null,null,20.309999999999999,1706.18,0,0]
[72224,84,"Campanula cochleariifolia","Elizabeth Oliver","TC","✓",null,null,null,null,null,null,null,null,27.2,2284.52,0,0]
[72245,100,"Campanula garganica","Dickson's Gold","RC",null,null,null,null,null,null,null,null,null,14.76,1476.23,0,0]
[72250,84,"Campanula glomerata","Blue Crown","TC","✓",null,null,null,null,null,null,null,null,35.46,2978.53,0,0]
[72254,84,"Campanula glomerata","Freya","TC","✓",null,null,null,null,null,null,null,null,33.74,2833.95,0,0]
[72262,84,"Campanula glomerata","Genti Blue","TC","✓",null,null,null,null,null,null,null,null,34.770000000000003,2920.7,0,0]
[72259,84,"Campanula glomerata","Genti White","TC","✓",null,null,null,null,null,null,null,null,34.770000000000003,2920.7,0,0]
[72227,84,"Campanula hybrida","Samantha","TC","✓",null,null,null,null,null,null,null,null,29.95,2515.86,0,0]
[72261,84,"Campanula hybrida","Viking","TC","✓",null,null,null,null,null,null,null,null,35.11,2949.62,0,0]
[72241,100,"Campanula lactiflora","Loddon Anna","RC",null,null,null,null,null,null,null,null,null,13.39,1338.53,0,0]
[72243,100,"Campanula lactiflora","Prichard's Variety","RC","✓",null,null,null,null,null,null,null,null,13.39,1338.53,0,0]
[72248,100,"Campanula lactiflora","Senior","RC",null,null,null,null,null,null,null,null,null,13.39,1338.53,0,0]
[72272,100,"Campanula portenschlagiana","Campanula portenschlagiana","RC",null,null,null,null,null,null,null,null,null,12.35,1235.25,0,0]
[72246,100,"Campanula poscharskyana","E.H. Frost","RC",null,null,null,null,null,null,null,null,null,12.35,1235.25,0,0]
[72214,100,"Campanula poscharskyana","Lisduggan Variety","RC",null,null,null,null,null,null,null,null,null,12.35,1235.25,0,0]
[72249,100,"Campanula poscharskyana","Silberregen","RC",null,null,null,null,null,null,null,null,null,12.35,1235.25,{"$f":"P334*(G334+H334+I334+J334+K334+L334+M334+N334)","v":0},{"$f":"Q334*1.12","v":0}]
[72209,100,"Campanula poscharskyana","Stella","RC","✓",null,null,null,null,null,null,null,null,12.35,1235.25,0,0]
[79043,84,"Carex brunnea","Albolineata","RC","✓",null,null,null,null,null,null,null,null,23.07,1937.52,0,0]
[79043,155,"Carex brunnea","Albolineata","RC","✓",null,null,null,null,null,null,null,null,16.8,2603.64,0,0]
[79042,155,"Carex brunnea","Aureomarginata","RC",null,null,null,null,null,null,null,null,null,16.8,2603.64,0,0]
[79042,84,"Carex brunnea","Aureomarginata","RC",null,null,null,null,null,null,null,null,null,23.07,1937.52,0,0]
[79051,155,"Carex brunnea","Jenneke","RC","✓",null,null,null,null,null,null,null,null,17.14,2657,0,0]
[79051,84,"Carex brunnea","Jenneke","RC","✓",null,null,null,null,null,null,null,null,23.75,1995.35,0,0]
[79044,155,"Carex brunnea","Lady Sunshine","RC",null,null,null,null,null,null,null,null,null,17.14,2657,0,0]
[79044,84,"Carex brunnea","Lady Sunshine","RC",null,null,null,null,null,null,null,null,null,23.07,1937.52,0,0]
[79160,155,"Carex brunnea","Racing Green","RC","✓",null,null,null,null,null,null,null,null,16.8,2603.64,0,0]
[79160,84,"Carex brunnea","Racing Green","RC","✓",null,null,null,null,null,null,null,null,23.07,1937.52,0,0]
[79041,155,"Carex brunnea","Variegata","RC",null,null,null,null,null,null,null,null,null,16.8,2603.64,0,0]
[79041,84,"Carex brunnea","Variegata","RC",null,null,null,null,null,null,null,null,null,23.07,1937.52,0,0]
[79045,155,"Carex caryophyllea","The Beatles","RC","✓",null,null,null,null,null,null,null,null,17.14,2657,0,0]
[79045,84,"Carex caryophyllea","The Beatles","RC","✓",null,null,null,null,null,null,null,null,21,1764.02,0,0]
[79049,155,"Carex conica","Hime Kansuge","RC","✓",null,null,null,null,null,null,null,null,13.36,2070.06,0,0]
[79049,84,"Carex conica","Hime Kansuge","RC","✓",null,null,null,null,null,null,null,null,16.87,1417.01,0,0]
[74153,155,"Carex dolichostachya","Gold Fountain","RC","✓",null,null,null,null,null,null,null,null,16.11,2496.9299999999998,0,0]
[74153,84,"Carex dolichostachya","Gold Fountain","RC","✓",null,null,null,null,null,null,null,null,20.66,1735.1,0,0]
[79134,84,"Carex elata","Aurea","RC","✓",null,null,null,null,null,null,null,null,25.48,2139.94,0,0]
[79130,84,"Carex hybrida","Feather Falls","TC","✓",null,null,null,null,null,null,null,null,39.590000000000003,3325.54,0,0]
[79115,84,"Carex montana","Raureif","RC",null,null,null,null,null,null,null,null,null,20.309999999999999,1706.18,0,0]
[79002,40,"Carex morrowii","Ice Dance","RC","✓",null,null,null,null,null,null,null,null,30.54,1221.48,0,0]
[79002,155,"Carex morrowii","Ice Dance","RC","✓",null,null,null,null,null,null,null,null,16.11,2496.9299999999998,0,0]
[79002,84,"Carex morrowii","Ice Dance","RC","✓",null,null,null,null,null,null,null,null,19.97,1677.27,0,0]
[79164,40,"Carex morrowii","Irish Green","RC","✓",null,null,null,null,null,null,null,null,30.88,1235.25,0,0]
[79164,155,"Carex morrowii","Irish Green","RC","✓",null,null,null,null,null,null,null,null,16.11,2496.9299999999998,0,0]
[79164,84,"Carex morrowii","Irish Green","RC","✓",null,null,null,null,null,null,null,null,19.97,1677.27,0,0]
[79114,40,"Carex morrowii","Vanilla Ice","RC","✓",null,null,null,null,null,null,null,null,34.67,1386.72,0,0]
[79114,155,"Carex morrowii","Vanilla Ice","RC","✓",null,null,null,null,null,null,null,null,19.55,3030.51,0,0]
[79114,84,"Carex morrowii","Vanilla Ice","RC","✓",null,null,null,null,null,null,null,null,23.75,1995.35,0,0]
[79053,155,"Carex muskingumensis","Little Midge","RC",null,null,null,null,null,null,null,null,null,13.36,2070.06,0,0]
[79053,84,"Carex muskingumensis","Little Midge","RC",null,null,null,null,null,null,null,null,null,16.87,1417.01,0,0]
[74173,84,"Carex oshimensis","Everest","RC",null,null,null,null,null,null,null,null,null,28.23,2371.2800000000002,0,0]
[79889,40,"Carex oshimensis","Evergold","RC","✓",null,null,null,null,null,null,null,null,34.67,1386.72,0,0]
[79889,155,"Carex oshimensis","Evergold","RC","✓",null,null,null,null,null,null,null,null,16.11,2496.9299999999998,0,0]
[79889,84,"Carex oshimensis","Evergold","RC","✓",null,null,null,null,null,null,null,null,19.97,1677.27,0,0]
[79165,40,"Carex oshimensis","Goldwell","RC","✓",null,null,null,null,null,null,null,null,32.950000000000003,1317.87,0,0]
[79165,155,"Carex oshimensis","Goldwell","RC","✓",null,null,null,null,null,null,null,null,16.11,2496.9299999999998,0,0]
[79165,84,"Carex oshimensis","Goldwell","RC","✓",null,null,null,null,null,null,null,null,20.66,1735.1,0,0]
[79166,40,"Carex oshimensis","Greenwell","RC",null,null,null,null,null,null,null,null,null,32.950000000000003,1317.87,0,0]
[79166,155,"Carex oshimensis","Greenwell","RC",null,null,null,null,null,null,null,null,null,16.11,2496.9299999999998,0,0]
[79166,84,"Carex oshimensis","Greenwell","RC",null,null,null,null,null,null,null,null,null,20.66,1735.1,0,0]
[79047,40,"Carex oshimensis","Maxigold","RC","✓",null,null,null,null,null,null,null,null,33.64,1345.41,0,0]
[79047,155,"Carex oshimensis","Maxigold","RC","✓",null,null,null,null,null,null,null,null,15.76,2443.5700000000002,0,0]
[79047,84,"Carex oshimensis","Maxigold","RC","✓",null,null,null,null,null,null,null,null,19.97,1677.27,0,0]
[74172,155,"Carex oshimensis","Moonlight","RC","✓",null,null,null,null,null,null,null,null,15.76,2443.5700000000002,0,0]
[74172,84,"Carex oshimensis","Moonlight","RC","✓",null,null,null,null,null,null,null,null,19.97,1677.27,0,0]
[79052,155,"Carex panicea","Pamira","RC","✓",null,null,null,null,null,null,null,null,13.36,2070.06,0,0]
[79052,84,"Carex panicea","Pamira","RC","✓",null,null,null,null,null,null,null,null,17.559999999999999,1474.85,0,0]
[79094,155,"Carex petriei","Milk Chocolate®","RC","✓",null,null,null,null,null,null,null,null,13.01,2016.7,0,0]
[79094,84,"Carex petriei","Milk Chocolate®","RC","✓",null,null,null,null,null,null,null,null,16.52,1388.1,0,0]
[79050,84,"Carex testacea","Carex testacea","RC","✓",null,null,null,null,null,null,null,null,13.77,1156.76,0,0]
[79163,84,"Carex x hybrida","Ribbon Falls","TC","✓",null,null,null,null,null,null,null,null,39.590000000000003,3325.54,0,0]
[79382,18,"Caryopteris clandonensis","Dark Knight","RC","✓",null,null,null,null,null,null,null,null,56,1008.05,0,0]
[79382,84,"Caryopteris clandonensis","Dark Knight","RC","✓",null,null,null,null,null,null,null,null,17.21,1445.93,0,0]
[74817,84,"Caryopteris clandonensis","Hint of Gold","RC","✓",null,null,null,null,null,null,null,null,26.16,2197.77,0,0]
[74869,84,"Caryopteris clandonensis","Stephi","RC","✓",null,null,null,null,null,null,null,null,25.82,2168.86,0,0]
[74818,84,"Caryopteris clandonensis","Sterling Silver","RC","✓",null,null,null,null,null,null,null,null,26.16,2197.77,0,0]
[71571,84,"Caryopteris clandonensis","White Surprise","RC","✓",null,null,null,null,null,null,null,null,25.82,2168.86,0,0]
[70198,100,"Centaurea montana","Amethyst in Snow©","RC",null,null,null,null,null,null,null,null,null,20.61,2061.4499999999998,0,0]
[76801,100,"Ceratostigma griffithii","Ceratostigma griffithii","RC",null,null,null,null,null,null,null,null,null,12.01,1200.83,0,0]
[71321,100,"Ceratostigma plumbaginoides","Ceratostigma plumbaginoides","RC","✓",null,null,null,null,null,null,null,null,12.01,1200.83,0,0]
[73342,100,"Cistus x obtusifolius","Cistus x obtusifolius","RC",null,null,null,null,null,null,null,null,null,14.42,1441.8,{"$f":"P398*(G398+H398+I398+J398+K398+L398+M398+N398)","v":0},{"$f":"Q398*1.12","v":0}]
[72352,100,"Coreopsis auriculata","Nana","RC",null,null,null,null,null,null,null,null,null,12.01,1200.83,0,0]
[72333,100,"Coreopsis grandiflora","Golden Stardust","RC",null,null,null,null,null,null,null,null,null,19.239999999999998,1923.75,0,0]
[72385,100,"Coreopsis grandiflora","Solanna™ Bright Touch","RC","✓",null,null,null,null,null,null,null,null,18.2,1820.48,0,0]
[72347,100,"Coreopsis grandiflora","Solanna™ Golden Sphere","RC","✓",null,null,null,null,null,null,null,null,18.2,1820.48,0,0]
[72335,100,"Coreopsis hybrida","Full Moon","RC",null,null,null,null,null,null,null,null,null,16.48,1648.35,0,0]
[72305,100,"Coreopsis rosea","American Dream","RC",null,null,null,null,null,null,null,null,null,10.98,1097.55,0,0]
[72354,100,"Coreopsis verticillata","Bengal Tiger","RC","✓",null,null,null,null,null,null,null,null,18.89,1889.33,0,0]
[72384,100,"Coreopsis verticillata","Coreopsis verticillata","RC",null,null,null,null,null,null,null,null,null,10.98,1097.55,0,0]
[72356,100,"Coreopsis verticillata","Firefly","RC","✓",null,null,null,null,null,null,null,null,18.55,1854.9,0,0]
[72388,100,"Coreopsis verticillata","Fool's Gold","RC",null,null,null,null,null,null,null,null,null,12.01,1200.83,0,0]
[72355,100,"Coreopsis verticillata","Imperial Sun","RC","✓",null,null,null,null,null,null,null,null,18.55,1854.9,0,0]
[72358,100,"Coreopsis verticillata","Ladybird","RC","✓",null,null,null,null,null,null,null,null,17.52,1751.63,0,0]
[72303,100,"Coreopsis verticillata","Moonbeam","RC","✓",null,null,null,null,null,null,null,null,10.98,1097.55,0,0]
[72321,100,"Coreopsis verticillata","Ruby Frost","RC","✓",null,null,null,null,null,null,null,null,18.89,1889.33,0,0]
[72353,100,"Coreopsis verticillata","Ruby Red","RC",null,null,null,null,null,null,null,null,null,10.98,1097.55,0,0]
[72370,100,"Coreopsis verticillata","Sunstar™ Rose","RC","✓",null,null,null,null,null,null,null,null,18.55,1854.9,0,0]
[72304,100,"Coreopsis verticillata","Zagreb","RC","✓",null,null,null,null,null,null,null,null,10.98,1097.55,0,0]
[79428,84,"Corydalis curviflora","Blue Heron","TC","✓",null,null,null,null,null,null,null,null,33.049999999999997,2776.11,0,0]
[74290,100,"Cosmos atrosanguineus","Cosmos atrosanguineus","RC",null,null,null,null,null,null,null,null,null,14.07,1407.38,0,0]
[74289,100,"Cosmos atrosanguineus","Eclipse","RC","✓",null,null,null,null,null,null,null,null,16.48,1648.35,0,0]
[76417,100,"Cosmos atrosanguineus","Chocamocha","RC",null,null,null,null,null,null,null,null,null,15.8,1579.5,0,0]
[77629,100,"Delosperma aberdeense","Hot Pink","RC",null,null,null,null,null,null,null,null,null,12.01,1200.83,0,0]
[77629,102,"Delosperma aberdeense","Hot Pink","RC",null,null,null,null,null,null,null,null,null,11.97,1220.79,0,0]
[78162,100,"Delosperma congestum","Delosperma congestum","RC",null,null,null,null,null,null,null,null,null,12.01,1200.83,0,0]
[78162,102,"Delosperma congestum","Delosperma congestum","RC",null,null,null,null,null,null,null,null,null,11.97,1220.79,0,0]
[77631,102,"Delosperma congestum","Golden Nugget","RC","✓",null,null,null,null,null,null,null,null,11.97,1220.79,0,0]
[78150,100,"Delosperma cooperi","Delosperma cooperi","RC",null,null,null,null,null,null,null,null,null,12.01,1200.83,0,0]
[78150,102,"Delosperma cooperi","Delosperma cooperi","RC",null,null,null,null,null,null,null,null,null,11.97,1220.79,0,0]
[78169,100,"Delosperma cooperi","Jewel of Desert Amethyst","RC","✓",null,null,null,null,null,null,null,null,15.8,1579.5,0,0]
[78169,102,"Delosperma cooperi","Jewel of Desert Amethyst","RC","✓",null,null,null,null,null,null,null,null,15.41,1571.93,0,0]
[78195,100,"Delosperma cooperi","Jewel of Desert Candystone","RC",null,null,null,null,null,null,null,null,null,15.8,1579.5,0,0]
[78195,102,"Delosperma cooperi","Jewel of Desert Candystone","RC",null,null,null,null,null,null,null,null,null,15.41,1571.93,0,0]
[78114,100,"Delosperma cooperi","Jewel of Desert Garnet","RC","✓",null,null,null,null,null,null,null,null,15.8,1579.5,0,0]
[78114,102,"Delosperma cooperi","Jewel of Desert Garnet","RC","✓",null,null,null,null,null,null,null,null,15.41,1571.93,0,0]
[78168,100,"Delosperma cooperi","Jewel of Desert Grenade","RC","✓",null,null,null,null,null,null,null,null,15.8,1579.5,0,0]
[78168,102,"Delosperma cooperi","Jewel of Desert Grenade","RC","✓",null,null,null,null,null,null,null,null,15.41,1571.93,0,0]
[78116,100,"Delosperma cooperi","Jewel of Desert Moon Stone","RC","✓",null,null,null,null,null,null,null,null,15.8,1579.5,0,0]
[78116,102,"Delosperma cooperi","Jewel of Desert Moon Stone","RC","✓",null,null,null,null,null,null,null,null,15.41,1571.93,0,0]
[78167,100,"Delosperma cooperi","Jewel of Desert Opal","RC","✓",null,null,null,null,null,null,null,null,15.8,1579.5,0,0]
[78167,102,"Delosperma cooperi","Jewel of Desert Opal","RC","✓",null,null,null,null,null,null,null,null,15.41,1571.93,0,0]
[78115,100,"Delosperma cooperi","Jewel of Desert Peridott","RC","✓",null,null,null,null,null,null,null,null,15.8,1579.5,0,0]
[78115,102,"Delosperma cooperi","Jewel of Desert Peridott","RC","✓",null,null,null,null,null,null,null,null,15.41,1571.93,0,0]
[78110,100,"Delosperma cooperi","Jewel of Desert Rosequartz","RC",null,null,null,null,null,null,null,null,null,15.8,1579.5,0,0]
[78110,102,"Delosperma cooperi","Jewel of Desert Rosequartz","RC",null,null,null,null,null,null,null,null,null,15.41,1571.93,0,0]
[78112,100,"Delosperma cooperi","Jewel of Desert Ruby","RC",null,null,null,null,null,null,null,null,null,15.8,1579.5,0,0]
[78112,102,"Delosperma cooperi","Jewel of Desert Ruby","RC",null,null,null,null,null,null,null,null,null,15.41,1571.93,0,0]
[78194,100,"Delosperma cooperi","Jewel of Desert Sunstone","RC","✓",null,null,null,null,null,null,null,null,15.8,1579.5,0,0]
[78194,102,"Delosperma cooperi","Jewel of Desert Sunstone","RC","✓",null,null,null,null,null,null,null,null,15.41,1571.93,0,0]
[78113,100,"Delosperma cooperi","Jewel of Desert Topaz","RC","✓",null,null,null,null,null,null,null,null,15.8,1579.5,0,0]
[78113,102,"Delosperma cooperi","Jewel of Desert Topaz","RC","✓",null,null,null,null,null,null,null,null,14.72,1501.7,0,0]
[78155,100,"Delosperma dyeri","Fire Spinner","RC","✓",null,null,null,null,null,null,null,null,18.2,1820.48,0,0]
[78155,102,"Delosperma dyeri","Fire Spinner","RC","✓",null,null,null,null,null,null,null,null,18.170000000000002,1852.83,0,0]
[77630,100,"Delosperma dyeri","Red Mountain©","RC",null,null,null,null,null,null,null,null,null,18.2,1820.48,0,0]
[77630,102,"Delosperma dyeri","Red Mountain©","RC",null,null,null,null,null,null,null,null,null,18.170000000000002,1852.83,0,0]
[77660,100,"Delosperma hybrida","Desert Dancer Purple","RC","✓",null,null,null,null,null,null,null,null,19.93,1992.6,0,0]
[77660,102,"Delosperma hybrida","Desert Dancer Purple","RC","✓",null,null,null,null,null,null,null,null,19.89,2028.4,0,0]
[77660,40,"Delosperma hybrida","Desert Dancer Purple","RC","✓",null,null,null,null,null,null,null,null,32.26,1290.33,0,0]
[77664,100,"Delosperma hybrida","Desert Dancer Red","RC","✓",null,null,null,null,null,null,null,null,19.93,1992.6,0,0]
[77664,102,"Delosperma hybrida","Desert Dancer Red","RC","✓",null,null,null,null,null,null,null,null,19.89,2028.4,0,0]
[77664,40,"Delosperma hybrida","Desert Dancer Red","RC","✓",null,null,null,null,null,null,null,null,32.26,1290.33,0,0]
[77627,100,"Delosperma hybrida","Fireglow","RC",null,null,null,null,null,null,null,null,null,13.04,1304.0999999999999,0,0]
[77627,102,"Delosperma hybrida","Fireglow","RC",null,null,null,null,null,null,null,null,null,13,1326.13,0,0]
[77628,100,"Delosperma hybrida","Graaf Reinet","RC",null,null,null,null,null,null,null,null,null,12.01,1200.83,0,0]
[77628,102,"Delosperma hybrida","Graaf Reinet","RC",null,null,null,null,null,null,null,null,null,11.97,1220.79,{"$f":"P462*(G462+H462+I462+J462+K462+L462+M462+N462)","v":0},{"$f":"Q462*1.12","v":0}]
[78186,100,"Delosperma hybrida","Sundella Apricot","RC","✓",null,null,null,null,null,null,null,null,14.76,1476.23,0,0]
[78186,102,"Delosperma hybrida","Sundella Apricot","RC","✓",null,null,null,null,null,null,null,null,13.69,1396.36,0,0]
[78186,40,"Delosperma hybrida","Sundella Apricot","RC","✓",null,null,null,null,null,null,null,null,27.09,1083.78,0,0]
[77665,100,"Delosperma hybrida","Sundella Flame","RC",null,null,null,null,null,null,null,null,null,14.76,1476.23,0,0]
[77665,102,"Delosperma hybrida","Sundella Flame","RC",null,null,null,null,null,null,null,null,null,13.69,1396.36,0,0]
[78185,100,"Delosperma hybrida","Sundella Lavender","RC",null,null,null,null,null,null,null,null,null,14.76,1476.23,0,0]
[78185,102,"Delosperma hybrida","Sundella Lavender","RC",null,null,null,null,null,null,null,null,null,13.69,1396.36,0,0]
[77666,100,"Delosperma hybrida","Sundella Lime","RC",null,null,null,null,null,null,null,null,null,14.76,1476.23,0,0]
[77666,102,"Delosperma hybrida","Sundella Lime","RC",null,null,null,null,null,null,null,null,null,13.69,1396.36,0,0]
[78183,100,"Delosperma hybrida","Sundella Neon","RC","✓",null,null,null,null,null,null,null,null,14.76,1476.23,0,0]
[78183,102,"Delosperma hybrida","Sundella Neon","RC","✓",null,null,null,null,null,null,null,null,13.69,1396.36,0,0]
[78183,40,"Delosperma hybrida","Sundella Neon","RC","✓",null,null,null,null,null,null,null,null,27.09,1083.78,0,0]
[78187,100,"Delosperma hybrida","Sundella Red","RC","✓",null,null,null,null,null,null,null,null,14.76,1476.23,0,0]
[78187,102,"Delosperma hybrida","Sundella Red","RC","✓",null,null,null,null,null,null,null,null,13.69,1396.36,0,0]
[78187,40,"Delosperma hybrida","Sundella Red","RC","✓",null,null,null,null,null,null,null,null,27.09,1083.78,0,0]
[77608,100,"Delosperma hybrida","Wheels Of Wonder Fire","RC","✓",null,null,null,null,null,null,null,null,18.2,1820.48,0,0]
[77608,102,"Delosperma hybrida","Wheels Of Wonder Fire","RC","✓",null,null,null,null,null,null,null,null,18.170000000000002,1852.83,0,0]
[77609,100,"Delosperma hybrida","Wheels Of Wonder Golden","RC",null,null,null,null,null,null,null,null,null,18.2,1820.48,0,0]
[77609,102,"Delosperma hybrida","Wheels Of Wonder Golden","RC",null,null,null,null,null,null,null,null,null,18.170000000000002,1852.83,0,0]
[77610,100,"Delosperma hybrida","Wheels Of Wonder Hot Pink","RC","✓",null,null,null,null,null,null,null,null,18.2,1820.48,0,0]
[77610,102,"Delosperma hybrida","Wheels Of Wonder Hot Pink","RC","✓",null,null,null,null,null,null,null,null,18.170000000000002,1852.83,0,0]
[77618,100,"Delosperma hybrida","Wheels Of Wonder Limoncello","RC","✓",null,null,null,null,null,null,null,null,18.2,1820.48,0,0]
[77618,102,"Delosperma hybrida","Wheels Of Wonder Limoncello","RC","✓",null,null,null,null,null,null,null,null,18.170000000000002,1852.83,0,0]
[77611,100,"Delosperma hybrida","Wheels Of Wonder Orange","RC",null,null,null,null,null,null,null,null,null,18.2,1820.48,0,0]
[77611,102,"Delosperma hybrida","Wheels Of Wonder Orange","RC",null,null,null,null,null,null,null,null,null,18.170000000000002,1852.83,0,0]
[77619,100,"Delosperma hybrida","Wheels Of Wonder Purple","RC",null,null,null,null,null,null,null,null,null,18.2,1820.48,0,0]
[77619,102,"Delosperma hybrida","Wheels Of Wonder Purple","RC",null,null,null,null,null,null,null,null,null,18.170000000000002,1852.83,0,0]
[77620,100,"Delosperma hybrida","Wheels Of Wonder Salmon Pink","RC",null,null,null,null,null,null,null,null,null,18.2,1820.48,0,0]
[77620,102,"Delosperma hybrida","Wheels Of Wonder Salmon Pink","RC",null,null,null,null,null,null,null,null,null,18.170000000000002,1852.83,0,0]
[77612,100,"Delosperma hybrida","Wheels Of Wonder Violet","RC",null,null,null,null,null,null,null,null,null,18.2,1820.48,0,0]
[77612,102,"Delosperma hybrida","Wheels Of Wonder Violet","RC",null,null,null,null,null,null,null,null,null,18.170000000000002,1852.83,0,0]
[77613,100,"Delosperma hybrida","Wheels Of Wonder White","RC",null,null,null,null,null,null,null,null,null,18.2,1820.48,0,0]
[77613,102,"Delosperma hybrida","Wheels Of Wonder White","RC",null,null,null,null,null,null,null,null,null,18.170000000000002,1852.83,0,0]
[77625,100,"Delosperma lavesii","Delosperma lavesii","RC",null,null,null,null,null,null,null,null,null,12.01,1200.83,0,0]
[77625,102,"Delosperma lavesii","Delosperma lavesii","RC",null,null,null,null,null,null,null,null,null,11.97,1220.79,0,0]
[77626,100,"Delosperma nubigenum","Delosperma nubigenum","RC",null,null,null,null,null,null,null,null,null,12.01,1200.83,0,0]
[77626,102,"Delosperma nubigenum","Delosperma nubigenum","RC",null,null,null,null,null,null,null,null,null,11.97,1220.79,0,0]
[79040,84,"Deschampsia caespitosa","Goldschleier","RC","✓",null,null,null,null,null,null,null,null,14.46,1214.5999999999999,0,0]
[79040,155,"Deschampsia caespitosa","Goldschleier","RC","✓",null,null,null,null,null,null,null,null,9.91,1536.47,0,0]
[79150,84,"Deschampsia caespitosa","Palava","RC","✓",null,null,null,null,null,null,null,null,14.46,1214.5999999999999,0,0]
[79150,155,"Deschampsia caespitosa","Palava","RC","✓",null,null,null,null,null,null,null,null,9.91,1536.47,0,0]
[79046,84,"Deschampsia caespitosa","Tardiflora","RC","✓",null,null,null,null,null,null,null,null,14.46,1214.5999999999999,0,0]
[74157,84,"Deschampsia flexuosa","Tatra Gold","RC","✓",null,null,null,null,null,null,null,null,14.8,1243.51,0,0]
[77881,40,"Dianthus hybrida","Paddock Violet","RC","✓",null,null,null,null,null,null,null,null,26.41,1056.24,0,0]
[77881,100,"Dianthus hybrida","Paddock Violet","RC","✓",null,null,null,null,null,null,null,null,14.76,1476.23,0,0]
[77814,102,"Dianthus hybrida","Pretty Becky","RC","✓",null,null,null,null,null,null,null,null,15.76,1607.04,0,0]
[77880,40,"Dianthus hybrida","Strawberry Ice","RC","✓",null,null,null,null,null,null,null,null,26.41,1056.24,0,0]
[77880,100,"Dianthus hybrida","Strawberry Ice","RC","✓",null,null,null,null,null,null,null,null,14.76,1476.23,0,0]
[77816,40,"Dianthus plumarius","Angel of Hope","RC","✓",null,null,null,null,null,null,null,null,27.09,1083.78,0,0]
[77816,102,"Dianthus plumarius","Angel of Hope","RC","✓",null,null,null,null,null,null,null,null,15.41,1571.93,0,0]
[77817,40,"Dianthus plumarius","Angel of Purity","RC","✓",null,null,null,null,null,null,null,null,27.09,1083.78,0,0]
[77817,102,"Dianthus plumarius","Angel of Purity","RC","✓",null,null,null,null,null,null,null,null,15.41,1571.93,0,0]
[77815,40,"Dianthus plumarius","Angel of Virtue","RC","✓",null,null,null,null,null,null,null,null,27.09,1083.78,0,0]
[77815,102,"Dianthus plumarius","Angel of Virtue","RC","✓",null,null,null,null,null,null,null,null,15.41,1571.93,0,0]
[79227,84,"Dicentra spectabilis (Lamprocapnos)","Alba","TC/RC","✓",null,null,null,null,null,null,null,null,14.12,1185.68,0,0]
[79652,84,"Dicentra spectabilis (Lamprocapnos)","Dicentra spectabilis","TC/RC","✓",null,null,null,null,null,null,null,null,14.12,1185.68,0,0]
[79668,84,"Dicentra spectabilis (Lamprocapnos)","Gold Heart","TC/RC","✓",null,null,null,null,null,null,null,null,35.11,2949.62,0,0]
[79244,84,"Dicentra spectabilis (Lamprocapnos)","Valentine®","TC/RC","✓",null,null,null,null,null,null,null,null,29.95,2515.86,0,0]
[77402,84,"Dicentra spectabilis (Lamprocapnos)","White Gold","TC/RC","✓",null,null,null,null,null,null,null,null,37.18,3123.12,0,0]
[71412,84,"Digitalis hybrida","Digiplexis™ Berry Canary","RC","✓",null,null,null,null,null,null,null,null,23.75,1995.35,0,0]
[71412,40,"Digitalis hybrida","Digiplexis™ Berry Canary","RC","✓",null,null,null,null,null,null,null,null,34.67,1386.72,0,0]
[75901,84,"Digitalis hybrida","Falcon Fire","TC/RC","✓",null,null,null,null,null,null,null,null,26.16,2197.77,0,0]
[75903,84,"Digitalis hybrida","Firecracker","TC/RC","✓",null,null,null,null,null,null,null,null,26.16,2197.77,0,0]
[75903,40,"Digitalis hybrida","Firecracker","TC/RC","✓",null,null,null,null,null,null,null,null,34.32,1372.95,{"$f":"P526*(G526+H526+I526+J526+K526+L526+M526+N526)","v":0},{"$f":"Q526*1.12","v":0}]
[75904,84,"Digitalis hybrida","Rising Phoenix","TC/RC","✓",null,null,null,null,null,null,null,null,26.16,2197.77,0,0]
[75904,40,"Digitalis hybrida","Rising Phoenix","TC/RC","✓",null,null,null,null,null,null,null,null,34.32,1372.95,0,0]
[79233,84,"Echinacea hybrida","Aloha","TC","✓",null,null,null,null,null,null,null,null,40.28,3383.37,0,0]
[74244,84,"Echinacea hybrida","Big Kahuna","TC","✓",null,null,null,null,null,null,null,null,40.28,3383.37,0,0]
[79272,28,"Echinacea hybrida","Butterfly Kisses","TC","✓",null,null,null,null,null,null,null,null,60.25,1686.91,0,0]
[79272,84,"Echinacea hybrida","Butterfly Kisses","TC","✓",null,null,null,null,null,null,null,null,38.56,3238.79,0,0]
[79272,40,"Echinacea hybrida","Butterfly Kisses","TC","✓",null,null,null,null,null,null,null,null,46.37,1854.9,0,0]
[77498,84,"Echinacea hybrida","Carrot Cake","TC","✓",null,null,null,null,null,null,null,null,37.520000000000003,3152.03,0,0]
[77498,40,"Echinacea hybrida","Carrot Cake","TC","✓",null,null,null,null,null,null,null,null,44.65,1786.05,0,0]
[74262,28,"Echinacea hybrida","Delicious Candy","TC","✓",null,null,null,null,null,null,null,null,58.53,1638.71,0,0]
[74262,84,"Echinacea hybrida","Delicious Candy","TC","✓",null,null,null,null,null,null,null,null,36.840000000000003,3094.2,0,0]
[74262,40,"Echinacea hybrida","Delicious Candy","TC","✓",null,null,null,null,null,null,null,null,44.65,1786.05,0,0]
[77431,84,"Echinacea hybrida","Delicious Nougat","TC","✓",null,null,null,null,null,null,null,null,36.840000000000003,3094.2,0,0]
[77431,40,"Echinacea hybrida","Delicious Nougat","TC","✓",null,null,null,null,null,null,null,null,44.65,1786.05,0,0]
[74263,84,"Echinacea hybrida","Eccentric","TC","✓",null,null,null,null,null,null,null,null,38.21,3209.87,0,0]
[74295,84,"Echinacea hybrida","Fatal Attraction","TC","✓",null,null,null,null,null,null,null,null,38.21,3209.87,0,0]
[79689,84,"Echinacea hybrida","Flame Thrower","TC",null,null,null,null,null,null,null,null,null,40.28,3383.37,0,0]
[77448,84,"Echinacea hybrida","Fountain Light Purple","TC","✓",null,null,null,null,null,null,null,null,37.520000000000003,3152.03,0,0]
[77447,28,"Echinacea hybrida","Fountain Pink Eye","TC","✓",null,null,null,null,null,null,null,null,58.53,1638.71,0,0]
[77447,84,"Echinacea hybrida","Fountain Pink Eye","TC","✓",null,null,null,null,null,null,null,null,37.520000000000003,3152.03,0,0]
[77492,28,"Echinacea hybrida","Fountain Red","TC","✓",null,null,null,null,null,null,null,null,58.53,1638.71,0,0]
[77492,84,"Echinacea hybrida","Fountain Red","TC","✓",null,null,null,null,null,null,null,null,37.520000000000003,3152.03,0,0]
[77492,40,"Echinacea hybrida","Fountain Red","TC","✓",null,null,null,null,null,null,null,null,44.65,1786.05,0,0]
[77497,28,"Echinacea hybrida","Fountain Yellow","TC","✓",null,null,null,null,null,null,null,null,58.53,1638.71,0,0]
[77497,84,"Echinacea hybrida","Fountain Yellow","TC","✓",null,null,null,null,null,null,null,null,37.520000000000003,3152.03,0,0]
[77497,40,"Echinacea hybrida","Fountain Yellow","TC","✓",null,null,null,null,null,null,null,null,44.65,1786.05,0,0]
[79285,84,"Echinacea hybrida","Glowing Dream","TC","✓",null,null,null,null,null,null,null,null,39.590000000000003,3325.54,0,0]
[74296,84,"Echinacea hybrida","Green Jewel","TC","✓",null,null,null,null,null,null,null,null,38.21,3209.87,0,0]
[79692,84,"Echinacea hybrida","Hot Lava","TC",null,null,null,null,null,null,null,null,null,40.28,3383.37,0,0]
[79250,84,"Echinacea hybrida","Hot Papaya","TC","✓",null,null,null,null,null,null,null,null,39.93,3354.45,0,0]
[75994,84,"Echinacea hybrida","Hot Summer Improved","TC","✓",null,null,null,null,null,null,null,null,37.520000000000003,3152.03,0,0]
[74294,84,"Echinacea hybrida","Cherry Fluff","TC","✓",null,null,null,null,null,null,null,null,39.93,3354.45,0,0]
[77404,84,"Echinacea hybrida","Innocent Meadow Mama","TC","✓",null,null,null,null,null,null,null,null,39.25,3296.62,0,0]
[77472,84,"Echinacea hybrida","JS Roho","TC","✓",null,null,null,null,null,null,null,null,36.49,3065.28,0,0]
[79299,84,"Echinacea hybrida","Julia","TC","✓",null,null,null,null,null,null,null,null,39.590000000000003,3325.54,0,0]
[77499,84,"Echinacea hybrida","Kismet® White","TC","✓",null,null,null,null,null,null,null,null,39.93,3354.45,0,0]
[77445,84,"Echinacea hybrida","Kismet® Yellow","TC","✓",null,null,null,null,null,null,null,null,39.93,3354.45,0,0]
[77445,40,"Echinacea hybrida","Kismet® Yellow","TC","✓",null,null,null,null,null,null,null,null,46.72,1868.67,0,0]
[77403,84,"Echinacea hybrida","Lemon Drop","TC","✓",null,null,null,null,null,null,null,null,39.93,3354.45,0,0]
[79253,84,"Echinacea hybrida","Marmalade","TC","✓",null,null,null,null,null,null,null,null,39.93,3354.45,0,0]
[74264,84,"Echinacea hybrida","Meditation Cerise","TC","✓",null,null,null,null,null,null,null,null,37.520000000000003,3152.03,0,0]
[74264,40,"Echinacea hybrida","Meditation Cerise","TC","✓",null,null,null,null,null,null,null,null,44.65,1786.05,0,0]
[79627,84,"Echinacea hybrida","Meditation Orange","TC","✓",null,null,null,null,null,null,null,null,37.520000000000003,3152.03,0,0]
[79627,40,"Echinacea hybrida","Meditation Orange","TC","✓",null,null,null,null,null,null,null,null,44.65,1786.05,0,0]
[74266,28,"Echinacea hybrida","Meditation White","TC","✓",null,null,null,null,null,null,null,null,58.53,1638.71,0,0]
[74266,84,"Echinacea hybrida","Meditation White","TC","✓",null,null,null,null,null,null,null,null,37.520000000000003,3152.03,0,0]
[74266,40,"Echinacea hybrida","Meditation White","TC","✓",null,null,null,null,null,null,null,null,44.65,1786.05,0,0]
[79276,84,"Echinacea hybrida","Milkshake","TC",null,null,null,null,null,null,null,null,null,39.93,3354.45,0,0]
[77449,28,"Echinacea hybrida","Parrot","TC","✓",null,null,null,null,null,null,null,null,60.25,1686.91,0,0]
[77449,84,"Echinacea hybrida","Parrot","TC","✓",null,null,null,null,null,null,null,null,39.93,3354.45,0,0]
[77449,40,"Echinacea hybrida","Parrot","TC","✓",null,null,null,null,null,null,null,null,46.37,1854.9,0,0]
[79640,28,"Echinacea hybrida","Pearl™ Dark Pink","TC","✓",null,null,null,null,null,null,null,null,55.77,1561.6,0,0]
[79640,84,"Echinacea hybrida","Pearl™ Dark Pink","TC","✓",null,null,null,null,null,null,null,null,34.08,2862.86,0,0]
[79640,40,"Echinacea hybrida","Pearl™ Dark Pink","TC","✓",null,null,null,null,null,null,null,null,41.9,1675.89,0,0]
[77401,28,"Echinacea hybrida","Pearl™ Magenta","TC","✓",null,null,null,null,null,null,null,null,55.77,1561.6,0,0]
[77401,84,"Echinacea hybrida","Pearl™ Magenta","TC","✓",null,null,null,null,null,null,null,null,34.08,2862.86,0,0]
[77401,40,"Echinacea hybrida","Pearl™ Magenta","TC","✓",null,null,null,null,null,null,null,null,41.9,1675.89,0,0]
[75905,28,"Echinacea hybrida","Pearl™ Orange","TC","✓",null,null,null,null,null,null,null,null,55.77,1561.6,0,0]
[75905,84,"Echinacea hybrida","Pearl™ Orange","TC","✓",null,null,null,null,null,null,null,null,34.08,2862.86,0,0]
[75905,40,"Echinacea hybrida","Pearl™ Orange","TC","✓",null,null,null,null,null,null,null,null,41.9,1675.89,0,0]
[74292,28,"Echinacea hybrida","Pearl™ Red","TC","✓",null,null,null,null,null,null,null,null,55.77,1561.6,0,0]
[74292,84,"Echinacea hybrida","Pearl™ Red","TC","✓",null,null,null,null,null,null,null,null,34.08,2862.86,0,0]
[74292,40,"Echinacea hybrida","Pearl™ Red","TC","✓",null,null,null,null,null,null,null,null,41.9,1675.89,0,0]
[75996,28,"Echinacea hybrida","Pearl™ Red  Imp.","TC","✓",null,null,null,null,null,null,null,null,55.77,1561.6,{"$f":"P590*(G590+H590+I590+J590+K590+L590+M590+N590)","v":0},{"$f":"Q590*1.12","v":0}]
[75996,84,"Echinacea hybrida","Pearl™ Red  Imp.","TC","✓",null,null,null,null,null,null,null,null,34.08,2862.86,0,0]
[79650,28,"Echinacea hybrida","Pearl™ White","TC","✓",null,null,null,null,null,null,null,null,55.77,1561.6,0,0]
[79650,84,"Echinacea hybrida","Pearl™ White","TC","✓",null,null,null,null,null,null,null,null,34.08,2862.86,0,0]
[79650,40,"Echinacea hybrida","Pearl™ White","TC","✓",null,null,null,null,null,null,null,null,41.9,1675.89,0,0]
[79643,28,"Echinacea hybrida","Pearl™ Yellow Imp.","TC","✓",null,null,null,null,null,null,null,null,55.77,1561.6,0,0]
[79643,84,"Echinacea hybrida","Pearl™ Yellow Imp.","TC","✓",null,null,null,null,null,null,null,null,34.08,2862.86,0,0]
[79643,40,"Echinacea hybrida","Pearl™ Yellow Imp.","TC","✓",null,null,null,null,null,null,null,null,41.9,1675.89,0,0]
[75995,28,"Echinacea hybrida","Pearl™ Light Pink","TC","✓",null,null,null,null,null,null,null,null,55.77,1561.6,0,0]
[75995,84,"Echinacea hybrida","Pearl™ Light Pink","TC","✓",null,null,null,null,null,null,null,null,34.08,2862.86,0,0]
[75997,28,"Echinacea hybrida","Pearl™ Parrot","TC","✓",null,null,null,null,null,null,null,null,55.77,1561.6,0,0]
[75997,84,"Echinacea hybrida","Pearl™ Parrot","TC","✓",null,null,null,null,null,null,null,null,34.08,2862.86,0,0]
[75999,28,"Echinacea hybrida","Pearl™ Sunny","TC","✓",null,null,null,null,null,null,null,null,55.77,1561.6,0,0]
[75999,84,"Echinacea hybrida","Pearl™ Sunny","TC","✓",null,null,null,null,null,null,null,null,34.08,2862.86,0,0]
[74206,84,"Echinacea hybrida","Purple Emperor","TC","✓",null,null,null,null,null,null,null,null,39.25,3296.62,0,0]
[74258,84,"Echinacea hybrida","Rainbow Marcella","TC","✓",null,null,null,null,null,null,null,null,39.25,3296.62,0,0]
[79278,84,"Echinacea hybrida","Raspberry Truffle","TC","✓",null,null,null,null,null,null,null,null,39.93,3354.45,0,0]
[75957,28,"Echinacea hybrida","Sensation Wild Romance","TC",null,null,null,null,null,null,null,null,null,58.53,1638.71,0,0]
[75957,84,"Echinacea hybrida","Sensation Wild Romance","TC",null,null,null,null,null,null,null,null,null,37.520000000000003,3152.03,0,0]
[75957,40,"Echinacea hybrida","Sensation Wild Romance","TC",null,null,null,null,null,null,null,null,null,44.65,1786.05,0,0]
[75914,84,"Echinacea hybrida","Skipper Honey","TC","✓",null,null,null,null,null,null,null,null,38.21,3209.87,0,0]
[74255,84,"Echinacea hybrida","Skipper Golden","TC","✓",null,null,null,null,null,null,null,null,39.25,3296.62,0,0]
[74256,28,"Echinacea hybrida","Skipper Orange","TC","✓",null,null,null,null,null,null,null,null,60.25,1686.91,0,0]
[74256,84,"Echinacea hybrida","Skipper Orange","TC","✓",null,null,null,null,null,null,null,null,39.25,3296.62,0,0]
[74298,84,"Echinacea hybrida","Skipper Pink","TC","✓",null,null,null,null,null,null,null,null,37.520000000000003,3152.03,0,0]
[79631,28,"Echinacea hybrida","Skipper Red","TC","✓",null,null,null,null,null,null,null,null,58.53,1638.71,0,0]
[79631,84,"Echinacea hybrida","Skipper Red","TC","✓",null,null,null,null,null,null,null,null,37.520000000000003,3152.03,0,0]
[79631,40,"Echinacea hybrida","Skipper Red","TC","✓",null,null,null,null,null,null,null,null,44.65,1786.05,0,0]
[79279,84,"Echinacea hybrida","Southern Belle","TC","✓",null,null,null,null,null,null,null,null,39.93,3354.45,0,0]
[77450,84,"Echinacea hybrida","Strawberry and Cream","TC","✓",null,null,null,null,null,null,null,null,39.25,3296.62,0,0]
[75925,28,"Echinacea hybrida","SunMagic Fantastic Scarlet","TC","✓",null,null,null,null,null,null,null,null,58.53,1638.71,0,0]
[75925,84,"Echinacea hybrida","SunMagic Fantastic Scarlet","TC","✓",null,null,null,null,null,null,null,null,37.520000000000003,3152.03,0,0]
[75925,40,"Echinacea hybrida","SunMagic Fantastic Scarlet","TC","✓",null,null,null,null,null,null,null,null,44.65,1786.05,0,0]
[75924,84,"Echinacea hybrida","SunMagic Fantastic Yellow","TC","✓",null,null,null,null,null,null,null,null,37.520000000000003,3152.03,0,0]
[75924,40,"Echinacea hybrida","SunMagic Fantastic Yellow","TC","✓",null,null,null,null,null,null,null,null,44.65,1786.05,0,0]
[75927,28,"Echinacea hybrida","SunMagic Vintage Orange","TC",null,null,null,null,null,null,null,null,null,58.53,1638.71,0,0]
[75927,84,"Echinacea hybrida","SunMagic Vintage Orange","TC",null,null,null,null,null,null,null,null,null,36.840000000000003,3094.2,0,0]
[75927,40,"Echinacea hybrida","SunMagic Vintage Orange","TC",null,null,null,null,null,null,null,null,null,44.65,1786.05,0,0]
[75920,28,"Echinacea hybrida","SunMagic Vintage Pink","TC","✓",null,null,null,null,null,null,null,null,58.53,1638.71,0,0]
[75920,84,"Echinacea hybrida","SunMagic Vintage Pink","TC","✓",null,null,null,null,null,null,null,null,36.840000000000003,3094.2,0,0]
[75920,40,"Echinacea hybrida","SunMagic Vintage Pink","TC","✓",null,null,null,null,null,null,null,null,44.65,1786.05,0,0]
[75922,28,"Echinacea hybrida","SunMagic Vintage Red","TC","✓",null,null,null,null,null,null,null,null,58.53,1638.71,0,0]
[75922,84,"Echinacea hybrida","SunMagic Vintage Red","TC","✓",null,null,null,null,null,null,null,null,36.840000000000003,3094.2,0,0]
[75922,40,"Echinacea hybrida","SunMagic Vintage Red","TC","✓",null,null,null,null,null,null,null,null,44.65,1786.05,0,0]
[75919,28,"Echinacea hybrida","SunMagic Vintage Ruby","TC","✓",null,null,null,null,null,null,null,null,58.53,1638.71,0,0]
[75919,84,"Echinacea hybrida","SunMagic Vintage Ruby","TC","✓",null,null,null,null,null,null,null,null,36.840000000000003,3094.2,0,0]
[75919,40,"Echinacea hybrida","SunMagic Vintage Ruby","TC","✓",null,null,null,null,null,null,null,null,44.65,1786.05,0,0]
[74247,84,"Echinacea hybrida","Supreme™ Cantaloupe","TC","✓",null,null,null,null,null,null,null,null,40.28,3383.37,0,0]
[77405,84,"Echinacea hybrida","Sweet Meadow Mama","TC","✓",null,null,null,null,null,null,null,null,39.25,3296.62,0,0]
[79680,84,"Echinacea hybrida","Tomato Soup","TC","✓",null,null,null,null,null,null,null,null,40.28,3383.37,0,0]
[74297,84,"Echinacea hybrida","Virgin","TC","✓",null,null,null,null,null,null,null,null,38.21,3209.87,0,0]
[75412,84,"Elymus magellanicus","Elymus magellanicus","RC","✓",null,null,null,null,null,null,null,null,23.41,1966.44,0,0]
[73346,100,"Erigeron glaucus","Sea Breeze","RC",null,null,null,null,null,null,null,null,null,13.04,1304.0999999999999,0,0]
[73345,100,"Erigeron karvinskianus","Erigeron karvinskianus","RC",null,null,null,null,null,null,null,null,null,12.35,1235.25,0,0]
[76802,100,"Erodium reichardii","Album","RC",null,null,null,null,null,null,null,null,null,11.66,1166.4000000000001,0,0]
[71324,100,"Erodium variabile","Bishop's Form","RC","✓",null,null,null,null,null,null,null,null,11.66,1166.4000000000001,0,0]
[74713,100,"Erysimum hybrida","Super Bowl Mauve","RC","✓",null,null,null,null,null,null,null,null,14.76,1476.23,0,0]
[74709,100,"Erysimum hybridum","Constant Cheer","RC","✓",null,null,null,null,null,null,null,null,12.35,1235.25,0,0]
[78317,100,"Eupatorium hybrida","Eureka","RC","✓",null,null,null,null,null,null,null,null,17.170000000000002,1717.2,0,0]
[78103,100,"Eupatorium maculatum","Atropurpureum","RC",null,null,null,null,null,null,null,null,null,14.07,1407.38,0,0]
[78118,100,"Eupatorium maculatum","Baby Joe®","RC","✓",null,null,null,null,null,null,null,null,17.52,1751.63,0,0]
[78120,100,"Eupatorium maculatum","Phantom®","RC","✓",null,null,null,null,null,null,null,null,18.2,1820.48,0,0]
[78316,100,"Eupatorium maculatum","Red Dwarf","RC","✓",null,null,null,null,null,null,null,null,18.2,1820.48,0,0]
[78119,100,"Eupatorium rugosum","Chocolate","RC","✓",null,null,null,null,null,null,null,null,14.07,1407.38,0,0]
[75313,100,"Euphorbia amygdaloides","Miners Merlot","RC","✓",null,null,null,null,null,null,null,null,29.57,2956.5,{"$f":"P654*(G654+H654+I654+J654+K654+L654+M654+N654)","v":0},{"$f":"Q654*1.12","v":0}]
[77417,100,"Euphorbia amygdaloides","Purpurea","RC","✓",null,null,null,null,null,null,null,null,15.45,1545.08,0,0]
[75311,100,"Euphorbia amygdaloides","Redbud","RC",null,null,null,null,null,null,null,null,null,16.48,1648.35,0,0]
[79247,100,"Euphorbia amygdaloides","Robbiae","RC",null,null,null,null,null,null,null,null,null,16.48,1648.35,0,0]
[79623,100,"Euphorbia amygdaloides","Walberton's Ruby Glow","RC","✓",null,null,null,null,null,null,null,null,18.2,1820.48,0,0]
[79245,100,"Euphorbia cyparissias","Fens Ruby","RC","✓",null,null,null,null,null,null,null,null,14.76,1476.23,0,0]
[75316,100,"Euphorbia deflexa","Euphorbia deflexa","RC","✓",null,null,null,null,null,null,null,null,16.48,1648.35,0,0]
[77416,104,"Euphorbia characias","Black Pearl","RC","✓",null,null,null,null,null,null,null,null,24.32,2529.63,0,0]
[75318,104,"Euphorbia characias","Galaxy Glow","RC","✓",null,null,null,null,null,null,null,null,24.32,2529.63,0,0]
[79288,104,"Euphorbia characias","Glacier Blue","RC",null,null,null,null,null,null,null,null,null,31.21,3245.67,0,0]
[79621,104,"Euphorbia characias","Humpty Dumpty","RC",null,null,null,null,null,null,null,null,null,24.32,2529.63,0,0]
[77415,100,"Euphorbia characias","Red Wing","RC",null,null,null,null,null,null,null,null,null,24.4,2440.13,0,0]
[79249,104,"Euphorbia characias","Silver Edge","RC",null,null,null,null,null,null,null,null,null,24.32,2529.63,0,0]
[77428,104,"Euphorbia characias","Silver Swan","RC",null,null,null,null,null,null,null,null,null,32.24,3353.08,0,0]
[79237,100,"Euphorbia characias","Tasmanian Tiger","RC","✓",null,null,null,null,null,null,null,null,34.380000000000003,3438.45,0,0]
[79236,104,"Euphorbia characias subsp. wulfenii","Shorty","RC",null,null,null,null,null,null,null,null,null,16.41,1706.18,0,0]
[79603,104,"Euphorbia polychroma","Purpurea","RC",null,null,null,null,null,null,null,null,null,16.41,1706.18,0,0]
[79248,104,"Euphorbia polychroma","Senior","RC","✓",null,null,null,null,null,null,null,null,16.41,1706.18,0,0]
[75312,100,"Euphorbia schillingii","Euphorbia schillingii","RC",null,null,null,null,null,null,null,null,null,17.86,1786.05,0,0]
[75317,100,"Euphorbia x martinii","Ascot Petite","RC","✓",null,null,null,null,null,null,null,null,20.27,2027.03,0,0]
[79287,100,"Euphorbia x martinii","Ascot Rainbow","RC","✓",null,null,null,null,null,null,null,null,20.27,2027.03,0,0]
[79622,100,"Euphorbia x martinii","Euphorbia x martinii","RC",null,null,null,null,null,null,null,null,null,12.7,1269.68,0,0]
[79372,84,"Fatsia japonica","Spider's Web","TC","✓",null,null,null,null,null,null,null,null,32.020000000000003,2689.36,0,0]
[79097,84,"Festuca gautieri","Pic Carlit","RC","✓",null,null,null,null,null,null,null,null,15.15,1272.43,0,0]
[79095,84,"Festuca glauca","Azurit","RC","✓",null,null,null,null,null,null,null,null,13.77,1156.76,0,0]
[79095,155,"Festuca glauca","Azurit","RC","✓",null,null,null,null,null,null,null,null,10.26,1589.83,0,0]
[79055,84,"Festuca glauca","Blauglut","RC",null,null,null,null,null,null,null,null,null,12.05,1012.18,0,0]
[79056,84,"Festuca glauca","Eisvogel","RC","✓",null,null,null,null,null,null,null,null,13.77,1156.76,0,0]
[79056,155,"Festuca glauca","Eisvogel","RC","✓",null,null,null,null,null,null,null,null,10.26,1589.83,0,0]
[79897,84,"Festuca glauca","Elijah Blue","RC","✓",null,null,null,null,null,null,null,null,13.77,1156.76,0,0]
[79897,155,"Festuca glauca","Elijah Blue","RC","✓",null,null,null,null,null,null,null,null,10.26,1589.83,0,0]
[79109,84,"Festuca glauca","Golden Toupee","RC","✓",null,null,null,null,null,null,null,null,15.15,1272.43,0,0]
[79057,84,"Festuca glauca","Uchte","RC",null,null,null,null,null,null,null,null,null,12.05,1012.18,0,0]
[79146,84,"Ficinia truncata","Frosty Morning","TC",null,null,null,null,null,null,null,null,null,31.33,2631.53,0,0]
[71341,100,"Fuchsia hybrida","David","RC",null,null,null,null,null,null,null,null,null,10.29,1028.7,0,0]
[75802,100,"Fuchsia hybrida","Lady Thumb","RC",null,null,null,null,null,null,null,null,null,10.29,1028.7,0,0]
[71345,100,"Fuchsia hybrida","Madame Cornellissen","RC",null,null,null,null,null,null,null,null,null,10.29,1028.7,0,0]
[75803,100,"Fuchsia hybrida","Mrs Popple","RC",null,null,null,null,null,null,null,null,null,10.29,1028.7,0,0]
[75806,100,"Fuchsia hybrida","Tom Thumb","RC",null,null,null,null,null,null,null,null,null,10.29,1028.7,0,0]
[71344,100,"Fuchsia magellanica","Gracilis","RC","✓",null,null,null,null,null,null,null,null,10.29,1028.7,0,0]
[71398,100,"Fuchsia magellanica","Ricartonii","RC","✓",null,null,null,null,null,null,null,null,10.29,1028.7,0,0]
[71349,100,"Fuchsia magellanica","Tricolorii","RC",null,null,null,null,null,null,null,null,null,10.29,1028.7,0,0]
[74918,100,"Gaillardia aristata","SpinTop™ Mango","RC","✓",null,null,null,null,null,null,null,null,17.86,1786.05,0,0]
[74850,100,"Gaillardia aristata","SpinTop™ Mariachi Copper Sun","RC","✓",null,null,null,null,null,null,null,null,17.86,1786.05,0,0]
[74821,100,"Gaillardia aristata","SpinTop™ Orange Halo Imp.","RC","✓",null,null,null,null,null,null,null,null,17.86,1786.05,0,0]
[74819,100,"Gaillardia aristata","SpinTop™ Red","RC","✓",null,null,null,null,null,null,null,null,17.86,1786.05,0,0]
[73125,100,"Gaillardia aristata","SpinTop™ Red Starbust Imp.","RC","✓",null,null,null,null,null,null,null,null,17.86,1786.05,0,0]
[74820,100,"Gaillardia aristata","SpinTop™ Yellow Touch","RC","✓",null,null,null,null,null,null,null,null,17.86,1786.05,0,0]
[79104,100,"Galium odoratum","Galium odoratum","RC","✓",null,null,null,null,null,null,null,null,13.04,1304.0999999999999,0,0]
[71358,100,"Gaura lindheimeri","Baby Butterfly® Dark Pink","RC",null,null,null,null,null,null,null,null,null,17.52,1751.63,0,0]
[71359,100,"Gaura lindheimeri","Blaze","RC",null,null,null,null,null,null,null,null,null,15.11,1510.65,0,0]
[71351,100,"Gaura lindheimeri","Corrie's Gold","RC",null,null,null,null,null,null,null,null,null,11.32,1131.98,0,0]
[71352,100,"Gaura lindheimeri","Flamingo Pink","RC",null,null,null,null,null,null,null,null,null,14.76,1476.23,0,0]
[71353,100,"Gaura lindheimeri","Flamingo White","RC",null,null,null,null,null,null,null,null,null,14.76,1476.23,0,0]
[71307,100,"Gaura lindheimeri","Gaura lindheimeri","RC","✓",null,null,null,null,null,null,null,null,11.32,1131.98,0,0]
[73897,100,"Gaura lindheimeri","Graceful Blush","RC","✓",null,null,null,null,null,null,null,null,14.42,1441.8,0,0]
[71335,100,"Gaura lindheimeri","Graceful Light Pink","RC","✓",null,null,null,null,null,null,null,null,14.42,1441.8,0,0]
[71397,100,"Gaura lindheimeri","Graceful Pink","RC",null,null,null,null,null,null,null,null,null,14.42,1441.8,0,0]
[71336,100,"Gaura lindheimeri","Graceful White","RC","✓",null,null,null,null,null,null,null,null,14.42,1441.8,0,0]
[71350,100,"Gaura lindheimeri","Cherry Brandy","RC",null,null,null,null,null,null,null,null,null,14.07,1407.38,0,0]
[71303,100,"Gaura lindheimeri","Passionate Blush","RC","✓",null,null,null,null,null,null,null,null,15.8,1579.5,0,0]
[71309,100,"Gaura lindheimeri","Rosy Jane","RC","✓",null,null,null,null,null,null,null,null,18.2,1820.48,0,0]
[71305,100,"Gaura lindheimeri","Siskiyou Pink","RC","✓",null,null,null,null,null,null,null,null,11.32,1131.98,0,0]
[71354,100,"Gaura lindheimeri","Snowbird","RC",null,null,null,null,null,null,null,null,null,11.32,1131.98,0,0]
[71355,100,"Gaura lindheimeri","Snowstorm","RC",null,null,null,null,null,null,null,null,null,11.32,1131.98,{"$f":"P718*(G718+H718+I718+J718+K718+L718+M718+N718)","v":0},{"$f":"Q718*1.12","v":0}]
[71356,100,"Gaura lindheimeri","Tutti Frutti","RC",null,null,null,null,null,null,null,null,null,11.32,1131.98,0,0]
[71310,100,"Gaura lindheimeri","Whirling Butterflies","RC","✓",null,null,null,null,null,null,null,null,11.32,1131.98,0,0]
[71357,100,"Gaura lindheimeri","White Dove","RC",null,null,null,null,null,null,null,null,null,12.35,1235.25,0,0]
[72057,100,"Geranium  clarkei","Kashmir Pink","RC",null,null,null,null,null,null,null,null,null,13.39,1338.53,0,0]
[72058,100,"Geranium  clarkei","Kashmir Purple","RC",null,null,null,null,null,null,null,null,null,13.39,1338.53,0,0]
[72059,100,"Geranium  clarkei","Kashmir White","RC",null,null,null,null,null,null,null,null,null,13.39,1338.53,0,0]
[72077,100,"Geranium cinereum","Ballerina","RC","✓",null,null,null,null,null,null,null,null,17.86,1786.05,0,0]
[72045,100,"Geranium endressii","Geranium endressii","RC","✓",null,null,null,null,null,null,null,null,13.39,1338.53,0,0]
[72075,100,"Geranium endressii","Wargrave Pink","RC",null,null,null,null,null,null,null,null,null,13.39,1338.53,0,0]
[72076,100,"Geranium himalayense","Baby Blue","RC",null,null,null,null,null,null,null,null,null,17.52,1751.63,0,0]
[71111,100,"Geranium himalayense","Geranium himalayense","RC",null,null,null,null,null,null,null,null,null,15.45,1545.08,0,0]
[72067,100,"Geranium himalayense","Plenum","RC",null,null,null,null,null,null,null,null,null,17.52,1751.63,0,0]
[72001,84,"Geranium hybrida","Azure Rush","TC",null,null,null,null,null,null,null,null,null,37.869999999999997,3180.95,0,0]
[72001,84,"Geranium hybrida","Azure Rush","TC",null,null,null,null,null,null,null,null,null,37.18,3123.12,0,0]
[71101,100,"Geranium hybrida","Brookside","RC",null,null,null,null,null,null,null,null,null,16.48,1648.35,0,0]
[72014,84,"Geranium hybrida","Dreamland","TC",null,null,null,null,null,null,null,null,null,36.15,3036.37,0,0]
[72043,100,"Geranium hybrida","Dusky Crug","RC",null,null,null,null,null,null,null,null,null,15.8,1579.5,0,0]
[72044,100,"Geranium hybrida","Elworthy Eyecatcher","RC",null,null,null,null,null,null,null,null,null,19.239999999999998,1923.75,0,0]
[72055,100,"Geranium hybrida","Johnson's Blue","RC",null,null,null,null,null,null,null,null,null,16.48,1648.35,0,0]
[71123,100,"Geranium hybrida","Karen Wouters","RC","✓",null,null,null,null,null,null,null,null,16.14,1613.93,0,0]
[72083,84,"Geranium hybrida","Kelly Anne","TC","✓",null,null,null,null,null,null,null,null,38.9,3267.7,0,0]
[72083,84,"Geranium hybrida","Kelly Anne","TC","✓",null,null,null,null,null,null,null,null,35.799999999999997,3007.45,0,0]
[72063,100,"Geranium hybrida","Nimbus","RC",null,null,null,null,null,null,null,null,null,18.2,1820.48,0,0]
[72065,100,"Geranium hybrida","Orion","RC",null,null,null,null,null,null,null,null,null,16.48,1648.35,0,0]
[71137,100,"Geranium hybrida","Orkney Cherry®","RC",null,null,null,null,null,null,null,null,null,24.4,2440.13,0,0]
[71140,84,"Geranium hybrida","Pink Penny","TC","✓",null,null,null,null,null,null,null,null,37.18,3123.12,0,0]
[71140,84,"Geranium hybrida","Pink Penny","TC","✓",null,null,null,null,null,null,null,null,34.43,2891.78,0,0]
[72066,100,"Geranium hybrida","Pinki Pinks","RC",null,null,null,null,null,null,null,null,null,19.239999999999998,1923.75,0,0]
[71113,84,"Geranium hybrida","Rozanne®","TC","✓",null,null,null,null,null,null,null,null,39.25,3296.62,0,0]
[71113,84,"Geranium hybrida","Rozanne®","TC","✓",null,null,null,null,null,null,null,null,36.15,3036.37,0,0]
[72071,100,"Geranium hybrida","Sirak","RC",null,null,null,null,null,null,null,null,null,19.239999999999998,1923.75,0,0]
[72073,100,"Geranium hybrida","Tanya Rendall","RC",null,null,null,null,null,null,null,null,null,26.47,2646.68,0,0]
[71109,84,"Geranium macrorrhizum","Bevan's Variety","TC/RC","✓",null,null,null,null,null,null,null,null,14.12,1185.68,0,0]
[72005,84,"Geranium macrorrhizum","Czakor","TC/RC","✓",null,null,null,null,null,null,null,null,14.12,1185.68,0,0]
[71129,84,"Geranium macrorrhizum","Geranimo White","TC/RC","✓",null,null,null,null,null,null,null,null,16.18,1359.18,0,0]
[71129,100,"Geranium macrorrhizum","Geranimo White","TC/RC","✓",null,null,null,null,null,null,null,null,15.45,1545.08,0,0]
[72046,100,"Geranium macrorrhizum","Geranium macrorrhizum","RC","✓",null,null,null,null,null,null,null,null,14.76,1476.23,0,0]
[71115,84,"Geranium macrorrhizum","Ingwersen","TC/RC","✓",null,null,null,null,null,null,null,null,14.12,1185.68,0,0]
[71117,84,"Geranium macrorrhizum","Spessart","TC/RC","✓",null,null,null,null,null,null,null,null,14.8,1243.51,0,0]
[71117,100,"Geranium macrorrhizum","Spessart","TC/RC","✓",null,null,null,null,null,null,null,null,14.07,1407.38,0,0]
[72048,100,"Geranium maculatum","Espresso","RC",null,null,null,null,null,null,null,null,null,16.48,1648.35,0,0]
[72041,100,"Geranium maculatum","Chatto","RC",null,null,null,null,null,null,null,null,null,15.45,1545.08,0,0]
[72049,100,"Geranium nodosum","Geranium nodosum","RC",null,null,null,null,null,null,null,null,null,18.2,1820.48,0,0]
[71106,100,"Geranium nodosum","Silverwood","RC",null,null,null,null,null,null,null,null,null,18.2,1820.48,0,0]
[71112,100,"Geranium phaeum","Album","RC","✓",null,null,null,null,null,null,null,null,16.14,1613.93,0,0]
[72050,100,"Geranium phaeum","Geranium phaeum","RC",null,null,null,null,null,null,null,null,null,18.2,1820.48,0,0]
[71104,100,"Geranium phaeum","Samobor","RC",null,null,null,null,null,null,null,null,null,18.2,1820.48,0,0]
[72022,84,"Geranium pratense","Cloud Nine","TC","✓",null,null,null,null,null,null,null,null,39.590000000000003,3325.54,0,0]
[72022,84,"Geranium pratense","Cloud Nine","TC","✓",null,null,null,null,null,null,null,null,37.18,3123.12,0,0]
[71124,84,"Geranium pratense","Midnight Reiter","TC","✓",null,null,null,null,null,null,null,null,32.36,2718.28,0,0]
[71124,84,"Geranium pratense","Midnight Reiter","TC","✓",null,null,null,null,null,null,null,null,29.95,2515.86,0,0]
[72096,100,"Geranium pratense","Mrs Kendall Clark","RC",null,null,null,null,null,null,null,null,null,16.829999999999998,1682.78,0,0]
[72081,84,"Geranium pratense","Storm Cloud","TC","✓",null,null,null,null,null,null,null,null,40.97,3441.2,0,0]
[72081,84,"Geranium pratense","Storm Cloud","TC","✓",null,null,null,null,null,null,null,null,38.56,3238.79,0,0]
[71139,100,"Geranium renardii","Philippe Vapelle","RC",null,null,null,null,null,null,null,null,null,18.2,1820.48,0,0]
[71125,100,"Geranium sanguineum","Album","RC","✓",null,null,null,null,null,null,null,null,13.39,1338.53,0,0]
[71143,100,"Geranium sanguineum","Ankum's Pride","RC","✓",null,null,null,null,null,null,null,null,16.14,1613.93,0,0]
[72070,100,"Geranium sanguineum","Apfelblüte","RC","✓",null,null,null,null,null,null,null,null,16.48,1648.35,0,0]
[72051,100,"Geranium sanguineum","Geranium sanguineum","RC",null,null,null,null,null,null,null,null,null,13.39,1338.53,0,0]
[71105,100,"Geranium sanguineum","Geranium sanguineum ssp. striatum","RC","✓",null,null,null,null,null,null,null,null,13.39,1338.53,0,0]
[71199,100,"Geranium sanguineum","Max Frei","RC","✓",null,null,null,null,null,null,null,null,14.42,1441.8,0,0]
[72021,100,"Geranium sanguineum","Tiny Monster","RC",null,null,null,null,null,null,null,null,null,16.48,1648.35,0,0]
[72054,100,"Geranium sylvaticum","Album","RC",null,null,null,null,null,null,null,null,null,16.829999999999998,1682.78,0,0]
[72090,100,"Geranium sylvaticum","Mayflower","RC",null,null,null,null,null,null,null,null,null,16.829999999999998,1682.78,{"$f":"P782*(G782+H782+I782+J782+K782+L782+M782+N782)","v":0},{"$f":"Q782*1.12","v":0}]
[72052,100,"Geranium versicolor","Geranium versicolor","RC",null,null,null,null,null,null,null,null,null,18.2,1820.48,0,0]
[71128,84,"Geranium wallichianum","Havana Blues®","TC",null,null,null,null,null,null,null,null,null,37.520000000000003,3152.03,0,0]
[71128,84,"Geranium wallichianum","Havana Blues®","TC",null,null,null,null,null,null,null,null,null,36.840000000000003,3094.2,0,0]
[71122,100,"Geranium wlassovianum","Geranium wlassovianum","RC",null,null,null,null,null,null,null,null,null,16.829999999999998,1682.78,0,0]
[71119,84,"Geranium x cantabrigiense","Biokovo","TC/RC","✓",null,null,null,null,null,null,null,null,14.12,1185.68,0,0]
[71119,100,"Geranium x cantabrigiense","Biokovo","TC/RC","✓",null,null,null,null,null,null,null,null,13.73,1372.95,0,0]
[71153,100,"Geranium x cantabrigiense","Cambridge","RC","✓",null,null,null,null,null,null,null,null,13.39,1338.53,0,0]
[72056,100,"Geranium x cantabrigiense","Karmina","RC","✓",null,null,null,null,null,null,null,null,13.39,1338.53,0,0]
[72072,100,"Geranium x cantabrigiense","St Ola","RC","✓",null,null,null,null,null,null,null,null,13.39,1338.53,0,0]
[71107,100,"Geranium x oxonianum","Katherine Adele","RC",null,null,null,null,null,null,null,null,null,15.45,1545.08,0,0]
[72068,100,"Geranium x oxonianum","Rose Clair","RC","✓",null,null,null,null,null,null,null,null,13.39,1338.53,0,0]
[74862,84,"Geum hybrida","Bohema Pink","TC","✓",null,null,null,null,null,null,null,null,32.36,2718.28,0,0]
[71526,100,"Geum hybrida","Flames of Passion","RC",null,null,null,null,null,null,null,null,null,23.02,2302.4299999999998,0,0]
[71526,84,"Geum hybrida","Flames of Passion","TC",null,null,null,null,null,null,null,null,null,30.64,2573.69,0,0]
[74898,84,"Geum hybrida","Golden Joy","TC",null,null,null,null,null,null,null,null,null,27.2,2284.52,0,0]
[74805,100,"Geum hybrida","Leonarde's Variety","RC",null,null,null,null,null,null,null,null,null,25.43,2543.4,0,0]
[71548,100,"Geum hybrida","Mai Tai","RC","✓",null,null,null,null,null,null,null,null,26.47,2646.68,0,0]
[71548,84,"Geum hybrida","Mai Tai","TC","✓",null,null,null,null,null,null,null,null,32.36,2718.28,0,0]
[74935,100,"Geum hybrida","Mango Lassi","RC","✓",null,null,null,null,null,null,null,null,20.27,2027.03,0,0]
[74914,84,"Geum hybrida","Massimo Giallo","TC",null,null,null,null,null,null,null,null,null,32.36,2718.28,0,0]
[75078,84,"Geum hybrida","Nonna","TC","✓",null,null,null,null,null,null,null,null,32.36,2718.28,0,0]
[74863,84,"Geum hybrida","Pink Petticoats","TC","✓",null,null,null,null,null,null,null,null,30.29,2544.7800000000002,0,0]
[74936,100,"Geum hybrida","Prinses Juliana","RC","✓",null,null,null,null,null,null,null,null,20.27,2027.03,0,0]
[74937,100,"Geum hybrida","Sangria","RC","✓",null,null,null,null,null,null,null,null,20.27,2027.03,0,0]
[74855,100,"Geum hybrida","Tales of Hex","RC",null,null,null,null,null,null,null,null,null,30.6,3059.78,0,0]
[74856,100,"Geum hybrida","Tempest Scarlet","RC",null,null,null,null,null,null,null,null,null,24.75,2474.5500000000002,0,0]
[74856,84,"Geum hybrida","Tempest Scarlet","TC",null,null,null,null,null,null,null,null,null,32.36,2718.28,0,0]
[71534,100,"Geum hybrida","Totally Tangerine","RC",null,null,null,null,null,null,null,null,null,26.81,2681.1,0,0]
[71534,84,"Geum hybrida","Totally Tangerine","TC",null,null,null,null,null,null,null,null,null,32.36,2718.28,0,0]
[74913,84,"Geum chiloense","Grande Rosso","TC",null,null,null,null,null,null,null,null,null,32.36,2718.28,0,0]
[74897,84,"Geum chiloense","Samba Sunset","TC","✓",null,null,null,null,null,null,null,null,32.36,2718.28,0,0]
[74228,100,"Gypsophila hybride","Rosenschleier","RC","✓",null,null,null,null,null,null,null,null,21.65,2164.73,0,0]
[77421,100,"Gypsophila paniculata","Festival White Flare","RC","✓",null,null,null,null,null,null,null,null,25.09,2508.98,0,0]
[71047,84,"Gypsophila paniculata","Pink Wedding","TC",null,null,null,null,null,null,null,null,null,28.23,2371.2800000000002,0,0]
[77430,84,"Gypsophila repens","Knuddel","TC","✓",null,null,null,null,null,null,null,null,26.85,2255.61,0,0]
[79995,84,"Hakonechloa macra","Albo-striata","TC","✓",null,null,null,null,null,null,null,null,29.26,2458.0300000000002,0,0]
[79996,84,"Hakonechloa macra","All Gold","TC","✓",null,null,null,null,null,null,null,null,29.26,2458.0300000000002,0,0]
[79926,84,"Hakonechloa macra","Aureola","TC","✓",null,null,null,null,null,null,null,null,27.2,2284.52,0,0]
[75025,84,"Hakonechloa macra","Beni Kaze","TC","✓",null,null,null,null,null,null,null,null,29.26,2458.0300000000002,0,0]
[75024,84,"Hakonechloa macra","Greenhills","TC","✓",null,null,null,null,null,null,null,null,27.2,2284.52,0,0]
[74872,84,"Hakonechloa macra","Mulled Wine","TC","✓",null,null,null,null,null,null,null,null,34.770000000000003,2920.7,0,0]
[79997,84,"Hakonechloa macra","Stripe It Rich","TC","✓",null,null,null,null,null,null,null,null,29.61,2486.94,0,0]
[79015,100,"Helenium autumnale","Ruby Tuesday","RC",null,null,null,null,null,null,null,null,null,17.170000000000002,1717.2,0,0]
[79128,100,"Helenium autumnale","Short And Sassy","RC",null,null,null,null,null,null,null,null,null,20.61,2061.4499999999998,0,0]
[79812,100,"Helenium bigelovii","The Bishop","RC",null,null,null,null,null,null,null,null,null,13.73,1372.95,0,0]
[79106,28,"Helenium hybrida","Bandera","TC","✓",null,null,null,null,null,null,null,null,47.51,1330.26,0,0]
[79106,84,"Helenium hybrida","Bandera","TC","✓",null,null,null,null,null,null,null,null,29.61,2486.94,0,0]
[79817,100,"Helenium hybrida","Carmen","RC",null,null,null,null,null,null,null,null,null,13.73,1372.95,0,0]
[70487,100,"Helenium hybrida","Little Orange","RC","✓",null,null,null,null,null,null,null,null,14.42,1441.8,0,0]
[79082,84,"Helenium hybrida","Mariachi™ Fuego","TC","✓",null,null,null,null,null,null,null,null,29.61,2486.94,0,0]
[79098,84,"Helenium hybrida","Mariachi™ Salsa","TC","✓",null,null,null,null,null,null,null,null,29.61,2486.94,0,0]
[79085,84,"Helenium hybrida","Mariachi™ Siesta","TC","✓",null,null,null,null,null,null,null,null,29.61,2486.94,0,0]
[79083,28,"Helenium hybrida","Mariachi™ Sombrero","TC","✓",null,null,null,null,null,null,null,null,47.51,1330.26,0,0]
[79083,84,"Helenium hybrida","Mariachi™ Sombrero","TC","✓",null,null,null,null,null,null,null,null,29.61,2486.94,0,0]
[79847,100,"Helenium hybrida","Moerheim Beauty","RC",null,null,null,null,null,null,null,null,null,13.73,1372.95,0,0]
[79105,28,"Helenium hybrida","Ranchera","TC","✓",null,null,null,null,null,null,null,null,47.51,1330.26,0,0]
[79105,84,"Helenium hybrida","Ranchera","TC","✓",null,null,null,null,null,null,null,null,29.61,2486.94,0,0]
[79814,100,"Helenium hybrida","Wesergold","RC",null,null,null,null,null,null,null,null,null,13.73,1372.95,0,0]
[75425,100,"Helianthemum hybrida","Amabile Plenum","RC",null,null,null,null,null,null,null,null,null,11.66,1166.4000000000001,0,0]
[74494,100,"Helianthemum hybrida","Ben Hope","RC","✓",null,null,null,null,null,null,null,null,11.66,1166.4000000000001,0,0]
[75409,100,"Helianthemum hybrida","Bronzeteppich","RC","✓",null,null,null,null,null,null,null,null,11.66,1166.4000000000001,0,0]
[74496,100,"Helianthemum hybrida","Cerise Queen","RC",null,null,null,null,null,null,null,null,null,11.66,1166.4000000000001,0,0]
[75429,100,"Helianthemum hybrida","Firedragon","RC",null,null,null,null,null,null,null,null,null,11.66,1166.4000000000001,0,0]
[75448,100,"Helianthemum hybrida","Golden Queen","RC","✓",null,null,null,null,null,null,null,null,11.66,1166.4000000000001,{"$f":"P846*(G846+H846+I846+J846+K846+L846+M846+N846)","v":0},{"$f":"Q846*1.12","v":0}]
[75449,100,"Helianthemum hybrida","Lawrenson's Pink","RC",null,null,null,null,null,null,null,null,null,11.66,1166.4000000000001,0,0]
[75450,100,"Helianthemum hybrida","Sterntaler","RC",null,null,null,null,null,null,null,null,null,11.66,1166.4000000000001,0,0]
[75451,100,"Helianthemum hybrida","Sulph. Plenum","RC",null,null,null,null,null,null,null,null,null,11.66,1166.4000000000001,0,0]
[75452,100,"Helianthemum hybrida","Supreme","RC",null,null,null,null,null,null,null,null,null,11.66,1166.4000000000001,0,0]
[74499,100,"Helianthemum hybrida","The Bride","RC","✓",null,null,null,null,null,null,null,null,11.66,1166.4000000000001,0,0]
[75453,100,"Helianthemum hybrida","Wisley Pink","RC",null,null,null,null,null,null,null,null,null,11.66,1166.4000000000001,0,0]
[77412,84,"Helianthus decapetalus","Suncatcher Pure Gold","RC","✓",null,null,null,null,null,null,null,null,38.56,3238.79,0,0]
[74261,84,"Helianthus decapetalus","Sunshine Daydream","TC","✓",null,null,null,null,null,null,null,null,37.18,3123.12,0,0]
[74267,84,"Helianthus hybrida","Flying Saucers","TC","✓",null,null,null,null,null,null,null,null,33.74,2833.95,0,0]
[74245,84,"Helianthus multiflorus","Double Whammy","TC","✓",null,null,null,null,null,null,null,null,33.74,2833.95,0,0]
[78144,100,"Helichrysum italicum","Dwarf Curry","RC",null,null,null,null,null,null,null,null,null,11.32,1131.98,0,0]
[78144,102,"Helichrysum italicum","Dwarf Curry","RC",null,null,null,null,null,null,null,null,null,11.97,1220.79,0,0]
[77614,100,"Helichrysum italicum","Korma","RC",null,null,null,null,null,null,null,null,null,13.04,1304.0999999999999,0,0]
[77614,102,"Helichrysum italicum","Korma","RC",null,null,null,null,null,null,null,null,null,13.69,1396.36,0,0]
[74312,28,"Heliopsis helianthoides","Oriole Single Yellow","RC","✓",null,null,null,null,null,null,null,null,37.18,1041.0899999999999,0,0]
[74312,84,"Heliopsis helianthoides","Oriole Single Yellow","TC","✓",null,null,null,null,null,null,null,null,31.67,2660.45,0,0]
[74312,100,"Heliopsis helianthoides","Oriole Single Yellow","RC","✓",null,null,null,null,null,null,null,null,22.34,2233.58,0,0]
[73723,84,"Heuchera","Amethyst Myst","TC",null,null,null,null,null,null,null,null,null,27.54,2313.44,0,0]
[76035,84,"Heuchera","Beaujolais","TC",null,null,null,null,null,null,null,null,null,32.36,2718.28,0,0]
[73701,84,"Heuchera","Beauty Colour","TC",null,null,null,null,null,null,null,null,null,27.54,2313.44,0,0]
[73752,84,"Heuchera","Berry Smoothie","TC",null,null,null,null,null,null,null,null,null,36.15,3036.37,0,0]
[73727,84,"Heuchera","Black Forest Cake","TC","✓",null,null,null,null,null,null,null,null,36.15,3036.37,0,0]
[73064,84,"Heuchera","Black Pearl","TC","✓",null,null,null,null,null,null,null,null,34.08,2862.86,0,0]
[73019,84,"Heuchera","Black Taffeta","TC","✓",null,null,null,null,null,null,null,null,36.49,3065.28,0,0]
[73702,84,"Heuchera","Can Can","TC","✓",null,null,null,null,null,null,null,null,27.54,2313.44,0,0]
[73703,84,"Heuchera","Cappuccino","TC",null,null,null,null,null,null,null,null,null,27.54,2313.44,0,0]
[73058,84,"Heuchera","Caramel","TC",null,null,null,null,null,null,null,null,null,32.36,2718.28,0,0]
[76048,84,"Heuchera","Carmencita","TC",null,null,null,null,null,null,null,null,null,34.08,2862.86,0,0]
[76036,84,"Heuchera","Citronelle","TC",null,null,null,null,null,null,null,null,null,32.36,2718.28,0,0]
[73786,84,"Heuchera","Delta Dawn","TC","✓",null,null,null,null,null,null,null,null,36.49,3065.28,0,0]
[73753,84,"Heuchera","Electra","TC","✓",null,null,null,null,null,null,null,null,36.49,3065.28,0,0]
[73795,84,"Heuchera","Fire Alarm","TC","✓",null,null,null,null,null,null,null,null,37.520000000000003,3152.03,0,0]
[73755,84,"Heuchera","Fire Chief","TC","✓",null,null,null,null,null,null,null,null,36.15,3036.37,0,0]
[73024,84,"Heuchera","Forever® Purple","TC","✓",null,null,null,null,null,null,null,null,36.49,3065.28,0,0]
[74484,84,"Heuchera","Forever® Red","TC","✓",null,null,null,null,null,null,null,null,37.520000000000003,3152.03,0,0]
[73796,84,"Heuchera","Galaxy","TC","✓",null,null,null,null,null,null,null,null,35.11,2949.62,0,0]
[73020,84,"Heuchera","Glitter","TC","✓",null,null,null,null,null,null,null,null,36.49,3065.28,0,0]
[76049,84,"Heuchera","Guacamole","TC",null,null,null,null,null,null,null,null,null,34.08,2862.86,0,0]
[73054,84,"Heuchera","Champagne","TC","✓",null,null,null,null,null,null,null,null,36.49,3065.28,0,0]
[73767,84,"Heuchera","Cherry Cola","TC","✓",null,null,null,null,null,null,null,null,36.15,3036.37,0,0]
[76021,84,"Heuchera","Cherry Truffles","TC","✓",null,null,null,null,null,null,null,null,32.700000000000003,2747.2,0,0]
[76025,84,"Heuchera","Chocolate Veil","TC",null,null,null,null,null,null,null,null,null,27.54,2313.44,0,0]
[73777,84,"Heuchera","Kassandra","TC","✓",null,null,null,null,null,null,null,null,31.67,2660.45,0,0]
[76026,null,"Heuchera","Leuchtkäfer","RC",null,null,null,null,null,null,null,null,null,"#########",202.5,0,0]
[73756,84,"Heuchera","Lime Marmalade","TC","✓",null,null,null,null,null,null,null,null,36.15,3036.37,0,0]
[73734,84,"Heuchera","Lime Rickey","TC","✓",null,null,null,null,null,null,null,null,35.11,2949.62,0,0]
[73071,84,"Heuchera","Lime Swizzle","TC","✓",null,null,null,null,null,null,null,null,31.67,2660.45,0,0]
[73063,100,"Heuchera","Little Cutie™ Peppermint","TC","✓",null,null,null,null,null,null,null,null,32.659999999999997,3266.33,0,0]
[73736,84,"Heuchera","Marmalade","TC","✓",null,null,null,null,null,null,null,null,36.15,3036.37,0,0]
[76050,84,"Heuchera","Mega Caramel","TC",null,null,null,null,null,null,null,null,null,34.08,2862.86,0,0]
[73761,84,"Heuchera","Milan","TC","✓",null,null,null,null,null,null,null,null,34.08,2862.86,0,0]
[73780,84,"Heuchera","Neptune","TC","✓",null,null,null,null,null,null,null,null,27.54,2313.44,0,0]
[73065,84,"Heuchera","Northern Exposure™ Amber","TC","✓",null,null,null,null,null,null,null,null,34.08,2862.86,0,0]
[73066,84,"Heuchera","Northern Exposure™ Red","TC","✓",null,null,null,null,null,null,null,null,34.08,2862.86,0,0]
[73738,84,"Heuchera","Obsidian","TC","✓",null,null,null,null,null,null,null,null,36.15,3036.37,0,0]
[73007,84,"Heuchera","Paprika","TC","✓",null,null,null,null,null,null,null,null,36.49,3065.28,0,0]
[73739,84,"Heuchera","Paris","TC","✓",null,null,null,null,null,null,null,null,36.15,3036.37,0,0]
[76022,84,"Heuchera","Peachberry Ice","TC","✓",null,null,null,null,null,null,null,null,32.700000000000003,2747.2,0,0]
[73741,84,"Heuchera","Peppermint Spice","TC","✓",null,null,null,null,null,null,null,null,31.67,2660.45,0,0]
[79978,84,"Heuchera","Pink Panther","TC","✓",null,null,null,null,null,null,null,null,32.700000000000003,2747.2,0,0]
[76051,84,"Heuchera","Pinot Gris","TC",null,null,null,null,null,null,null,null,null,32.36,2718.28,0,0]
[76027,100,"Heuchera","Pluie de Feu","RC",null,null,null,null,null,null,null,null,null,20.96,2095.88,0,0]
[73711,84,"Heuchera","Plum Pudding","TC",null,null,null,null,null,null,null,null,null,33.74,2833.95,0,0]
[73744,100,"Heuchera","Purple Petticoats","RC",null,null,null,null,null,null,null,null,null,20.96,2095.88,{"$f":"P910*(G910+H910+I910+J910+K910+L910+M910+N910)","v":0},{"$f":"Q910*1.12","v":0}]
[76028,84,"Heuchera","Rachel","TC",null,null,null,null,null,null,null,null,null,27.54,2313.44,0,0]
[73027,84,"Heuchera","Red Lightning","TC","✓",null,null,null,null,null,null,null,null,36.49,3065.28,0,0]
[73713,84,"Heuchera","Regina","TC",null,null,null,null,null,null,null,null,null,27.54,2313.44,0,0]
[76032,84,"Heuchera","Rex™ Black","TC","✓",null,null,null,null,null,null,null,null,33.74,2833.95,0,0]
[73045,84,"Heuchera","Rex™ Dark Amber","TC","✓",null,null,null,null,null,null,null,null,33.74,2833.95,0,0]
[76033,84,"Heuchera","Rex™ Fire","TC","✓",null,null,null,null,null,null,null,null,33.74,2833.95,0,0]
[73046,84,"Heuchera","Rex™ Lime","TC","✓",null,null,null,null,null,null,null,null,33.74,2833.95,0,0]
[73069,84,"Heuchera","Rex™ Peppermint","TC","✓",null,null,null,null,null,null,null,null,33.74,2833.95,0,0]
[73068,84,"Heuchera","Rex™ Purple","TC","✓",null,null,null,null,null,null,null,null,33.74,2833.95,0,0]
[73047,84,"Heuchera","Rex™ Red","TC","✓",null,null,null,null,null,null,null,null,33.74,2833.95,0,0]
[76034,84,"Heuchera","Rex™ Silver","TC","✓",null,null,null,null,null,null,null,null,33.74,2833.95,0,0]
[73008,84,"Heuchera","Rio","TC","✓",null,null,null,null,null,null,null,null,34.08,2862.86,0,0]
[73091,84,"Heuchera","Rockies Amber","TC","✓",null,null,null,null,null,null,null,null,30.64,2573.69,0,0]
[73092,84,"Heuchera","Rockies Black","TC","✓",null,null,null,null,null,null,null,null,30.64,2573.69,0,0]
[73764,84,"Heuchera","Shanghai","TC","✓",null,null,null,null,null,null,null,null,36.49,3065.28,0,0]
[73742,84,"Heuchera","Schneewittchen","TC",null,null,null,null,null,null,null,null,null,27.54,2313.44,0,0]
[73078,84,"Heuchera","Silver Gumdrop","TC","✓",null,null,null,null,null,null,null,null,32.36,2718.28,0,0]
[73782,84,"Heuchera","Silver Scrolls","TC","✓",null,null,null,null,null,null,null,null,32.700000000000003,2747.2,0,0]
[76024,84,"Heuchera","Timeless Night","TC","✓",null,null,null,null,null,null,null,null,32.700000000000003,2747.2,0,0]
[76052,84,"Heuchera","Tiramisu","TC",null,null,null,null,null,null,null,null,null,32.36,2718.28,0,0]
[73028,84,"Heuchera","Tokyo","TC","✓",null,null,null,null,null,null,null,null,34.08,2862.86,0,0]
[73792,84,"Heuchera","Venus","TC","✓",null,null,null,null,null,null,null,null,27.54,2313.44,0,0]
[73079,84,"Heuchera","Wild Rose","TC","✓",null,null,null,null,null,null,null,null,32.36,2718.28,0,0]
[73014,84,"Heuchera","World Caffé™ Amaretto","TC","✓",null,null,null,null,null,null,null,null,28.92,2429.11,0,0]
[73050,84,"Heuchera","World Caffé™ Americano","TC","✓",null,null,null,null,null,null,null,null,28.92,2429.11,0,0]
[73077,84,"Heuchera","World Caffé™ Arabica","TC","✓",null,null,null,null,null,null,null,null,28.92,2429.11,0,0]
[73048,84,"Heuchera","World Caffé™ Corretto","TC","✓",null,null,null,null,null,null,null,null,28.92,2429.11,0,0]
[73049,84,"Heuchera","World Caffé™ Espresso","TC","✓",null,null,null,null,null,null,null,null,28.92,2429.11,0,0]
[76031,84,"Heuchera","World Caffé™ Frappe","TC","✓",null,null,null,null,null,null,null,null,28.92,2429.11,0,0]
[73059,84,"Heuchera","World Caffé™ Lime Americano","TC","✓",null,null,null,null,null,null,null,null,28.92,2429.11,0,0]
[76030,84,"Heuchera","World Caffé™ Lungo","TC",null,null,null,null,null,null,null,null,null,28.92,2429.11,0,0]
[73051,84,"Heuchera","World Caffé™ Romano","TC",null,null,null,null,null,null,null,null,null,28.92,2429.11,0,0]
[73017,84,"Heuchera","World Caffé™ Shakerato","TC","✓",null,null,null,null,null,null,null,null,28.92,2429.11,0,0]
[76029,84,"Heuchera","World Caffé™ Vienna","TC","✓",null,null,null,null,null,null,null,null,28.92,2429.11,0,0]
[73708,100,"Heuchera americana","Palace Purple","RC",null,null,null,null,null,null,null,null,null,24.06,2405.6999999999998,0,0]
[74415,84,"Heucherella hybrida","Bridget Bloom","TC","✓",null,null,null,null,null,null,null,null,28.23,2371.2800000000002,0,0]
[74428,84,"Heucherella hybrida","Buttered Rum","TC","✓",null,null,null,null,null,null,null,null,33.74,2833.95,0,0]
[78960,84,"Heucherella hybrida","Diamond Revolution","TC","✓",null,null,null,null,null,null,null,null,35.799999999999997,3007.45,0,0]
[70703,84,"Heucherella hybrida","Gold Zebra","TC","✓",null,null,null,null,null,null,null,null,33.74,2833.95,0,0]
[75419,84,"Heucherella hybrida","Hopscotch","TC",null,null,null,null,null,null,null,null,null,32.36,2718.28,0,0]
[74440,84,"Heucherella hybrida","Mojito","TC","✓",null,null,null,null,null,null,null,null,34.770000000000003,2920.7,0,0]
[74491,84,"Heucherella hybrida","Pink Revolution","TC","✓",null,null,null,null,null,null,null,null,35.799999999999997,3007.45,0,0]
[73057,84,"Heucherella hybrida","Plum Cascade","TC",null,null,null,null,null,null,null,null,null,32.36,2718.28,0,0]
[70735,84,"Heucherella hybrida","Solar Eclipse","TC","✓",null,null,null,null,null,null,null,null,36.15,3036.37,0,0]
[79440,84,"Heucherella hybrida","Stoplight","TC","✓",null,null,null,null,null,null,null,null,33.74,2833.95,0,0]
[70704,84,"Heucherella hybrida","Sweet Tea","TC","✓",null,null,null,null,null,null,null,null,36.15,3036.37,0,0]
[79442,84,"Heucherella hybrida","Tapestry","TC",null,null,null,null,null,null,null,null,null,33.74,2833.95,0,0]
[74486,84,"Heucherella hybrida","White Revolution","TC","✓",null,null,null,null,null,null,null,null,35.799999999999997,3007.45,0,0]
[79197,84,"Hibiscus hybrida","Starry Night","TC",null,null,null,null,null,null,null,null,null,35.46,2978.53,0,0]
[79196,84,"Hibiscus hybrida","Summerific® Holy Grail","TC",null,null,null,null,null,null,null,null,null,35.46,2978.53,0,0]
[73886,84,"Hosta","Age of Gold","TC","✓",null,null,null,null,null,null,null,null,34.43,2891.78,0,0]
[73881,84,"Hosta","American Halo","TC","✓",null,null,null,null,null,null,null,null,30.64,2573.69,0,0]
[73879,84,"Hosta","Autumn Frost","TC","✓",null,null,null,null,null,null,null,null,34.43,2891.78,0,0]
[73884,84,"Hosta","Big Daddy","TC","✓",null,null,null,null,null,null,null,null,30.64,2573.69,0,0]
[73803,84,"Hosta","Blue Angel","TC","✓",null,null,null,null,null,null,null,null,30.64,2573.69,0,0]
[73887,84,"Hosta","Blue Mouse Ears","TC","✓",null,null,null,null,null,null,null,null,30.64,2573.69,0,0]
[73862,84,"Hosta","Brim Cup","TC",null,null,null,null,null,null,null,null,null,30.64,2573.69,0,0]
[73885,84,"Hosta","Diamond Lake","TC","✓",null,null,null,null,null,null,null,null,34.43,2891.78,0,0]
[73890,84,"Hosta","Dream Queen","TC","✓",null,null,null,null,null,null,null,null,30.64,2573.69,0,0]
[73832,84,"Hosta","Elegans","TC","✓",null,null,null,null,null,null,null,null,30.64,2573.69,0,0]
[73806,84,"Hosta","Fire & Ice","TC","✓",null,null,null,null,null,null,null,null,30.64,2573.69,0,0]
[73807,84,"Hosta","Fragrant Blue","TC","✓",null,null,null,null,null,null,null,null,30.64,2573.69,0,0]
[73808,84,"Hosta","Francee","TC","✓",null,null,null,null,null,null,null,null,30.64,2573.69,0,0]
[71946,84,"Hosta","Grandiflora","TC",null,null,null,null,null,null,null,null,null,30.64,2573.69,{"$f":"P974*(G974+H974+I974+J974+K974+L974+M974+N974)","v":0},{"$f":"Q974*1.12","v":0}]
[73809,84,"Hosta","Great Expectations","TC","✓",null,null,null,null,null,null,null,null,30.64,2573.69,0,0]
[73899,84,"Hosta","Halcyon","TC","✓",null,null,null,null,null,null,null,null,30.64,2573.69,0,0]
[73882,84,"Hosta","Hans","TC","✓",null,null,null,null,null,null,null,null,38.9,3267.7,0,0]
[71935,84,"Hosta","June","TC","✓",null,null,null,null,null,null,null,null,30.64,2573.69,0,0]
[71953,84,"Hosta","Liberty","TC","✓",null,null,null,null,null,null,null,null,40.28,3383.37,0,0]
[73813,84,"Hosta","Minute Man","TC","✓",null,null,null,null,null,null,null,null,30.64,2573.69,0,0]
[73816,84,"Hosta","Patriot","TC","✓",null,null,null,null,null,null,null,null,30.64,2573.69,0,0]
[73892,84,"Hosta","Pocketful of Sunshine","TC","✓",null,null,null,null,null,null,null,null,37.520000000000003,3152.03,0,0]
[71916,84,"Hosta","Praying Hands","TC","✓",null,null,null,null,null,null,null,null,30.64,2573.69,0,0]
[73876,84,"Hosta","Purple Heart","TC","✓",null,null,null,null,null,null,null,null,38.56,3238.79,0,0]
[73877,84,"Hosta","Raspberry Sundae","TC","✓",null,null,null,null,null,null,null,null,35.799999999999997,3007.45,0,0]
[73878,84,"Hosta","Regal Splendor","TC","✓",null,null,null,null,null,null,null,null,30.64,2573.69,0,0]
[73894,84,"Hosta","Shadowland® Coast to Coast","TC",null,null,null,null,null,null,null,null,null,40.97,3441.2,0,0]
[73893,84,"Hosta","Shadowland® Wheee!","TC","✓",null,null,null,null,null,null,null,null,40.97,3441.2,0,0]
[73895,84,"Hosta","Shadowland® Wu La La","TC","✓",null,null,null,null,null,null,null,null,40.97,3441.2,0,0]
[73883,84,"Hosta","School Mouse","TC","✓",null,null,null,null,null,null,null,null,34.43,2891.78,0,0]
[73861,84,"Hosta","Stained Glass","TC","✓",null,null,null,null,null,null,null,null,30.64,2573.69,0,0]
[73824,84,"Hosta","Sum & Substance","TC","✓",null,null,null,null,null,null,null,null,30.64,2573.69,0,0]
[73880,84,"Hosta","Sun Mouse","TC","✓",null,null,null,null,null,null,null,null,34.43,2891.78,0,0]
[73888,84,"Hosta","Waterslide","TC","✓",null,null,null,null,null,null,null,null,34.43,2891.78,0,0]
[73825,84,"Hosta","Wide Brim","TC","✓",null,null,null,null,null,null,null,null,30.64,2573.69,0,0]
[78121,100,"Houttuynia cordata","Chameleon","RC","✓",null,null,null,null,null,null,null,null,11.32,1131.98,0,0]
[78158,100,"Hypericum calycinum","Hypericum calycinum","RC","✓",null,null,null,null,null,null,null,null,11.32,1131.98,0,0]
[76419,100,"Hypsela reniformis","Hypsela reniformis","RC","✓",null,null,null,null,null,null,null,null,12.01,1200.83,0,0]
[71384,100,"Chelone obliqua","Alba","RC",null,null,null,null,null,null,null,null,null,13.73,1372.95,0,0]
[71383,100,"Chelone obliqua","Chelone obliqua","RC",null,null,null,null,null,null,null,null,null,13.73,1372.95,0,0]
[73341,100,"Chrysanthemum hybrida","Duchess of Edinburgh","RC","✓",null,null,null,null,null,null,null,null,10.63,1063.1300000000001,0,0]
[73340,100,"Chrysanthemum rubellum","Clara Curtis","RC","✓",null,null,null,null,null,null,null,null,10.63,1063.1300000000001,0,0]
[71509,100,"Iberis sempervirens","Absolutely Amethyst","RC",null,null,null,null,null,null,null,null,null,12.7,1269.68,0,0]
[71511,100,"Iberis sempervirens","Alexander's White","RC",null,null,null,null,null,null,null,null,null,12.7,1269.68,0,0]
[71512,100,"Iberis sempervirens","Appen Etz","RC",null,null,null,null,null,null,null,null,null,12.7,1269.68,0,0]
[71510,100,"Iberis sempervirens","Fishbeck","RC",null,null,null,null,null,null,null,null,null,12.7,1269.68,0,0]
[79367,100,"Iberis sempervirens","Masterpiece","RC","✓",null,null,null,null,null,null,null,null,16.48,1648.35,0,0]
[75060,100,"Iberis sempervirens","Pink Ice","RC","✓",null,null,null,null,null,null,null,null,16.48,1648.35,0,0]
[79927,100,"Iberis sempervirens","Snowflake","RC","✓",null,null,null,null,null,null,null,null,12.7,1269.68,0,0]
[71601,100,"Iberis sempervirens","Weisser Zwerg","RC",null,null,null,null,null,null,null,null,null,12.7,1269.68,0,0]
[79323,18,"Imperata cylindrica","Red Baron","RC","✓",null,null,null,null,null,null,null,null,60.13,1082.4000000000001,0,0]
[79323,84,"Imperata cylindrica","Red Baron","RC","✓",null,null,null,null,null,null,null,null,20.66,1735.1,0,0]
[79323,40,"Imperata cylindrica","Red Baron","RC","✓",null,null,null,null,null,null,null,null,34.32,1372.95,0,0]
[71394,100,"Isotoma fluviatilis","Alba","RC","✓",null,null,null,null,null,null,null,null,11.32,1131.98,0,0]
[71371,100,"Isotoma fluviatilis","Dark Blue","RC",null,null,null,null,null,null,null,null,null,11.32,1131.98,0,0]
[71372,100,"Isotoma fluviatilis","Isotoma fluviatilis","RC","✓",null,null,null,null,null,null,null,null,11.32,1131.98,0,0]
[72809,100,"Kalimeris incisa","Alba","RC",null,null,null,null,null,null,null,null,null,10.98,1097.55,0,0]
[72811,100,"Kalimeris incisa","Blue Star","RC","✓",null,null,null,null,null,null,null,null,10.98,1097.55,0,0]
[72812,100,"Kalimeris incisa","Madiva","RC",null,null,null,null,null,null,null,null,null,10.98,1097.55,0,0]
[72814,100,"Kalimeris incisa","Nana Blue (Aster ageratoides 'Adustus Nanus')","RC",null,null,null,null,null,null,null,null,null,11.66,1166.4000000000001,0,0]
[75088,84,"Kniphofia hybrida","Banana Popsicle","TC","✓",null,null,null,null,null,null,null,null,34.43,2891.78,0,0]
[79345,84,"Kniphofia hybrida","Mango Popsicle","TC","✓",null,null,null,null,null,null,null,null,34.43,2891.78,0,0]
[79346,84,"Kniphofia hybrida","Papaya Popsicle","TC","✓",null,null,null,null,null,null,null,null,34.43,2891.78,0,0]
[79931,28,"Kniphofia hybrida","Poco Citron","TC","✓",null,null,null,null,null,null,null,null,46.13,1291.71,0,0]
[79931,84,"Kniphofia hybrida","Poco Citron","TC","✓",null,null,null,null,null,null,null,null,34.43,2891.78,0,0]
[75146,28,"Kniphofia hybrida","Poco Daybreak","TC",null,null,null,null,null,null,null,null,null,46.13,1291.71,0,0]
[75146,84,"Kniphofia hybrida","Poco Daybreak","TC",null,null,null,null,null,null,null,null,null,34.43,2891.78,0,0]
[75040,28,"Kniphofia hybrida","Poco Orange","TC","✓",null,null,null,null,null,null,null,null,46.13,1291.71,0,0]
[75040,84,"Kniphofia hybrida","Poco Orange","TC","✓",null,null,null,null,null,null,null,null,34.43,2891.78,0,0]
[75041,28,"Kniphofia hybrida","Poco Red","TC","✓",null,null,null,null,null,null,null,null,46.13,1291.71,0,0]
[75041,84,"Kniphofia hybrida","Poco Red","TC","✓",null,null,null,null,null,null,null,null,34.43,2891.78,0,0]
[75054,28,"Kniphofia hybrida","Poco Yellow","TC","✓",null,null,null,null,null,null,null,null,46.13,1291.71,0,0]
[75054,84,"Kniphofia hybrida","Poco Yellow","TC","✓",null,null,null,null,null,null,null,null,34.43,2891.78,0,0]
[79376,84,"Kniphofia hybrida","Redhot Popsicle","TC","✓",null,null,null,null,null,null,null,null,34.43,2891.78,0,0]
[75147,28,"Kniphofia hybrida","Rocket Jr.","TC",null,null,null,null,null,null,null,null,null,46.13,1291.71,0,0]
[75147,84,"Kniphofia hybrida","Rocket Jr.","TC",null,null,null,null,null,null,null,null,null,34.43,2891.78,0,0]
[71374,100,"Lamiastrum galeobdolon","Florentinum","RC",null,null,null,null,null,null,null,null,null,10.98,1097.55,0,0]
[71326,100,"Lamiastrum galeobdolon","Herman's Pride","RC",null,null,null,null,null,null,null,null,null,10.98,1097.55,{"$f":"P1038*(G1038+H1038+I1038+J1038+K1038+L1038+M1038+N1038)","v":0},{"$f":"Q1038*1.12","v":0}]
[71375,100,"Lamiastrum galeobdolon","Lamiastrum galeobdolon","RC",null,null,null,null,null,null,null,null,null,10.98,1097.55,0,0]
[76729,100,"Lamium maculatum","Album","RC",null,null,null,null,null,null,null,null,null,10.98,1097.55,0,0]
[76708,100,"Lamium maculatum","Anne Greenaway","RC",null,null,null,null,null,null,null,null,null,10.98,1097.55,0,0]
[76715,100,"Lamium maculatum","Beacon Silver","RC",null,null,null,null,null,null,null,null,null,10.98,1097.55,0,0]
[76706,100,"Lamium maculatum","Pink Pewter","RC","✓",null,null,null,null,null,null,null,null,10.98,1097.55,0,0]
[76709,100,"Lamium maculatum","Purple Dragon","RC","✓",null,null,null,null,null,null,null,null,12.01,1200.83,0,0]
[76712,100,"Lamium maculatum","Red Nancy","RC","✓",null,null,null,null,null,null,null,null,10.98,1097.55,0,0]
[76713,100,"Lamium maculatum","Roseum","RC",null,null,null,null,null,null,null,null,null,10.98,1097.55,0,0]
[76714,100,"Lamium maculatum","Shell Pink","RC",null,null,null,null,null,null,null,null,null,10.98,1097.55,0,0]
[76707,100,"Lamium maculatum","White Nancy","RC",null,null,null,null,null,null,null,null,null,10.98,1097.55,0,0]
[76731,100,"Lamium orvala","Lamium orvala","RC",null,null,null,null,null,null,null,null,null,13.39,1338.53,0,0]
[75031,100,"Lavandula angustifolia","Arctic Snow","RC","✓",null,null,null,null,null,null,null,null,9.6,959.85,0,0]
[79199,100,"Lavandula angustifolia","Dwarf Blue","RC","✓",null,null,null,null,null,null,null,null,9.6,959.85,0,0]
[74857,100,"Lavandula angustifolia","Dwarf Silver","RC",null,null,null,null,null,null,null,null,null,9.6,959.85,0,0]
[75006,100,"Lavandula angustifolia","Grosso","RC","✓",null,null,null,null,null,null,null,null,9.6,959.85,0,0]
[74861,100,"Lavandula angustifolia","Hidcote","RC",null,null,null,null,null,null,null,null,null,9.6,959.85,0,0]
[79313,84,"Lavandula angustifolia","Hidcote Blue","RC","✓",null,null,null,null,null,null,null,null,11.71,983.26,0,0]
[74849,100,"Lavandula angustifolia","Lavandula angustifolia Vera","RC","✓",null,null,null,null,null,null,null,null,9.6,959.85,0,0]
[79325,100,"Lavandula angustifolia","Munstead","RC","✓",null,null,null,null,null,null,null,null,9.6,959.85,0,0]
[79325,84,"Lavandula angustifolia","Munstead","RC","✓",null,null,null,null,null,null,null,null,11.71,983.26,0,0]
[71575,100,"Lavandula angustifolia","Rosea","RC","✓",null,null,null,null,null,null,null,null,9.6,959.85,0,0]
[71575,84,"Lavandula angustifolia","Rosea","RC","✓",null,null,null,null,null,null,null,null,12.39,1041.0899999999999,0,0]
[75032,100,"Lavandula angustifolia","Thumbelina Leigh","RC",null,null,null,null,null,null,null,null,null,12.35,1235.25,0,0]
[75032,84,"Lavandula angustifolia","Thumbelina Leigh","RC",null,null,null,null,null,null,null,null,null,15.15,1272.43,0,0]
[74878,100,"Lavandula hybrida","Richard Gray","RC",null,null,null,null,null,null,null,null,null,9.6,959.85,0,0]
[79167,100,"Lavandula stoechas","Blue Star","RC",null,null,null,null,null,null,null,null,null,9.6,959.85,0,0]
[74839,100,"Lavandula stoechas ssp pedunculata","Papillon","RC",null,null,null,null,null,null,null,null,null,10.63,1063.1300000000001,0,0]
[79107,100,"Lavandula x intermedia","Alba","RC",null,null,null,null,null,null,null,null,null,9.6,959.85,0,0]
[79198,100,"Lavandula x intermedia","Dutch","RC",null,null,null,null,null,null,null,null,null,9.6,959.85,0,0]
[71574,100,"Lavandula x intermedia","Edelweiss","RC","✓",null,null,null,null,null,null,null,null,9.6,959.85,0,0]
[71574,84,"Lavandula x intermedia","Edelweiss","RC","✓",null,null,null,null,null,null,null,null,11.71,983.26,0,0]
[74920,84,"Lavandula x intermedia","Exceptional","RC","✓",null,null,null,null,null,null,null,null,19.28,1619.43,0,0]
[74920,100,"Lavandula x intermedia","Exceptional","RC","✓",null,null,null,null,null,null,null,null,18.55,1854.9,0,0]
[75033,100,"Lavandula x intermedia","Grappenhall","RC",null,null,null,null,null,null,null,null,null,9.6,959.85,0,0]
[75079,100,"Lavandula x intermedia","Phenomenal","RC","✓",null,null,null,null,null,null,null,null,14.42,1441.8,0,0]
[75079,84,"Lavandula x intermedia","Phenomenal","RC","✓",null,null,null,null,null,null,null,null,15.15,1272.43,0,0]
[75080,84,"Lavandula x intermedia","Platinum Blonde","RC","✓",null,null,null,null,null,null,null,null,15.84,1330.26,0,0]
[75007,100,"Lavandula x intermedia","Provence","RC",null,null,null,null,null,null,null,null,null,9.6,959.85,0,0]
[74912,84,"Lavandula x intermedia","Sensational","RC","✓",null,null,null,null,null,null,null,null,19.28,1619.43,0,0]
[74912,100,"Lavandula x intermedia","Sensational","RC","✓",null,null,null,null,null,null,null,null,18.55,1854.9,0,0]
[79191,100,"Lavatera hybrida","Barnsley Baby","RC","✓",null,null,null,null,null,null,null,null,15.45,1545.08,0,0]
[72833,100,"Lavatera hybrida","Blushing Bride","RC","✓",null,null,null,null,null,null,null,null,13.73,1372.95,0,0]
[72815,100,"Lavatera hybrida","Bredon Springs","RC","✓",null,null,null,null,null,null,null,null,13.73,1372.95,0,0]
[72817,100,"Lavatera hybrida","Duet","RC","✓",null,null,null,null,null,null,null,null,18.89,1889.33,0,0]
[78910,100,"Lavatera hybrida","Lilac Lady","RC","✓",null,null,null,null,null,null,null,null,13.73,1372.95,0,0]
[72820,100,"Lavatera hybrida","White Angel","RC","✓",null,null,null,null,null,null,null,null,13.73,1372.95,0,0]
[72831,100,"Lavatera x clementii","Burgundy Wine","RC",null,null,null,null,null,null,null,null,null,13.73,1372.95,0,0]
[79131,40,"Leontopodium alpinum","May Snow","TC/RC",null,null,null,null,null,null,null,null,null,25.03,1001.16,0,0]
[79132,40,"Leontopodium alpinum","Star of Alps","TC/RC","✓",null,null,null,null,null,null,null,null,25.03,1001.16,0,0]
[72823,100,"Leptinella squalida","Leptinella squalida","RC",null,null,null,null,null,null,null,null,null,12.01,1200.83,0,0]
[72825,100,"Leptinella squalida","Platt's Black","RC","✓",null,null,null,null,null,null,null,null,12.01,1200.83,0,0]
[74470,100,"Leucanthemum x superbum","Becky","RC",null,null,null,null,null,null,null,null,null,15.8,1579.5,0,0]
[70786,84,"Leucanthemum x superbum","Goldfinch","TC","✓",null,null,null,null,null,null,null,null,29.95,2515.86,0,0]
[74454,84,"Leucanthemum x superbum","Luna","TC","✓",null,null,null,null,null,null,null,null,29.95,2515.86,0,0]
[74471,84,"Leucanthemum x superbum","Macaroon","TC","✓",null,null,null,null,null,null,null,null,29.95,2515.86,0,0]
[70796,100,"Leucanthemum x superbum","Sante","RC",null,null,null,null,null,null,null,null,null,18.55,1854.9,0,0]
[70752,100,"Leucanthemum x superbum","Snow Cap","RC","✓",null,null,null,null,null,null,null,null,14.07,1407.38,0,0]
[75447,100,"Leucanthemum x superbum","Spoon Full of Sugar","RC",null,null,null,null,null,null,null,null,null,19.239999999999998,1923.75,0,0]
[75422,100,"Leucanthemum x superbum","Sweet Daisy™ Cher","RC","✓",null,null,null,null,null,null,null,null,16.48,1648.35,0,0]
[75420,100,"Leucanthemum x superbum","Sweet Daisy™ Christine","RC","✓",null,null,null,null,null,null,null,null,16.48,1648.35,0,0]
[70776,100,"Leucanthemum x superbum","Sweet Daisy™ Izabel","RC","✓",null,null,null,null,null,null,null,null,16.48,1648.35,0,0]
[75421,100,"Leucanthemum x superbum","Sweet Daisy™ Jane","RC","✓",null,null,null,null,null,null,null,null,16.48,1648.35,0,0]
[70770,100,"Leucanthemum x superbum","Sweet Daisy™ Rebecca","RC","✓",null,null,null,null,null,null,null,null,16.48,1648.35,0,0]
[77375,100,"Leucanthemum x superbum","Sweet Daisy™ Shelly","RC","✓",null,null,null,null,null,null,null,null,16.48,1648.35,{"$f":"P1102*(G1102+H1102+I1102+J1102+K1102+L1102+M1102+N1102)","v":0},{"$f":"Q1102*1.12","v":0}]
[70719,84,"Leucanthemum x superbum","Victorian Secret","TC","✓",null,null,null,null,null,null,null,null,29.95,2515.86,0,0]
[70719,40,"Leucanthemum x superbum","Victorian Secret","TC","✓",null,null,null,null,null,null,null,null,38.799999999999997,1551.96,0,0]
[74441,100,"Leucanthemum x superbum","Wirral Supreme","RC",null,null,null,null,null,null,null,null,null,15.8,1579.5,0,0]
[72827,100,"Lindernia grandiflora","Lindernia grandiflora","RC",null,null,null,null,null,null,null,null,null,12.01,1200.83,0,0]
[78123,100,"Lithodora diffusa","Alba","RC",null,null,null,null,null,null,null,null,null,12.01,1200.83,0,0]
[78124,100,"Lithodora diffusa","Grace Ward","RC",null,null,null,null,null,null,null,null,null,12.01,1200.83,0,0]
[78125,100,"Lithodora diffusa","Heavenly Blue","RC","✓",null,null,null,null,null,null,null,null,12.01,1200.83,0,0]
[75711,100,"Lobelia speciosa","Russian Princess","RC",null,null,null,null,null,null,null,null,null,14.07,1407.38,0,0]
[75601,18,"Lomandra longifolia","White Sands","RC",null,null,null,null,null,null,null,null,null,111.43,2005.68,0,0]
[75601,84,"Lomandra longifolia","White Sands","RC",null,null,null,null,null,null,null,null,null,38.56,3238.79,0,0]
[70118,84,"Luzula pilosa","Igel","RC","✓",null,null,null,null,null,null,null,null,14.46,1214.5999999999999,0,0]
[71377,100,"Lysimachia ciliata","Firecracker","RC",null,null,null,null,null,null,null,null,null,12.01,1200.83,0,0]
[71380,100,"Lysimachia congestiflora","Persian Chocolate","RC","✓",null,null,null,null,null,null,null,null,12.01,1200.83,0,0]
[70160,100,"Lysimachia nummularia","Aurea (Goldilocks)","RC","✓",null,null,null,null,null,null,null,null,9.94,994.28,0,0]
[71379,100,"Lysimachia nummularia","Lysimachia nummularia","RC",null,null,null,null,null,null,null,null,null,9.94,994.28,0,0]
[71331,100,"Lysimachia punctata","Alexander","RC",null,null,null,null,null,null,null,null,null,12.01,1200.83,0,0]
[77376,100,"Lythrum hybrida","Luminara Hot Pink","RC","✓",null,null,null,null,null,null,null,null,15.45,1545.08,0,0]
[77387,100,"Lythrum hybrida","Luminara Lilac","RC","✓",null,null,null,null,null,null,null,null,15.45,1545.08,0,0]
[75294,100,"Lythrum salicaria","Blush","RC",null,null,null,null,null,null,null,null,null,12.01,1200.83,0,0]
[75279,100,"Lythrum salicaria","Pink Blush","RC","✓",null,null,null,null,null,null,null,null,12.7,1269.68,0,0]
[79714,100,"Lythrum salicaria","Robert","RC",null,null,null,null,null,null,null,null,null,12.01,1200.83,0,0]
[75295,100,"Lythrum salicaria","Robin","RC",null,null,null,null,null,null,null,null,null,12.01,1200.83,0,0]
[75292,100,"Lythrum virgatum","Dropmore Purple","RC","✓",null,null,null,null,null,null,null,null,12.01,1200.83,0,0]
[71413,100,"Malva sylvestris","Blue Fountain","RC",null,null,null,null,null,null,null,null,null,20.27,2027.03,0,0]
[78131,100,"Malva sylvestris","Primley Blue","RC","✓",null,null,null,null,null,null,null,null,13.39,1338.53,0,0]
[78132,100,"Mazus reptans","Albus","RC",null,null,null,null,null,null,null,null,null,10.63,1063.1300000000001,0,0]
[78188,100,"Mazus reptans","Mazus reptans","RC","✓",null,null,null,null,null,null,null,null,10.63,1063.1300000000001,0,0]
[73369,100,"Mentha aquatica","Marokkanische","RC",null,null,null,null,null,null,null,null,null,10.98,1097.55,0,0]
[79026,100,"Mentha piperita","Chocolate","RC",null,null,null,null,null,null,null,null,null,10.98,1097.55,0,0]
[73349,100,"Mentha piperita","Mentha piperita","RC",null,null,null,null,null,null,null,null,null,10.98,1097.55,0,0]
[73371,100,"Mentha requienii","Mentha requienii","RC",null,null,null,null,null,null,null,null,null,10.98,1097.55,0,0]
[73352,100,"Mentha rotundifolia","Eau de Cologne","RC",null,null,null,null,null,null,null,null,null,10.98,1097.55,0,0]
[73351,100,"Mentha rotundifolia","Variegata","RC",null,null,null,null,null,null,null,null,null,10.98,1097.55,0,0]
[73350,100,"Mentha spicata","Moroccan","RC","✓",null,null,null,null,null,null,null,null,10.98,1097.55,0,0]
[71565,40,"Miscanthus sinensis","Adagio","RC","✓",null,null,null,null,null,null,null,null,37.08,1483.11,0,0]
[71565,155,"Miscanthus sinensis","Adagio","RC","✓",null,null,null,null,null,null,null,null,18.170000000000002,2817.08,0,0]
[75138,40,"Miscanthus sinensis","Boucle","RC","✓",null,null,null,null,null,null,null,null,45.68,1827.36,0,0]
[75138,155,"Miscanthus sinensis","Boucle","RC","✓",null,null,null,null,null,null,null,null,26.78,4151.05,0,0]
[71592,40,"Miscanthus sinensis","Ferner Osten","RC","✓",null,null,null,null,null,null,null,null,37.08,1483.11,0,0]
[71592,155,"Miscanthus sinensis","Ferner Osten","RC","✓",null,null,null,null,null,null,null,null,18.170000000000002,2817.08,0,0]
[71593,40,"Miscanthus sinensis","Graciella","RC","✓",null,null,null,null,null,null,null,null,37.08,1483.11,0,0]
[71593,155,"Miscanthus sinensis","Graciella","RC","✓",null,null,null,null,null,null,null,null,18.170000000000002,2817.08,0,0]
[75027,40,"Miscanthus sinensis","Gracillimus","RC","✓",null,null,null,null,null,null,null,null,37.08,1483.11,0,0]
[75027,155,"Miscanthus sinensis","Gracillimus","RC","✓",null,null,null,null,null,null,null,null,18.170000000000002,2817.08,0,0]
[75121,40,"Miscanthus sinensis","Grosse Fontäne","RC",null,null,null,null,null,null,null,null,null,37.08,1483.11,0,0]
[75121,155,"Miscanthus sinensis","Grosse Fontäne","RC",null,null,null,null,null,null,null,null,null,18.170000000000002,2817.08,0,0]
[75057,40,"Miscanthus sinensis","Little Zebra","RC","✓",null,null,null,null,null,null,null,null,43.96,1758.51,0,0]
[75057,155,"Miscanthus sinensis","Little Zebra","RC","✓",null,null,null,null,null,null,null,null,25.06,3884.25,0,0]
[71594,40,"Miscanthus sinensis","Malepartus","RC","✓",null,null,null,null,null,null,null,null,37.08,1483.11,0,0]
[71588,40,"Miscanthus sinensis","Morning Light","RC","✓",null,null,null,null,null,null,null,null,37.08,1483.11,0,0]
[71588,155,"Miscanthus sinensis","Morning Light","RC","✓",null,null,null,null,null,null,null,null,18.170000000000002,2817.08,0,0]
[75139,40,"Miscanthus sinensis","Polonus","RC",null,null,null,null,null,null,null,null,null,45.68,1827.36,0,0]
[75139,155,"Miscanthus sinensis","Polonus","RC",null,null,null,null,null,null,null,null,null,26.78,4151.05,0,0]
[79970,40,"Miscanthus sinensis","Pünktchen","RC","✓",null,null,null,null,null,null,null,null,37.08,1483.11,0,0]
[79970,155,"Miscanthus sinensis","Pünktchen","RC","✓",null,null,null,null,null,null,null,null,18.170000000000002,2817.08,0,0]
[75144,40,"Miscanthus sinensis","Silberspinne","RC",null,null,null,null,null,null,null,null,null,37.08,1483.11,0,0]
[75144,155,"Miscanthus sinensis","Silberspinne","RC",null,null,null,null,null,null,null,null,null,18.170000000000002,2817.08,0,0]
[79327,40,"Miscanthus sinensis","Strictus","RC","✓",null,null,null,null,null,null,null,null,37.08,1483.11,0,0]
[79327,155,"Miscanthus sinensis","Strictus","RC","✓",null,null,null,null,null,null,null,null,18.170000000000002,2817.08,0,0]
[75063,40,"Miscanthus sinensis","Strictus Dwarf","RC","✓",null,null,null,null,null,null,null,null,37.08,1483.11,0,0]
[75063,155,"Miscanthus sinensis","Strictus Dwarf","RC","✓",null,null,null,null,null,null,null,null,18.170000000000002,2817.08,0,0]
[79328,40,"Miscanthus sinensis","Variegatus","RC","✓",null,null,null,null,null,null,null,null,37.08,1483.11,0,0]
[79328,155,"Miscanthus sinensis","Variegatus","RC","✓",null,null,null,null,null,null,null,null,18.170000000000002,2817.08,0,0]
[75164,40,"Miscanthus sinensis","Versammlung","RC","✓",null,null,null,null,null,null,null,null,37.08,1483.11,{"$f":"P1166*(G1166+H1166+I1166+J1166+K1166+L1166+M1166+N1166)","v":0},{"$f":"Q1166*1.12","v":0}]
[75164,155,"Miscanthus sinensis","Versammlung","RC","✓",null,null,null,null,null,null,null,null,18.170000000000002,2817.08,0,0]
[75098,40,"Miscanthus sinensis","Yaka Dance","RC","✓",null,null,null,null,null,null,null,null,42.93,1717.2,0,0]
[75098,155,"Miscanthus sinensis","Yaka Dance","RC","✓",null,null,null,null,null,null,null,null,24.03,3724.18,0,0]
[79351,40,"Miscanthus sinensis","Zebrinus","RC","✓",null,null,null,null,null,null,null,null,37.08,1483.11,0,0]
[79351,155,"Miscanthus sinensis","Zebrinus","RC","✓",null,null,null,null,null,null,null,null,18.170000000000002,2817.08,0,0]
[75014,40,"Miscanthus x giganteus","Miscanthus x giganteus","TC","✓",null,null,null,null,null,null,null,null,54.98,2199.15,0,0]
[75058,40,"Molinia caerulea","Heidebraut","RC","✓",null,null,null,null,null,null,null,null,32.6,1304.0999999999999,0,0]
[75058,155,"Molinia caerulea","Heidebraut","RC","✓",null,null,null,null,null,null,null,null,13.7,2123.42,0,0]
[75089,40,"Molinia caerulea","Heidezwerg","RC","✓",null,null,null,null,null,null,null,null,32.6,1304.0999999999999,0,0]
[75089,155,"Molinia caerulea","Heidezwerg","RC","✓",null,null,null,null,null,null,null,null,13.7,2123.42,0,0]
[75059,40,"Molinia caerulea","Moorhexe","RC","✓",null,null,null,null,null,null,null,null,32.6,1304.0999999999999,0,0]
[75059,155,"Molinia caerulea","Moorhexe","RC","✓",null,null,null,null,null,null,null,null,13.7,2123.42,0,0]
[75086,40,"Molinia caerulea","Torch","RC","✓",null,null,null,null,null,null,null,null,37.42,1496.88,0,0]
[79239,100,"Monarda didyma","Cranberry Lace®","RC",null,null,null,null,null,null,null,null,null,16.14,1613.93,0,0]
[79240,100,"Monarda didyma","Fireball ®","RC","✓",null,null,null,null,null,null,null,null,16.14,1613.93,0,0]
[79241,100,"Monarda didyma","Marshall's Delight","RC",null,null,null,null,null,null,null,null,null,10.98,1097.55,0,0]
[79243,100,"Monarda didyma","Pink Supreme ®","RC",null,null,null,null,null,null,null,null,null,16.14,1613.93,0,0]
[77504,100,"Monarda hybrida","Baby Spice","RC",null,null,null,null,null,null,null,null,null,10.98,1097.55,0,0]
[74230,100,"Monarda hybrida","Beauty of Cobham","RC",null,null,null,null,null,null,null,null,null,10.98,1097.55,0,0]
[77474,40,"Monarda hybrida","Bee-Bright","RC","✓",null,null,null,null,null,null,null,null,35.700000000000003,1428.03,0,0]
[77474,100,"Monarda hybrida","Bee-Bright","RC","✓",null,null,null,null,null,null,null,null,19.93,1992.6,0,0]
[74283,100,"Monarda hybrida","Bee-Free","RC","✓",null,null,null,null,null,null,null,null,19.93,1992.6,0,0]
[74279,40,"Monarda hybrida","Bee-Happy","RC","✓",null,null,null,null,null,null,null,null,35.700000000000003,1428.03,0,0]
[74279,100,"Monarda hybrida","Bee-Happy","RC","✓",null,null,null,null,null,null,null,null,19.93,1992.6,0,0]
[74279,40,"Monarda hybrida","Bee-Happy","RC","✓",null,null,null,null,null,null,null,null,29.5,1180.17,0,0]
[74280,40,"Monarda hybrida","Bee-Lieve","RC","✓",null,null,null,null,null,null,null,null,35.700000000000003,1428.03,0,0]
[74280,100,"Monarda hybrida","Bee-Lieve","RC","✓",null,null,null,null,null,null,null,null,19.93,1992.6,0,0]
[74280,40,"Monarda hybrida","Bee-Lieve","RC","✓",null,null,null,null,null,null,null,null,29.5,1180.17,0,0]
[77424,40,"Monarda hybrida","Bee-Merry","RC","✓",null,null,null,null,null,null,null,null,35.700000000000003,1428.03,0,0]
[77424,100,"Monarda hybrida","Bee-Merry","RC","✓",null,null,null,null,null,null,null,null,19.93,1992.6,0,0]
[77424,40,"Monarda hybrida","Bee-Merry","RC","✓",null,null,null,null,null,null,null,null,29.5,1180.17,0,0]
[77473,40,"Monarda hybrida","Bee-Pretty","RC","✓",null,null,null,null,null,null,null,null,35.700000000000003,1428.03,0,0]
[77473,100,"Monarda hybrida","Bee-Pretty","RC","✓",null,null,null,null,null,null,null,null,19.93,1992.6,0,0]
[77423,40,"Monarda hybrida","Bee-Pure","RC","✓",null,null,null,null,null,null,null,null,35.700000000000003,1428.03,0,0]
[77423,100,"Monarda hybrida","Bee-Pure","RC","✓",null,null,null,null,null,null,null,null,19.93,1992.6,0,0]
[74281,100,"Monarda hybrida","Bee-True","RC","✓",null,null,null,null,null,null,null,null,19.93,1992.6,0,0]
[74281,40,"Monarda hybrida","Bee-True","RC","✓",null,null,null,null,null,null,null,null,29.5,1180.17,0,0]
[74236,100,"Monarda hybrida","Blaustrumpf","RC",null,null,null,null,null,null,null,null,null,10.98,1097.55,0,0]
[79256,100,"Monarda hybrida","Cambridge Scarlet","RC",null,null,null,null,null,null,null,null,null,10.98,1097.55,0,0]
[79257,100,"Monarda hybrida","Gardenview Scarlet","RC","✓",null,null,null,null,null,null,null,null,10.98,1097.55,0,0]
[79242,100,"Monarda hybrida","Pink Lace ®","RC",null,null,null,null,null,null,null,null,null,16.14,1613.93,0,0]
[79259,100,"Monarda hybrida","Prärienacht","RC",null,null,null,null,null,null,null,null,null,10.98,1097.55,0,0]
[74246,100,"Monarda hybrida","Purple Lace","RC",null,null,null,null,null,null,null,null,null,16.14,1613.93,0,0]
[79260,100,"Monarda hybrida","Schneewittchen","RC",null,null,null,null,null,null,null,null,null,10.98,1097.55,0,0]
[77505,100,"Monarda hybrida","SUGAR BUZZ® Berry Taffy","RC",null,null,null,null,null,null,null,null,null,18.89,1889.33,0,0]
[77502,100,"Monarda hybrida","SUGAR BUZZ® Blue Moon","RC",null,null,null,null,null,null,null,null,null,18.89,1889.33,0,0]
[79282,100,"Monarda hybrida","SUGAR BUZZ® Bubblegum Blast","RC",null,null,null,null,null,null,null,null,null,18.89,1889.33,0,0]
[74237,100,"Monarda hybrida","SUGAR BUZZ® Grape Gumball","RC",null,null,null,null,null,null,null,null,null,18.89,1889.33,0,0]
[79283,100,"Monarda hybrida","SUGAR BUZZ® Pink Frosting","RC",null,null,null,null,null,null,null,null,null,18.89,1889.33,0,0]
[76429,100,"Muehlenbeckia axillaris","Nana","RC","✓",null,null,null,null,null,null,null,null,11.32,1131.98,0,0]
[79950,100,"Nepeta govaniana","Nepeta govaniana","RC",null,null,null,null,null,null,null,null,null,12.01,1200.83,0,0]
[71513,100,"Nepeta grandiflora","Dawn to Dusk","RC",null,null,null,null,null,null,null,null,null,10.98,1097.55,0,0]
[71515,100,"Nepeta grandiflora","Florina","RC",null,null,null,null,null,null,null,null,null,13.73,1372.95,0,0]
[71521,100,"Nepeta grandiflora","Summer Magic","RC",null,null,null,null,null,null,null,null,null,15.45,1545.08,0,0]
[79998,100,"Nepeta grandiflora","Veluws Blauwtje","RC",null,null,null,null,null,null,null,null,null,11.32,1131.98,0,0]
[74947,100,"Nepeta hybrida","Blue Planet","RC","✓",null,null,null,null,null,null,null,null,18.55,1854.9,0,0]
[74854,100,"Nepeta kubanica","Neptune","RC","✓",null,null,null,null,null,null,null,null,19.579999999999998,1958.18,0,0]
[74854,40,"Nepeta kubanica","Neptune","RC","✓",null,null,null,null,null,null,null,null,31.91,1276.56,0,0]
[74901,100,"Nepeta racemosa","Amelia","RC",null,null,null,null,null,null,null,null,null,11.32,1131.98,0,0]
[71517,100,"Nepeta racemosa","Grog","RC",null,null,null,null,null,null,null,null,null,10.98,1097.55,0,0]
[74902,100,"Nepeta racemosa","Little Titch","RC",null,null,null,null,null,null,null,null,null,11.32,1131.98,0,0]
[79388,100,"Nepeta x faassenii","Blue Wonder","RC",null,null,null,null,null,null,null,null,null,10.29,1028.7,0,0]
[71514,100,"Nepeta x faassenii","Dropmore","RC",null,null,null,null,null,null,null,null,null,10.29,1028.7,0,0]
[71516,100,"Nepeta x faassenii","Gletschereis","RC","✓",null,null,null,null,null,null,null,null,10.29,1028.7,{"$f":"P1230*(G1230+H1230+I1230+J1230+K1230+L1230+M1230+N1230)","v":0},{"$f":"Q1230*1.12","v":0}]
[71518,100,"Nepeta x faassenii","Grol","RC",null,null,null,null,null,null,null,null,null,10.29,1028.7,0,0]
[75044,100,"Nepeta x faassenii","Junior Walker™","RC","✓",null,null,null,null,null,null,null,null,16.48,1648.35,0,0]
[79936,100,"Nepeta x faassenii","Kit Cat","RC",null,null,null,null,null,null,null,null,null,10.29,1028.7,0,0]
[74823,100,"Nepeta x faassenii","Purrsian Blue","RC","✓",null,null,null,null,null,null,null,null,14.42,1441.8,0,0]
[74823,40,"Nepeta x faassenii","Purrsian Blue","RC","✓",null,null,null,null,null,null,null,null,29.5,1180.17,0,0]
[71520,100,"Nepeta x faassenii","Senior","RC",null,null,null,null,null,null,null,null,null,10.29,1028.7,0,0]
[79937,100,"Nepeta x faassenii","Six Hills Giant","RC","✓",null,null,null,null,null,null,null,null,10.29,1028.7,0,0]
[79389,100,"Nepeta x faassenii","Snowflake","RC","✓",null,null,null,null,null,null,null,null,10.29,1028.7,0,0]
[79938,100,"Nepeta x faassenii","Walker's Low","RC","✓",null,null,null,null,null,null,null,null,10.29,1028.7,0,0]
[74840,100,"Oenothera hybrida","African Sun","RC",null,null,null,null,null,null,null,null,null,17.170000000000002,1717.2,0,0]
[79390,100,"Oenothera speciosa","Siskiyou Pink","RC","✓",null,null,null,null,null,null,null,null,12.7,1269.68,0,0]
[75016,102,"Olearia algida","Mark","RC","✓",null,null,null,null,null,null,null,null,15.41,1571.93,0,0]
[72830,100,"Omphalodes verna","Alba","RC",null,null,null,null,null,null,null,null,null,13.04,1304.0999999999999,0,0]
[72829,100,"Omphalodes verna","Omphalodes verna","RC",null,null,null,null,null,null,null,null,null,13.04,1304.0999999999999,0,0]
[71774,84,"Ophiopogon chingii","Ophiopogon chingii","RC","✓",null,null,null,null,null,null,null,null,17.21,1445.93,0,0]
[71777,84,"Ophiopogon planiscapus","Nigrescens","TC","✓",null,null,null,null,null,null,null,null,32.36,2718.28,0,0]
[75973,100,"Origanum hybrida","Bristol Cross","RC","✓",null,null,null,null,null,null,null,null,14.07,1407.38,0,0]
[74249,100,"Origanum hybrida","Dingle Fairy","RC",null,null,null,null,null,null,null,null,null,14.07,1407.38,0,0]
[77419,100,"Origanum laevigatum","Gentle Breeze","RC","✓",null,null,null,null,null,null,null,null,18.2,1820.48,0,0]
[74274,100,"Origanum laevigatum","Herrenhausen","RC","✓",null,null,null,null,null,null,null,null,11.32,1131.98,0,0]
[74291,100,"Origanum laevigatum","Rosenkuppel","RC",null,null,null,null,null,null,null,null,null,11.32,1131.98,0,0]
[79216,100,"Origanum rotundifolium","Amethyst Falls","RC","✓",null,null,null,null,null,null,null,null,16.48,1648.35,0,0]
[74299,100,"Origanum rotundifolium","Bellissimo","RC","✓",null,null,null,null,null,null,null,null,17.86,1786.05,0,0]
[74221,100,"Origanum rotundifolium","Kent Beauty","RC","✓",null,null,null,null,null,null,null,null,14.07,1407.38,0,0]
[79629,100,"Origanum vulgare","Aureum","RC",null,null,null,null,null,null,null,null,null,11.32,1131.98,0,0]
[79698,100,"Origanum vulgare","Compactum","RC",null,null,null,null,null,null,null,null,null,11.32,1131.98,0,0]
[74218,100,"Origanum vulgare","Origanum vulgare","RC",null,null,null,null,null,null,null,null,null,11.32,1131.98,0,0]
[70121,100,"Pachysandra terminalis","Green Carpet","RC",null,null,null,null,null,null,null,null,null,11.32,1131.98,0,0]
[70188,100,"Pachysandra terminalis","Green Sheen","RC",null,null,null,null,null,null,null,null,null,11.32,1131.98,0,0]
[73362,100,"Pachysandra terminalis","Pachysandra terminalis","RC",null,null,null,null,null,null,null,null,null,11.32,1131.98,0,0]
[70199,100,"Pachysandra terminalis","Variegata","RC",null,null,null,null,null,null,null,null,null,11.32,1131.98,0,0]
[74158,40,"Panicum virgatum","Blue Fountain","RC","✓",null,null,null,null,null,null,null,null,45,1799.82,0,0]
[74158,155,"Panicum virgatum","Blue Fountain","RC","✓",null,null,null,null,null,null,null,null,23.34,3617.46,0,0]
[79075,40,"Panicum virgatum","Heavy Metal","RC","✓",null,null,null,null,null,null,null,null,36.39,1455.57,0,0]
[79075,155,"Panicum virgatum","Heavy Metal","RC","✓",null,null,null,null,null,null,null,null,18.170000000000002,2817.08,0,0]
[79190,40,"Panicum virgatum","JS® Buffalo Green","RC","✓",null,null,null,null,null,null,null,null,45,1799.82,0,0]
[79190,155,"Panicum virgatum","JS® Buffalo Green","RC","✓",null,null,null,null,null,null,null,null,23.34,3617.46,0,0]
[79112,40,"Panicum virgatum","Northwind","RC","✓",null,null,null,null,null,null,null,null,38.450000000000003,1538.19,0,0]
[79112,155,"Panicum virgatum","Northwind","RC","✓",null,null,null,null,null,null,null,null,18.170000000000002,2817.08,0,0]
[74159,40,"Panicum virgatum","Nosferatu","RC","✓",null,null,null,null,null,null,null,null,48.44,1937.52,0,0]
[74159,155,"Panicum virgatum","Nosferatu","RC","✓",null,null,null,null,null,null,null,null,26.78,4151.05,0,0]
[79076,40,"Panicum virgatum","Prairie Sky","RC","✓",null,null,null,null,null,null,null,null,36.39,1455.57,0,0]
[79076,155,"Panicum virgatum","Prairie Sky","RC","✓",null,null,null,null,null,null,null,null,18.170000000000002,2817.08,0,0]
[79154,40,"Panicum virgatum","Sangria","RC","✓",null,null,null,null,null,null,null,null,41.21,1648.35,0,0]
[79154,155,"Panicum virgatum","Sangria","RC","✓",null,null,null,null,null,null,null,null,22.99,3564.1,0,0]
[79077,40,"Panicum virgatum","Shenandoah","RC","✓",null,null,null,null,null,null,null,null,36.39,1455.57,0,0]
[79077,155,"Panicum virgatum","Shenandoah","RC","✓",null,null,null,null,null,null,null,null,18.170000000000002,2817.08,0,0]
[74195,40,"Panicum virgatum","Squaw Select","RC","✓",null,null,null,null,null,null,null,null,40.86,1634.58,0,0]
[79078,40,"Panicum virgatum","Warrior","RC","✓",null,null,null,null,null,null,null,null,36.39,1455.57,0,0]
[79078,155,"Panicum virgatum","Warrior","RC","✓",null,null,null,null,null,null,null,null,18.170000000000002,2817.08,0,0]
[74140,84,"Pennisetum alopecuroides","Cassian","RC","✓",null,null,null,null,null,null,null,null,17.21,1445.93,0,0]
[74129,84,"Pennisetum alopecuroides","Gelbstiel","RC","✓",null,null,null,null,null,null,null,null,16.87,1417.01,0,0]
[74129,155,"Pennisetum alopecuroides","Gelbstiel","RC","✓",null,null,null,null,null,null,null,null,14.39,2230.13,0,0]
[79719,84,"Pennisetum alopecuroides","Hameln","RC","✓",null,null,null,null,null,null,null,null,16.87,1417.01,0,0]
[79719,155,"Pennisetum alopecuroides","Hameln","RC","✓",null,null,null,null,null,null,null,null,14.39,2230.13,0,0]
[74121,84,"Pennisetum alopecuroides","Hameln Gold","RC","✓",null,null,null,null,null,null,null,null,19.62,1648.35,0,0]
[74121,155,"Pennisetum alopecuroides","Hameln Gold","RC","✓",null,null,null,null,null,null,null,null,17.14,2657,0,0]
[74125,84,"Pennisetum alopecuroides","Lady U","RC","✓",null,null,null,null,null,null,null,null,17.21,1445.93,0,0]
[74125,40,"Pennisetum alopecuroides","Lady U","RC","✓",null,null,null,null,null,null,null,null,33.979999999999997,1359.18,0,0]
[74112,84,"Pennisetum alopecuroides","Little Bunny","RC","✓",null,null,null,null,null,null,null,null,16.87,1417.01,0,0]
[74112,155,"Pennisetum alopecuroides","Little Bunny","RC","✓",null,null,null,null,null,null,null,null,14.39,2230.13,0,0]
[74131,84,"Pennisetum alopecuroides","National Arboretum","RC","✓",null,null,null,null,null,null,null,null,15.84,1330.26,0,0]
[74131,40,"Pennisetum alopecuroides","National Arboretum","RC","✓",null,null,null,null,null,null,null,null,32.6,1304.0999999999999,0,0]
[74142,84,"Pennisetum alopecuroides","Red Head","RC","✓",null,null,null,null,null,null,null,null,16.87,1417.01,{"$f":"P1294*(G1294+H1294+I1294+J1294+K1294+L1294+M1294+N1294)","v":0},{"$f":"Q1294*1.12","v":0}]
[74142,40,"Pennisetum alopecuroides","Red Head","RC","✓",null,null,null,null,null,null,null,null,32.6,1304.0999999999999,0,0]
[74120,84,"Pennisetum alopecuroides","Viridescens","RC","✓",null,null,null,null,null,null,null,null,17.899999999999999,1503.77,0,0]
[75162,84,"Pennisetum x advena","Rubens","RC","✓",null,null,null,null,null,null,null,null,26.85,2255.61,0,0]
[74113,84,"Pennisetum x advena","Rubrum","RC","✓",null,null,null,null,null,null,null,null,25.13,2111.02,0,0]
[74113,18,"Pennisetum x advena","Rubrum","RC","✓",null,null,null,null,null,null,null,null,61.85,1113.3900000000001,0,0]
[79445,100,"Penstemon digitalis","Dark Towers","RC","✓",null,null,null,null,null,null,null,null,20.96,2095.88,0,0]
[79557,100,"Penstemon digitalis","Husker Red","RC",null,null,null,null,null,null,null,null,null,14.76,1476.23,0,0]
[74136,100,"Penstemon hybrida","Andenken an Frederik Hahn’(Garnet)","RC",null,null,null,null,null,null,null,null,null,11.32,1131.98,0,0]
[74166,100,"Penstemon hybrida","Evelyn","RC",null,null,null,null,null,null,null,null,null,11.32,1131.98,0,0]
[74134,100,"Penstemon hybrida","Purple Passion","RC",null,null,null,null,null,null,null,null,null,11.32,1131.98,0,0]
[74135,100,"Penstemon hybrida","Rich Ruby","RC",null,null,null,null,null,null,null,null,null,11.32,1131.98,0,0]
[74139,100,"Penstemon hybrida","Rubicunda","RC",null,null,null,null,null,null,null,null,null,11.32,1131.98,0,0]
[74137,100,"Penstemon hybrida","Schoenholzeri","RC","✓",null,null,null,null,null,null,null,null,11.32,1131.98,0,0]
[74580,100,"Penstemon hybrida","Sour Grapes","RC",null,null,null,null,null,null,null,null,null,11.32,1131.98,0,0]
[74138,100,"Penstemon hybrida","White Bedder","RC",null,null,null,null,null,null,null,null,null,11.32,1131.98,0,0]
[78181,100,"Perovskia atriplicifolia","Blue Spire","RC",null,null,null,null,null,null,null,null,null,13.04,1304.0999999999999,0,0]
[77672,100,"Perovskia atriplicifolia","Jelena","RC","✓",null,null,null,null,null,null,null,null,15.11,1510.65,0,0]
[78165,100,"Perovskia atriplicifolia","Lacey Blue","RC","✓",null,null,null,null,null,null,null,null,18.2,1820.48,0,0]
[78135,100,"Perovskia atriplicifolia","Little Spire®","RC","✓",null,null,null,null,null,null,null,null,16.48,1648.35,0,0]
[78146,100,"Perovskia atriplicifolia","Russian Sage","RC","✓",null,null,null,null,null,null,null,null,13.04,1304.0999999999999,0,0]
[78166,100,"Perovskia atriplicifolia","Silvery Blue","RC",null,null,null,null,null,null,null,null,null,18.2,1820.48,0,0]
[77670,100,"Perovskia atriplicifolia","Zasha","RC","✓",null,null,null,null,null,null,null,null,15.11,1510.65,0,0]
[77670,40,"Perovskia atriplicifolia","Zasha","RC","✓",null,null,null,null,null,null,null,null,29.5,1180.17,0,0]
[78137,100,"Persicaria affinis","Darjeeling Red","RC",null,null,null,null,null,null,null,null,null,12.01,1200.83,0,0]
[71434,100,"Persicaria affinis","Donald Lowndes","RC",null,null,null,null,null,null,null,null,null,12.01,1200.83,0,0]
[71437,100,"Persicaria affinis","Kabouter","RC",null,null,null,null,null,null,null,null,null,12.01,1200.83,0,0]
[71478,100,"Persicaria affinis","Superba","RC",null,null,null,null,null,null,null,null,null,12.01,1200.83,0,0]
[71446,84,"Persicaria amplexicaulis","Alba","TC",null,null,null,null,null,null,null,null,null,32.020000000000003,2689.36,0,0]
[71485,84,"Persicaria amplexicaulis","Ample Pink","TC",null,null,null,null,null,null,null,null,null,30.29,2544.7800000000002,0,0]
[71486,84,"Persicaria amplexicaulis","Ample Vibrant Red","TC",null,null,null,null,null,null,null,null,null,30.29,2544.7800000000002,0,0]
[78136,84,"Persicaria amplexicaulis","Blackfield","TC","✓",null,null,null,null,null,null,null,null,34.08,2862.86,0,0]
[71433,100,"Persicaria amplexicaulis","Dark Red","RC",null,null,null,null,null,null,null,null,null,20.27,2027.03,0,0]
[71435,100,"Persicaria amplexicaulis","Fat Domino","RC","✓",null,null,null,null,null,null,null,null,25.43,2543.4,0,0]
[78147,100,"Persicaria amplexicaulis","Golden Arrow","RC",null,null,null,null,null,null,null,null,null,20.27,2027.03,0,0]
[78190,84,"Persicaria amplexicaulis","JS Caliente","TC","✓",null,null,null,null,null,null,null,null,34.08,2862.86,0,0]
[71436,100,"Persicaria amplexicaulis","JS Calor","RC",null,null,null,null,null,null,null,null,null,23.71,2371.2800000000002,0,0]
[71472,84,"Persicaria amplexicaulis","JS Misty Morning","TC","✓",null,null,null,null,null,null,null,null,34.08,2862.86,0,0]
[71484,84,"Persicaria amplexicaulis","JS® Keep Smiling","TC",null,null,null,null,null,null,null,null,null,28.92,2429.11,0,0]
[78191,84,"Persicaria amplexicaulis","JS® Seven Oaks Village","TC","✓",null,null,null,null,null,null,null,null,32.36,2718.28,0,0]
[71439,100,"Persicaria amplexicaulis","Lisan","RC",null,null,null,null,null,null,null,null,null,20.27,2027.03,0,0]
[78138,100,"Persicaria amplexicaulis","Orange Field ®","RC","✓",null,null,null,null,null,null,null,null,25.43,2543.4,0,0]
[71442,100,"Persicaria amplexicaulis","Pink Elephant","RC",null,null,null,null,null,null,null,null,null,20.27,2027.03,0,0]
[71444,100,"Persicaria amplexicaulis","Speciosa","RC","✓",null,null,null,null,null,null,null,null,20.27,2027.03,0,0]
[71477,100,"Persicaria amplexicaulis","White Eastfield","RC",null,null,null,null,null,null,null,null,null,20.27,2027.03,0,0]
[71443,100,"Persicaria microcephala","Red Dragon","RC",null,null,null,null,null,null,null,null,null,17.170000000000002,1717.2,0,0]
[71440,100,"Persicaria polymorpha","Persicaria polymorpha","RC",null,null,null,null,null,null,null,null,null,16.48,1648.35,0,0]
[74147,84,"Phalaris arundinacea","Arctic Sun","RC","✓",null,null,null,null,null,null,null,null,22.72,1908.6,0,0]
[74148,84,"Phalaris arundinacea","Feesey","RC","✓",null,null,null,null,null,null,null,null,19.28,1619.43,0,0]
[70182,84,"Phalaris arundinacea","Picta","RC","✓",null,null,null,null,null,null,null,null,19.28,1619.43,0,0]
[73354,100,"Phlomis russeliana","Phlomis russelliana","RC",null,null,null,null,null,null,null,null,null,13.73,1372.95,0,0]
[76395,100,"Phlox divaricata","Blue Moon","RC",null,null,null,null,null,null,null,null,null,10.63,1063.1300000000001,0,0]
[76378,100,"Phlox divaricata","Clouds of Perfume","RC",null,null,null,null,null,null,null,null,null,10.63,1063.1300000000001,0,0]
[76377,100,"Phlox divaricata","Chattahoochee","RC","✓",null,null,null,null,null,null,null,null,10.63,1063.1300000000001,0,0]
[76383,100,"Phlox divaricata","May Breeze","RC",null,null,null,null,null,null,null,null,null,10.63,1063.1300000000001,0,0]
[76382,100,"Phlox douglasii","Lilac Cloud","RC",null,null,null,null,null,null,null,null,null,10.29,1028.7,0,0]
[76386,100,"Phlox douglasii","Ochsenblut","RC",null,null,null,null,null,null,null,null,null,10.29,1028.7,0,0]
[76388,100,"Phlox douglasii","Red Admiral","RC","✓",null,null,null,null,null,null,null,null,10.29,1028.7,0,0]
[76360,100,"Phlox douglasii","White Admiral","RC","✓",null,null,null,null,null,null,null,null,10.29,1028.7,0,0]
[76399,100,"Phlox kelseyi","Rosette","RC",null,null,null,null,null,null,null,null,null,10.29,1028.7,0,0]
[76385,100,"Phlox maculata","Alpha","RC",null,null,null,null,null,null,null,null,null,10.98,1097.55,0,0]
[76380,100,"Phlox maculata","Delta","RC",null,null,null,null,null,null,null,null,null,10.98,1097.55,0,0]
[76384,100,"Phlox maculata","Natascha","RC","✓",null,null,null,null,null,null,null,null,10.98,1097.55,0,0]
[76389,100,"Phlox maculata","Schneelawine","RC",null,null,null,null,null,null,null,null,null,10.98,1097.55,0,0]
[76260,100,"Phlox paniculata","Blue Boy","RC",null,null,null,null,null,null,null,null,null,12.35,1235.25,{"$f":"P1358*(G1358+H1358+I1358+J1358+K1358+L1358+M1358+N1358)","v":0},{"$f":"Q1358*1.12","v":0}]
[76214,100,"Phlox paniculata","Blue Paradise","RC","✓",null,null,null,null,null,null,null,null,12.35,1235.25,0,0]
[76261,100,"Phlox paniculata","Bright Eyes","RC","✓",null,null,null,null,null,null,null,null,12.35,1235.25,0,0]
[76264,100,"Phlox paniculata","David","RC","✓",null,null,null,null,null,null,null,null,12.35,1235.25,0,0]
[76511,100,"Phlox paniculata","Early® Blush Pop","RC","✓",null,null,null,null,null,null,null,null,15.11,1510.65,0,0]
[76326,100,"Phlox paniculata","Early® Cerise","RC","✓",null,null,null,null,null,null,null,null,15.11,1510.65,0,0]
[76508,100,"Phlox paniculata","Early® Lavender Pop","RC","✓",null,null,null,null,null,null,null,null,15.11,1510.65,0,0]
[76343,40,"Phlox paniculata","Early® Pink","RC","✓",null,null,null,null,null,null,null,null,28.13,1125.0899999999999,0,0]
[76343,100,"Phlox paniculata","Early® Pink","RC","✓",null,null,null,null,null,null,null,null,15.11,1510.65,0,0]
[76327,100,"Phlox paniculata","Early® Purple Eye","RC","✓",null,null,null,null,null,null,null,null,15.11,1510.65,0,0]
[76217,40,"Phlox paniculata","Early® Red","RC","✓",null,null,null,null,null,null,null,null,28.13,1125.0899999999999,0,0]
[76217,100,"Phlox paniculata","Early® Red","RC","✓",null,null,null,null,null,null,null,null,15.11,1510.65,0,0]
[76325,40,"Phlox paniculata","Early® White","RC","✓",null,null,null,null,null,null,null,null,28.13,1125.0899999999999,0,0]
[76325,100,"Phlox paniculata","Early® White","RC","✓",null,null,null,null,null,null,null,null,15.45,1545.08,0,0]
[76286,100,"Phlox paniculata","Eva Cullum","RC",null,null,null,null,null,null,null,null,null,12.35,1235.25,0,0]
[76308,40,"Phlox paniculata","Flame® Coral","RC","✓",null,null,null,null,null,null,null,null,27.44,1097.55,0,0]
[76308,100,"Phlox paniculata","Flame® Coral","RC","✓",null,null,null,null,null,null,null,null,14.42,1441.8,0,0]
[76349,40,"Phlox paniculata","Flame® Light Pink Imp.","RC","✓",null,null,null,null,null,null,null,null,27.44,1097.55,0,0]
[76349,100,"Phlox paniculata","Flame® Light Pink Imp.","RC","✓",null,null,null,null,null,null,null,null,14.42,1441.8,0,0]
[76504,40,"Phlox paniculata","Flame® Lilac Star","RC","✓",null,null,null,null,null,null,null,null,27.44,1097.55,0,0]
[76504,100,"Phlox paniculata","Flame® Lilac Star","RC","✓",null,null,null,null,null,null,null,null,14.42,1441.8,0,0]
[76312,40,"Phlox paniculata","Flame® Pink","RC","✓",null,null,null,null,null,null,null,null,27.44,1097.55,0,0]
[76312,100,"Phlox paniculata","Flame® Pink","RC","✓",null,null,null,null,null,null,null,null,14.42,1441.8,0,0]
[76313,100,"Phlox paniculata","Flame® Pink Eye","RC","✓",null,null,null,null,null,null,null,null,14.42,1441.8,0,0]
[76346,40,"Phlox paniculata","Flame® Pro Cerise","RC","✓",null,null,null,null,null,null,null,null,27.44,1097.55,0,0]
[76346,100,"Phlox paniculata","Flame® Pro Cerise","RC","✓",null,null,null,null,null,null,null,null,14.42,1441.8,0,0]
[76309,40,"Phlox paniculata","Flame® Pro Light Blue","RC","✓",null,null,null,null,null,null,null,null,27.44,1097.55,0,0]
[76309,100,"Phlox paniculata","Flame® Pro Light Blue","RC","✓",null,null,null,null,null,null,null,null,14.42,1441.8,0,0]
[76503,40,"Phlox paniculata","Flame® Pro Pink Pop","RC","✓",null,null,null,null,null,null,null,null,27.44,1097.55,0,0]
[76503,100,"Phlox paniculata","Flame® Pro Pink Pop","RC","✓",null,null,null,null,null,null,null,null,14.42,1441.8,0,0]
[76314,100,"Phlox paniculata","Flame® Pro Purple","RC","✓",null,null,null,null,null,null,null,null,14.42,1441.8,0,0]
[76529,40,"Phlox paniculata","Flame® Pro Rose Pink","RC","✓",null,null,null,null,null,null,null,null,27.44,1097.55,0,0]
[76529,100,"Phlox paniculata","Flame® Pro Rose Pink","RC","✓",null,null,null,null,null,null,null,null,14.42,1441.8,0,0]
[76344,100,"Phlox paniculata","Flame® Pro Soft Pink","RC","✓",null,null,null,null,null,null,null,null,14.42,1441.8,0,0]
[76319,40,"Phlox paniculata","Flame® Pro Violet Charm","RC","✓",null,null,null,null,null,null,null,null,27.44,1097.55,0,0]
[76319,100,"Phlox paniculata","Flame® Pro Violet Charm","RC","✓",null,null,null,null,null,null,null,null,14.42,1441.8,0,0]
[76351,40,"Phlox paniculata","Flame® Pro White","RC","✓",null,null,null,null,null,null,null,null,27.44,1097.55,0,0]
[76351,100,"Phlox paniculata","Flame® Pro White","RC","✓",null,null,null,null,null,null,null,null,14.42,1441.8,0,0]
[76350,100,"Phlox paniculata","Flame® Purple","RC","✓",null,null,null,null,null,null,null,null,14.42,1441.8,0,0]
[76315,40,"Phlox paniculata","Flame® Purple Eye","RC","✓",null,null,null,null,null,null,null,null,27.44,1097.55,0,0]
[76315,100,"Phlox paniculata","Flame® Purple Eye","RC","✓",null,null,null,null,null,null,null,null,14.42,1441.8,0,0]
[76316,40,"Phlox paniculata","Flame® Red","RC","✓",null,null,null,null,null,null,null,null,27.44,1097.55,0,0]
[76316,100,"Phlox paniculata","Flame® Red","RC","✓",null,null,null,null,null,null,null,null,14.42,1441.8,0,0]
[76510,100,"Phlox paniculata","Flame® Watermelon","RC","✓",null,null,null,null,null,null,null,null,14.42,1441.8,0,0]
[76320,40,"Phlox paniculata","Flame® White Eye","RC","✓",null,null,null,null,null,null,null,null,27.44,1097.55,0,0]
[76320,100,"Phlox paniculata","Flame® White Eye","RC","✓",null,null,null,null,null,null,null,null,14.42,1441.8,0,0]
[76267,100,"Phlox paniculata","Franz Schubert","RC",null,null,null,null,null,null,null,null,null,12.35,1235.25,0,0]
[76355,100,"Phlox paniculata","Herbstwalzer","RC",null,null,null,null,null,null,null,null,null,12.35,1235.25,0,0]
[76270,100,"Phlox paniculata","Laura","RC","✓",null,null,null,null,null,null,null,null,12.35,1235.25,0,0]
[76524,100,"Phlox paniculata","Mother of Pearl","RC","✓",null,null,null,null,null,null,null,null,12.35,1235.25,0,0]
[76356,100,"Phlox paniculata","Nora Leigh","RC",null,null,null,null,null,null,null,null,null,12.35,1235.25,0,0]
[76242,100,"Phlox paniculata","Orange Perfection","RC",null,null,null,null,null,null,null,null,null,12.35,1235.25,0,0]
[76525,100,"Phlox paniculata","Red Riding Hood","RC","✓",null,null,null,null,null,null,null,null,12.35,1235.25,0,0]
[76357,100,"Phlox paniculata","Spitfire","RC","✓",null,null,null,null,null,null,null,null,12.35,1235.25,0,0]
[76358,100,"Phlox paniculata","Starfire","RC",null,null,null,null,null,null,null,null,null,12.35,1235.25,0,0]
[76243,100,"Phlox paniculata","Tenor","RC",null,null,null,null,null,null,null,null,null,12.35,1235.25,0,0]
[76501,100,"Phlox subulata","Amazing Grace","RC","✓",null,null,null,null,null,null,null,null,9.6,959.85,0,0]
[76372,100,"Phlox subulata","Atropurpurea","RC",null,null,null,null,null,null,null,null,null,9.6,959.85,0,0]
[76374,100,"Phlox subulata","Bavaria","RC",null,null,null,null,null,null,null,null,null,9.6,959.85,0,0]
[76375,100,"Phlox subulata","Benita","RC",null,null,null,null,null,null,null,null,null,9.6,959.85,0,0]
[76262,100,"Phlox subulata","Candy Stripes","RC","✓",null,null,null,null,null,null,null,null,9.6,959.85,0,0]
[76263,100,"Phlox subulata","Crimson Beauty","RC",null,null,null,null,null,null,null,null,null,9.6,959.85,0,0]
[76361,100,"Phlox subulata","Drummond Pink","RC",null,null,null,null,null,null,null,null,null,9.6,959.85,0,0]
[76202,100,"Phlox subulata","Emerald Cushion Blue","RC","✓",null,null,null,null,null,null,null,null,9.6,959.85,0,0]
[76266,100,"Phlox subulata","Fort Hill","RC",null,null,null,null,null,null,null,null,null,9.6,959.85,{"$f":"P1422*(G1422+H1422+I1422+J1422+K1422+L1422+M1422+N1422)","v":0},{"$f":"Q1422*1.12","v":0}]
[76362,100,"Phlox subulata","G.F. Wilson","RC",null,null,null,null,null,null,null,null,null,9.6,959.85,0,0]
[76363,100,"Phlox subulata","MacDaniel's Cushion","RC","✓",null,null,null,null,null,null,null,null,9.6,959.85,0,0]
[76364,100,"Phlox subulata","Maischnee","RC",null,null,null,null,null,null,null,null,null,9.6,959.85,0,0]
[76365,100,"Phlox subulata","Moerheimii","RC",null,null,null,null,null,null,null,null,null,9.6,959.85,0,0]
[76366,100,"Phlox subulata","Oakington Blue Eyes","RC",null,null,null,null,null,null,null,null,null,9.6,959.85,0,0]
[76368,100,"Phlox subulata","Purple Beauty","RC",null,null,null,null,null,null,null,null,null,9.6,959.85,0,0]
[76272,100,"Phlox subulata","Red Wings","RC","✓",null,null,null,null,null,null,null,null,9.6,959.85,0,0]
[76369,100,"Phlox subulata","Ronsdorfer Schöne","RC",null,null,null,null,null,null,null,null,null,9.6,959.85,0,0]
[76370,100,"Phlox subulata","Samson","RC",null,null,null,null,null,null,null,null,null,9.6,959.85,0,0]
[76273,100,"Phlox subulata","Scarlet Flame","RC",null,null,null,null,null,null,null,null,null,9.6,959.85,0,0]
[76274,100,"Phlox subulata","Snowflake","RC",null,null,null,null,null,null,null,null,null,9.6,959.85,0,0]
[76219,100,"Phlox subulata","White Delight","RC",null,null,null,null,null,null,null,null,null,9.6,959.85,0,0]
[76373,100,"Phlox subulata","Zwergenteppich","RC",null,null,null,null,null,null,null,null,null,9.6,959.85,0,0]
[74626,100,"Phuopsis stylosa","Phuopsis stylosa","RC",null,null,null,null,null,null,null,null,null,12.01,1200.83,0,0]
[71432,100,"Phygelius aequalis","Cherry Ripe","RC",null,null,null,null,null,null,null,null,null,13.73,1372.95,0,0]
[71473,100,"Phygelius capensis","Candy Drops Cream","RC",null,null,null,null,null,null,null,null,null,18.2,1820.48,0,0]
[71474,100,"Phygelius capensis","Candy Drops Deep Rose","RC",null,null,null,null,null,null,null,null,null,18.2,1820.48,0,0]
[71475,100,"Phygelius capensis","Candy Drops Red","RC",null,null,null,null,null,null,null,null,null,18.2,1820.48,0,0]
[71476,100,"Phygelius capensis","Candy Drops Tangerine","RC",null,null,null,null,null,null,null,null,null,18.2,1820.48,0,0]
[71431,100,"Phygelius rectus","African Queen","RC",null,null,null,null,null,null,null,null,null,11.32,1131.98,0,0]
[73375,100,"Physostegia virginiana","Miss Manners","RC",null,null,null,null,null,null,null,null,null,13.73,1372.95,0,0]
[73359,100,"Physostegia virginiana","Vivid","RC",null,null,null,null,null,null,null,null,null,13.73,1372.95,0,0]
[70782,100,"Polemonium caeruleum","Brise d'Anjou","RC",null,null,null,null,null,null,null,null,null,27.84,2784.38,0,0]
[70757,100,"Polemonium reptans","Heaven Scent","RC",null,null,null,null,null,null,null,null,null,24.75,2474.5500000000002,0,0]
[70753,100,"Polemonium reptans","Stairway to Heaven","RC",null,null,null,null,null,null,null,null,null,28.19,2818.8,0,0]
[70781,100,"Polemonium yezoense","Bressingham Purple","RC","✓",null,null,null,null,null,null,null,null,23.37,2336.85,0,0]
[73361,100,"Potentilla tridentata","Nuuk","RC","✓",null,null,null,null,null,null,null,null,12.7,1269.68,0,0]
[73358,100,"Prunella hybrida","Gruss aus Isernhagen","RC","✓",null,null,null,null,null,null,null,null,12.7,1269.68,0,0]
[79885,100,"Prunella hybrida","Summer Daze","RC",null,null,null,null,null,null,null,null,null,18.2,1820.48,0,0]
[79496,84,"Pulmonaria hybrida","Blue Ensign","TC",null,null,null,null,null,null,null,null,null,27.54,2313.44,0,0]
[79310,84,"Pulmonaria hybrida","Moonshine","TC","✓",null,null,null,null,null,null,null,null,33.049999999999997,2776.11,0,0]
[74859,84,"Pulmonaria hybrida","Shrimps on the Barbie","TC","✓",null,null,null,null,null,null,null,null,31.67,2660.45,0,0]
[79318,84,"Pulmonaria hybrida","Silver Bouquet","TC","✓",null,null,null,null,null,null,null,null,31.67,2660.45,0,0]
[79312,84,"Pulmonaria hybrida","Trevi Fountain","TC","✓",null,null,null,null,null,null,null,null,30.98,2602.61,0,0]
[79497,84,"Pulmonaria hybrida","Twinkle Toe","TC",null,null,null,null,null,null,null,null,null,33.39,2805.03,0,0]
[73355,100,"Pycnanthemum flexuosum","Pycnanthemum flexuosum","RC",null,null,null,null,null,null,null,null,null,12.01,1200.83,0,0]
[73356,100,"Pycnanthemum muticum","Pycnanthemum muticum","RC",null,null,null,null,null,null,null,null,null,12.01,1200.83,0,0]
[73357,100,"Pycnanthemum pilosum","Pycnanthemum pilosum","RC",null,null,null,null,null,null,null,null,null,12.01,1200.83,0,0]
[73365,100,"Raoulia hybrida","Hookeri Laxa","RC",null,null,null,null,null,null,null,null,null,14.42,1441.8,0,0]
[77378,100,"Rosmarinus officinalis","Blue Rain","RC","✓",null,null,null,null,null,null,null,null,11.32,1131.98,0,0]
[79737,100,"Rosmarinus officinalis","Capri","RC",null,null,null,null,null,null,null,null,null,11.32,1131.98,0,0]
[79201,100,"Rosmarinus officinalis","Rosmarinus officinalis","RC","✓",null,null,null,null,null,null,null,null,11.32,1131.98,0,0]
[72949,84,"Rudbeckia fulgida","Forever Gold","TC","✓",null,null,null,null,null,null,null,null,32.020000000000003,2689.36,0,0]
[72906,100,"Rudbeckia fulgida","Goldsturm","RC","✓",null,null,null,null,null,null,null,null,10.98,1097.55,0,0]
[72906,84,"Rudbeckia fulgida","Goldsturm","TC","✓",null,null,null,null,null,null,null,null,26.16,2197.77,0,0]
[72924,84,"Rudbeckia fulgida","Little Goldstar","TC","✓",null,null,null,null,null,null,null,null,35.11,2949.62,0,0]
[76408,40,"Rudbeckia fulgida","Sun Ka Ching","TC","✓",null,null,null,null,null,null,null,null,49.47,1978.83,0,0]
[76408,84,"Rudbeckia fulgida","Sun Ka Ching","TC","✓",null,null,null,null,null,null,null,null,31.33,2631.53,0,0]
[72948,84,"Rudbeckia hirta","Flamenco® Apricot","TC",null,null,null,null,null,null,null,null,null,36.840000000000003,3094.2,0,0]
[76413,84,"Rudbeckia hirta","Flamenco® Bright Orange","TC",null,null,null,null,null,null,null,null,null,36.840000000000003,3094.2,0,0]
[72993,84,"Rudbeckia hirta","Flamenco® Dark Orange","TC",null,null,null,null,null,null,null,null,null,36.840000000000003,3094.2,0,0]
[72994,84,"Rudbeckia hirta","Flamenco® True Red","TC",null,null,null,null,null,null,null,null,null,36.840000000000003,3094.2,0,0]
[72992,84,"Rudbeckia hirta","Flamenco® Vanilla","TC",null,null,null,null,null,null,null,null,null,36.840000000000003,3094.2,0,0]
[76414,84,"Rudbeckia hirta","Flamenco® Yellow","TC",null,null,null,null,null,null,null,null,null,36.840000000000003,3094.2,0,0]
[76433,84,"Rudbeckia hirta","Littlebeckia Ballerina","TC",null,null,null,null,null,null,null,null,null,32.36,2718.28,0,0]
[76435,84,"Rudbeckia hirta","Littlebeckia™ Pirouette","TC","✓",null,null,null,null,null,null,null,null,32.36,2718.28,0,0]
[72954,84,"Rudbeckia hirta","Littlebeckia™ Sunrise","TC","✓",null,null,null,null,null,null,null,null,30.64,2573.69,0,0]
[72982,84,"Rudbeckia hirta","Littlebeckia™ Sunshine","TC","✓",null,null,null,null,null,null,null,null,32.36,2718.28,0,0]
[76437,84,"Rudbeckia hirta","SmileyZ™ Big Cheerleader","TC","✓",null,null,null,null,null,null,null,null,33.39,2805.03,0,0]
[76438,84,"Rudbeckia hirta","SmileyZ™ Big Joy Imp.","TC","✓",null,null,null,null,null,null,null,null,33.39,2805.03,0,0]
[72984,84,"Rudbeckia hirta","SmileyZ™ Big Kiss","TC","✓",null,null,null,null,null,null,null,null,33.39,2805.03,0,0]
[72986,84,"Rudbeckia hirta","SmileyZ™ Big Love","TC","✓",null,null,null,null,null,null,null,null,33.39,2805.03,0,0]
[72977,84,"Rudbeckia hirta","SmileyZ™ Big Luck","TC","✓",null,null,null,null,null,null,null,null,33.39,2805.03,0,0]
[72976,84,"Rudbeckia hirta","SmileyZ™ Big Shine","TC","✓",null,null,null,null,null,null,null,null,33.39,2805.03,{"$f":"P1486*(G1486+H1486+I1486+J1486+K1486+L1486+M1486+N1486)","v":0},{"$f":"Q1486*1.12","v":0}]
[72985,84,"Rudbeckia hirta","SmileyZ™ Big Smile","TC","✓",null,null,null,null,null,null,null,null,33.39,2805.03,0,0]
[72942,84,"Rudbeckia hirta","SmileyZ™ Big Sun","TC","✓",null,null,null,null,null,null,null,null,35.11,2949.62,0,0]
[76410,84,"Rudbeckia hirta","SmileyZ™ Divine","TC","✓",null,null,null,null,null,null,null,null,32.36,2718.28,0,0]
[76430,84,"Rudbeckia hirta","SmileyZ™ Double Kissing","TC",null,null,null,null,null,null,null,null,null,32.36,2718.28,0,0]
[72933,84,"Rudbeckia hirta","SmileyZ™ Giggling","TC","✓",null,null,null,null,null,null,null,null,32.36,2718.28,0,0]
[76431,84,"Rudbeckia hirta","SmileyZ™ Grace","TC",null,null,null,null,null,null,null,null,null,32.36,2718.28,0,0]
[72934,84,"Rudbeckia hirta","SmileyZ™ Happy","TC","✓",null,null,null,null,null,null,null,null,32.36,2718.28,0,0]
[76425,84,"Rudbeckia hirta","SmileyZ™ Cheerful","TC","✓",null,null,null,null,null,null,null,null,34.770000000000003,2920.7,0,0]
[76424,84,"Rudbeckia hirta","SmileyZ™ Joyful","TC","✓",null,null,null,null,null,null,null,null,34.770000000000003,2920.7,0,0]
[72932,84,"Rudbeckia hirta","SmileyZ™ Kissing","TC","✓",null,null,null,null,null,null,null,null,34.08,2862.86,0,0]
[72952,84,"Rudbeckia hirta","SmileyZ™ Lemon","TC","✓",null,null,null,null,null,null,null,null,34.770000000000003,2920.7,0,0]
[72987,84,"Rudbeckia hirta","SmileyZ™ Party","TC","✓",null,null,null,null,null,null,null,null,32.36,2718.28,0,0]
[72991,84,"Rudbeckia hirta","SmileyZ™ Passion","TC","✓",null,null,null,null,null,null,null,null,34.08,2862.86,0,0]
[76440,84,"Rudbeckia hirta","SmileyZ™ Passion Imp.","TC","✓",null,null,null,null,null,null,null,null,34.08,2862.86,0,0]
[72989,84,"Rudbeckia hirta","SmileyZ™ Star of Life","TC","✓",null,null,null,null,null,null,null,null,34.08,2862.86,0,0]
[76423,84,"Rudbeckia hirta","SmileyZ™ Sunbeam","TC","✓",null,null,null,null,null,null,null,null,32.36,2718.28,0,0]
[72937,84,"Rudbeckia hirta","SmileyZ™ Tiger","TC","✓",null,null,null,null,null,null,null,null,34.770000000000003,2920.7,0,0]
[72929,84,"Rudbeckia hirta","Sunbeckia® Alicia","TC",null,null,null,null,null,null,null,null,null,36.840000000000003,3094.2,0,0]
[76411,84,"Rudbeckia hirta","Sunbeckia® Carolina","TC",null,null,null,null,null,null,null,null,null,36.840000000000003,3094.2,0,0]
[76412,84,"Rudbeckia hirta","Sunbeckia® Maya","TC",null,null,null,null,null,null,null,null,null,36.840000000000003,3094.2,0,0]
[76415,84,"Rudbeckia hirta","Sunbeckia® Mia","TC",null,null,null,null,null,null,null,null,null,36.840000000000003,3094.2,0,0]
[72981,84,"Rudbeckia hirta","Sunbeckia® Ophelia","TC",null,null,null,null,null,null,null,null,null,36.840000000000003,3094.2,0,0]
[72979,84,"Rudbeckia hirta","Sunbeckia® Paulina","TC",null,null,null,null,null,null,null,null,null,36.840000000000003,3094.2,0,0]
[76416,84,"Rudbeckia hirta","Sunbeckia® Victoria","TC",null,null,null,null,null,null,null,null,null,36.840000000000003,3094.2,0,0]
[78139,100,"Sagina subulata","Green Moss","RC","✓",null,null,null,null,null,null,null,null,13.39,1338.53,0,0]
[78140,100,"Sagina subulata","Lime Moss","RC","✓",null,null,null,null,null,null,null,null,13.39,1338.53,0,0]
[77318,100,"Salvia gregii","Amethyst Lips","RC",null,null,null,null,null,null,null,null,null,16.48,1648.35,0,0]
[78276,100,"Salvia gregii","Blue Note","RC",null,null,null,null,null,null,null,null,null,18.2,1820.48,0,0]
[77306,100,"Salvia gregii","Cherry Lips","RC",null,null,null,null,null,null,null,null,null,16.14,1613.93,0,0]
[78284,100,"Salvia gregii","Joy","RC",null,null,null,null,null,null,null,null,null,19.93,1992.6,0,0]
[77315,100,"Salvia gregii","Lipstick","RC",null,null,null,null,null,null,null,null,null,13.04,1304.0999999999999,0,0]
[77320,100,"Salvia gregii","Royal Bumble","RC",null,null,null,null,null,null,null,null,null,13.04,1304.0999999999999,0,0]
[77383,100,"Salvia gregii","Viola's Darling","RC","✓",null,null,null,null,null,null,null,null,13.04,1304.0999999999999,0,0]
[77360,100,"Salvia hybrida","African Sky","RC","✓",null,null,null,null,null,null,null,null,13.04,1304.0999999999999,0,0]
[78250,84,"Salvia hybrida","Amistad","RC","✓",null,null,null,null,null,null,null,null,17.559999999999999,1474.85,0,0]
[78260,84,"Salvia hybrida","Black and Blue","RC",null,null,null,null,null,null,null,null,null,13.08,1098.93,0,0]
[78297,100,"Salvia hybrida","Carina","RC","✓",null,null,null,null,null,null,null,null,19.93,1992.6,0,0]
[78261,84,"Salvia hybrida","Ember's Wish","RC",null,null,null,null,null,null,null,null,null,16.87,1417.01,0,0]
[77309,100,"Salvia hybrida","Feathers Flamingo","RC",null,null,null,null,null,null,null,null,null,16.48,1648.35,0,0]
[77310,100,"Salvia hybrida","Feathers Peacock","RC",null,null,null,null,null,null,null,null,null,16.48,1648.35,0,0]
[78281,84,"Salvia hybrida","Love & Wishes","RC",null,null,null,null,null,null,null,null,null,16.87,1417.01,0,0]
[78227,84,"Salvia hybrida","Pink Amistad","RC",null,null,null,null,null,null,null,null,null,17.899999999999999,1503.77,0,0]
[78262,84,"Salvia hybrida","Wendy's Wish","RC",null,null,null,null,null,null,null,null,null,16.87,1417.01,0,0]
[77358,100,"Salvia jurisicii","Rosea","RC",null,null,null,null,null,null,null,null,null,13.04,1304.0999999999999,0,0]
[77334,100,"Salvia jurisicii","Salvia jurisicii","RC",null,null,null,null,null,null,null,null,null,13.04,1304.0999999999999,0,0]
[77335,100,"Salvia licioides","Salvia licioides","RC",null,null,null,null,null,null,null,null,null,13.04,1304.0999999999999,0,0]
[77313,100,"Salvia microphyllla","Gletsjer","RC",null,null,null,null,null,null,null,null,null,13.04,1304.0999999999999,0,0]
[78282,100,"Salvia microphyllla","Hot Lips","RC","✓",null,null,null,null,null,null,null,null,13.04,1304.0999999999999,0,0]
[77377,100,"Salvia nemerosa","Noble Knight","RC","✓",null,null,null,null,null,null,null,null,15.8,1579.5,0,0]
[77379,100,"Salvia nemerosa","Noche ","RC","✓",null,null,null,null,null,null,null,null,15.8,1579.5,0,0]
[77371,100,"Salvia nemerosa","Pink Rianne","RC","✓",null,null,null,null,null,null,null,null,15.11,1510.65,0,0]
[77380,100,"Salvia nemerosa","Royal Magenta ","RC","✓",null,null,null,null,null,null,null,null,15.8,1579.5,0,0]
[77311,100,"Salvia nemorosa","Alba (Adrian)","RC",null,null,null,null,null,null,null,null,null,12.7,1269.68,0,0]
[78203,100,"Salvia nemorosa","Amethyst","RC",null,null,null,null,null,null,null,null,null,12.7,1269.68,0,0]
[78240,100,"Salvia nemorosa","Blauhügel","RC",null,null,null,null,null,null,null,null,null,12.7,1269.68,0,0]
[78285,100,"Salvia nemorosa","Blue Bouquetta","RC",null,null,null,null,null,null,null,null,null,16.48,1648.35,0,0]
[78236,100,"Salvia nemorosa","Blue Field","RC","✓",null,null,null,null,null,null,null,null,16.48,1648.35,0,0]
[78204,100,"Salvia nemorosa","Caradonna","RC","✓",null,null,null,null,null,null,null,null,12.01,1200.83,0,0]
[78298,100,"Salvia nemorosa","Caradonna Pink","RC",null,null,null,null,null,null,null,null,null,15.45,1545.08,0,0]
[78207,100,"Salvia nemorosa","Mainacht","RC","✓",null,null,null,null,null,null,null,null,12.01,1200.83,0,0]
[78216,100,"Salvia nemorosa","Marcus™","RC","✓",null,null,null,null,null,null,null,null,19.93,1992.6,0,0]
[77336,100,"Salvia nemorosa","Midnight Purple","RC","✓",null,null,null,null,null,null,null,null,14.07,1407.38,0,0]
[78299,100,"Salvia nemorosa","Midnight Rose","RC","✓",null,null,null,null,null,null,null,null,14.07,1407.38,0,0]
[78238,100,"Salvia nemorosa","Night Field","RC","✓",null,null,null,null,null,null,null,null,16.48,1648.35,{"$f":"P1550*(G1550+H1550+I1550+J1550+K1550+L1550+M1550+N1550)","v":0},{"$f":"Q1550*1.12","v":0}]
[78210,100,"Salvia nemorosa","Ostfriesland","RC","✓",null,null,null,null,null,null,null,null,11.32,1131.98,0,0]
[77317,100,"Salvia nemorosa","Pink Beauty","RC",null,null,null,null,null,null,null,null,null,12.7,1269.68,0,0]
[77363,100,"Salvia nemorosa","Pink Paradise","RC","✓",null,null,null,null,null,null,null,null,16.14,1613.93,0,0]
[78287,100,"Salvia nemorosa","Rianne","RC","✓",null,null,null,null,null,null,null,null,15.11,1510.65,0,0]
[77321,100,"Salvia nemorosa","Rügen","RC",null,null,null,null,null,null,null,null,null,12.7,1269.68,0,0]
[78272,100,"Salvia nemorosa","Salute Deep Blue Imp.","RC","✓",null,null,null,null,null,null,null,null,13.04,1304.0999999999999,0,0]
[78273,100,"Salvia nemorosa","Salute Ice Blue","RC","✓",null,null,null,null,null,null,null,null,13.04,1304.0999999999999,0,0]
[78288,100,"Salvia nemorosa","Salute Light Pink","RC","✓",null,null,null,null,null,null,null,null,13.04,1304.0999999999999,0,0]
[78275,100,"Salvia nemorosa","Salute White","RC","✓",null,null,null,null,null,null,null,null,13.04,1304.0999999999999,0,0]
[77323,100,"Salvia nemorosa","Sensation Deep Blue Imp.","RC",null,null,null,null,null,null,null,null,null,14.07,1407.38,0,0]
[77324,100,"Salvia nemorosa","Sensation Deep Rose Imp.","RC",null,null,null,null,null,null,null,null,null,14.07,1407.38,0,0]
[77325,100,"Salvia nemorosa","Sensation White","RC",null,null,null,null,null,null,null,null,null,14.07,1407.38,0,0]
[78234,100,"Salvia nemorosa","Schneehügel","RC",null,null,null,null,null,null,null,null,null,12.01,1200.83,0,0]
[78213,100,"Salvia nemorosa","Schwellenburg","RC",null,null,null,null,null,null,null,null,null,13.73,1372.95,0,0]
[78214,100,"Salvia nemorosa","Viola Klose","RC",null,null,null,null,null,null,null,null,null,13.73,1372.95,0,0]
[78246,100,"Salvia officinalis","Berggarten","RC","✓",null,null,null,null,null,null,null,null,12.01,1200.83,0,0]
[78206,100,"Salvia officinalis","Icterina","RC",null,null,null,null,null,null,null,null,null,12.01,1200.83,0,0]
[77319,100,"Salvia officinalis","Purpurascens","RC","✓",null,null,null,null,null,null,null,null,12.01,1200.83,0,0]
[77327,100,"Salvia officinalis","Tricolor","RC",null,null,null,null,null,null,null,null,null,12.01,1200.83,0,0]
[77322,100,"Salvia uliginosa","Salvia uliginosa","RC","✓",null,null,null,null,null,null,null,null,13.04,1304.0999999999999,0,0]
[78211,100,"Salvia verticillata ","Purple Rain","RC",null,null,null,null,null,null,null,null,null,13.04,1304.0999999999999,0,0]
[77316,100,"Salvia x jamensis","Nachtvlinder","RC",null,null,null,null,null,null,null,null,null,13.04,1304.0999999999999,0,0]
[70506,100,"Santolina chamaecyparissus","Santolina chamaecyparissus","RC",null,null,null,null,null,null,null,null,null,11.32,1131.98,0,0]
[70506,102,"Santolina chamaecyparissus","Santolina chamaecyparissus","RC",null,null,null,null,null,null,null,null,null,12.31,1255.9100000000001,0,0]
[70505,100,"Santolina rosmarinifolia","Lemon Fizz","RC","✓",null,null,null,null,null,null,null,null,11.32,1131.98,0,0]
[70505,102,"Santolina rosmarinifolia","Lemon Fizz","RC","✓",null,null,null,null,null,null,null,null,12.31,1255.9100000000001,0,0]
[70508,100,"Santolina rosmarinifolia","Santolina rosmarinifolia","RC",null,null,null,null,null,null,null,null,null,11.32,1131.98,0,0]
[70302,100,"Saponaria hybrida","Bressingham Pink","RC","✓",null,null,null,null,null,null,null,null,13.04,1304.0999999999999,0,0]
[70304,100,"Saponaria sicula intermedia","Saponaria sicula intermedia","RC","✓",null,null,null,null,null,null,null,null,12.7,1269.68,0,0]
[75255,100,"Saxifraga arendsii","Alpino Early™ Carnival","RC","✓",null,null,null,null,null,null,null,null,13.39,1338.53,0,0]
[71848,100,"Saxifraga arendsii","Alpino Early™ Lime","RC","✓",null,null,null,null,null,null,null,null,13.39,1338.53,0,0]
[75256,100,"Saxifraga arendsii","Alpino Early™ Magic Salmon","RC","✓",null,null,null,null,null,null,null,null,13.39,1338.53,0,0]
[71849,100,"Saxifraga arendsii","Alpino Early™ Picotee","RC","✓",null,null,null,null,null,null,null,null,13.39,1338.53,0,0]
[71828,100,"Saxifraga arendsii","Alpino Early™ Rose","RC","✓",null,null,null,null,null,null,null,null,13.39,1338.53,0,0]
[71801,100,"Saxifraga arendsii","Scenic Red","RC","✓",null,null,null,null,null,null,null,null,13.04,1304.0999999999999,0,0]
[71802,100,"Saxifraga arendsii","Scenic White","RC","✓",null,null,null,null,null,null,null,null,13.04,1304.0999999999999,0,0]
[75081,100,"Scabiosa columbaria","Barocca","RC",null,null,null,null,null,null,null,null,null,13.39,1338.53,0,0]
[71536,100,"Scabiosa columbaria","Butterfly Blue","RC","✓",null,null,null,null,null,null,null,null,13.39,1338.53,0,0]
[71524,100,"Scabiosa columbaria","Flutter™ Deep Blue","RC",null,null,null,null,null,null,null,null,null,19.93,1992.6,0,0]
[71525,100,"Scabiosa columbaria","Flutter™ Pure White","RC",null,null,null,null,null,null,null,null,null,19.93,1992.6,0,0]
[71545,100,"Scabiosa columbaria","Flutter™ Rose Pink","RC","✓",null,null,null,null,null,null,null,null,19.93,1992.6,0,0]
[74801,100,"Scabiosa columbaria","Mariposa Blue","RC","✓",null,null,null,null,null,null,null,null,19.239999999999998,1923.75,0,0]
[74801,40,"Scabiosa columbaria","Mariposa Blue","RC","✓",null,null,null,null,null,null,null,null,31.91,1276.56,0,0]
[71537,100,"Scabiosa columbaria","Pink Mist","RC",null,null,null,null,null,null,null,null,null,13.39,1338.53,0,0]
[76717,100,"Scutellaria indica","Scutellaria indica var. parvifolia","RC",null,null,null,null,null,null,null,null,null,13.04,1304.0999999999999,0,0]
[76730,100,"Scutellaria scordifolia","Scutellaria scordifolia","RC",null,null,null,null,null,null,null,null,null,13.04,1304.0999999999999,0,0]
[70461,100,"Sedum acre","Yellow Queen","RC",null,null,null,null,null,null,null,null,null,11.32,1131.98,0,0]
[75268,100,"Sedum album","Athoum","RC",null,null,null,null,null,null,null,null,null,11.32,1131.98,0,0]
[71871,100,"Sedum album","Coral Carpet","RC",null,null,null,null,null,null,null,null,null,11.32,1131.98,0,0]
[71888,100,"Sedum cauticola","Lidakense","RC","✓",null,null,null,null,null,null,null,null,11.32,1131.98,0,0]
[75270,100,"Sedum cauticola","Red Canyon","RC","✓",null,null,null,null,null,null,null,null,12.35,1235.25,0,0]
[75269,100,"Sedum cauticola","Sedum cauticola","RC",null,null,null,null,null,null,null,null,null,11.32,1131.98,0,0]
[70452,100,"Sedum cyaneum","Rosenteppich","RC",null,null,null,null,null,null,null,null,null,11.32,1131.98,0,0]
[75260,100,"Sedum dasyphyllum","Sedum dasyphyllum","RC",null,null,null,null,null,null,null,null,null,11.32,1131.98,0,0]
[75283,100,"Sedum ewersii","Rose","RC","✓",null,null,null,null,null,null,null,null,12.35,1235.25,0,0]
[75259,100,"Sedum floriferum","Sedum floriferum","RC",null,null,null,null,null,null,null,null,null,11.32,1131.98,0,0]
[75285,100,"Sedum floriferum","Weihenstephaner Gold","RC",null,null,null,null,null,null,null,null,null,11.32,1131.98,0,0]
[70438,100,"Sedum forsterianum","Elegans","RC",null,null,null,null,null,null,null,null,null,12.35,1235.25,0,0]
[71852,100,"Sedum hakonense","Chocolate Ball","RC",null,null,null,null,null,null,null,null,null,12.35,1235.25,0,0]
[70492,100,"Sedum hybrida","Abby Dore","RC","✓",null,null,null,null,null,null,null,null,12.35,1235.25,0,0]
[70462,100,"Sedum hybrida","Bertram Anderson","RC",null,null,null,null,null,null,null,null,null,11.32,1131.98,0,0]
[79763,100,"Sedum hybrida","Carl","RC",null,null,null,null,null,null,null,null,null,12.35,1235.25,0,0]
[70466,84,"Sedum hybrida","Globe Pink","TC","✓",null,null,null,null,null,null,null,null,32.700000000000003,2747.2,0,0]
[70465,84,"Sedum hybrida","Globe Purple","TC","✓",null,null,null,null,null,null,null,null,32.700000000000003,2747.2,{"$f":"P1614*(G1614+H1614+I1614+J1614+K1614+L1614+M1614+N1614)","v":0},{"$f":"Q1614*1.12","v":0}]
[70464,84,"Sedum hybrida","Globe Yellow","TC","✓",null,null,null,null,null,null,null,null,32.700000000000003,2747.2,0,0]
[70421,100,"Sedum hybrida","Herbstfreude","RC","✓",null,null,null,null,null,null,null,null,12.35,1235.25,0,0]
[70443,100,"Sedum hybrida","Jose Aubergine","RC",null,null,null,null,null,null,null,null,null,16.829999999999998,1682.78,0,0]
[70444,100,"Sedum hybrida","Karfunkelstein","RC","✓",null,null,null,null,null,null,null,null,13.04,1304.0999999999999,0,0]
[75277,100,"Sedum hybrida","Little Miss Sunshine","RC","✓",null,null,null,null,null,null,null,null,15.8,1579.5,0,0]
[70431,100,"Sedum hybrida","Purple Emperor","RC","✓",null,null,null,null,null,null,null,null,12.35,1235.25,0,0]
[70451,100,"Sedum hybrida","Red Sparkle","RC",null,null,null,null,null,null,null,null,null,12.35,1235.25,0,0]
[71889,100,"Sedum hybrida","SunSparkler® Dazzlebery","RC","✓",null,null,null,null,null,null,null,null,18.89,1889.33,0,0]
[71889,102,"Sedum hybrida","SunSparkler® Dazzlebery","RC","✓",null,null,null,null,null,null,null,null,18.510000000000002,1887.95,0,0]
[71891,100,"Sedum hybrida","SunSparkler® Firecracker","RC","✓",null,null,null,null,null,null,null,null,18.89,1889.33,0,0]
[71891,102,"Sedum hybrida","SunSparkler® Firecracker","RC","✓",null,null,null,null,null,null,null,null,18.510000000000002,1887.95,0,0]
[75232,100,"Sedum hybrida","SunSparkler® Cherry Tart","RC","✓",null,null,null,null,null,null,null,null,18.89,1889.33,0,0]
[75232,102,"Sedum hybrida","SunSparkler® Cherry Tart","RC","✓",null,null,null,null,null,null,null,null,18.510000000000002,1887.95,0,0]
[71890,100,"Sedum hybrida","SunSparkler® Lime Zinger","RC","✓",null,null,null,null,null,null,null,null,18.89,1889.33,0,0]
[71890,102,"Sedum hybrida","SunSparkler® Lime Zinger","RC","✓",null,null,null,null,null,null,null,null,18.510000000000002,1887.95,0,0]
[75252,100,"Sedum hybrida","SunSparkler® Plum Dazzled","RC","✓",null,null,null,null,null,null,null,null,18.89,1889.33,0,0]
[75252,102,"Sedum hybrida","SunSparkler® Plum Dazzled","RC","✓",null,null,null,null,null,null,null,null,18.510000000000002,1887.95,0,0]
[75262,100,"Sedum hybrida","SunSparkler® Wildfire","RC","✓",null,null,null,null,null,null,null,null,18.89,1889.33,0,0]
[75262,102,"Sedum hybrida","SunSparkler® Wildfire","RC","✓",null,null,null,null,null,null,null,null,18.510000000000002,1887.95,0,0]
[70459,100,"Sedum hybrida","Vera Jameson","RC",null,null,null,null,null,null,null,null,null,12.35,1235.25,0,0]
[70442,100,"Sedum kamtschaticum","Immergrün","RC",null,null,null,null,null,null,null,null,null,11.32,1131.98,0,0]
[70475,100,"Sedum kamtschaticum","The Edge","RC","✓",null,null,null,null,null,null,null,null,13.04,1304.0999999999999,0,0]
[70457,100,"Sedum kamtschaticum","Variegatum","RC","✓",null,null,null,null,null,null,null,null,11.32,1131.98,0,0]
[70448,100,"Sedum makinoi","Ogon","RC",null,null,null,null,null,null,null,null,null,12.01,1200.83,0,0]
[70454,100,"Sedum makinoi","Sedum makinoi","RC",null,null,null,null,null,null,null,null,null,11.32,1131.98,0,0]
[70460,100,"Sedum reflexum","Yellow Cushion","RC",null,null,null,null,null,null,null,null,null,12.7,1269.68,0,0]
[70427,100,"Sedum rupestre","Angelina","RC",null,null,null,null,null,null,null,null,null,11.32,1131.98,0,0]
[71847,100,"Sedum rupestre","Blue Spruce","RC","✓",null,null,null,null,null,null,null,null,11.32,1131.98,0,0]
[71843,100,"Sedum rupestre","Gold","RC","✓",null,null,null,null,null,null,null,null,11.32,1131.98,0,0]
[79766,100,"Sedum sieboldii","Mediovariegatum","RC",null,null,null,null,null,null,null,null,null,11.32,1131.98,0,0]
[71845,100,"Sedum sieboldii","Sedum sieboldii","RC",null,null,null,null,null,null,null,null,null,11.32,1131.98,0,0]
[75244,100,"Sedum spathulifolium","Cape Blanco","RC","✓",null,null,null,null,null,null,null,null,12.35,1235.25,0,0]
[71887,100,"Sedum spathulifolium","Purpureum","RC","✓",null,null,null,null,null,null,null,null,12.35,1235.25,0,0]
[79754,100,"Sedum spectabile","Brillant","RC",null,null,null,null,null,null,null,null,null,12.35,1235.25,0,0]
[79784,100,"Sedum spectabile","Hot Stuff","RC","✓",null,null,null,null,null,null,null,null,22.68,2268,0,0]
[79762,100,"Sedum spectabile","Stardust","RC",null,null,null,null,null,null,null,null,null,12.35,1235.25,0,0]
[70439,100,"Sedum spurium","Album","RC",null,null,null,null,null,null,null,null,null,11.32,1131.98,0,0]
[70437,100,"Sedum spurium","Deep Rose","RC","✓",null,null,null,null,null,null,null,null,14.76,1476.23,0,0]
[70429,100,"Sedum spurium","Dragons Blood","RC","✓",null,null,null,null,null,null,null,null,11.32,1131.98,0,0]
[75251,100,"Sedum spurium","Fuldaglut","RC","✓",null,null,null,null,null,null,null,null,11.32,1131.98,0,0]
[75257,100,"Sedum spurium","Purpureum","RC",null,null,null,null,null,null,null,null,null,11.32,1131.98,0,0]
[70449,100,"Sedum spurium","Purpurteppich","RC",null,null,null,null,null,null,null,null,null,11.32,1131.98,0,0]
[75230,100,"Sedum spurium","Schorbuser Blut","RC",null,null,null,null,null,null,null,null,null,11.32,1131.98,0,0]
[70456,100,"Sedum spurium","Splendens","RC",null,null,null,null,null,null,null,null,null,11.32,1131.98,0,0]
[79735,100,"Sedum spurium","Tricolor","RC","✓",null,null,null,null,null,null,null,null,11.32,1131.98,0,0]
[75275,100,"Sedum spurium","Variegatum","RC",null,null,null,null,null,null,null,null,null,11.32,1131.98,0,0]
[75276,100,"Sedum takesimense","Atlantis","RC","✓",null,null,null,null,null,null,null,null,20.61,2061.4499999999998,0,0]
[79783,100,"Sedum telephium","Cloud Walker","RC","✓",null,null,null,null,null,null,null,null,22.34,2233.58,0,0]
[71886,100,"Sedum telephium","Dark Magic","RC","✓",null,null,null,null,null,null,null,null,22.68,2268,0,0]
[79765,100,"Sedum telephium","Matrona","RC","✓",null,null,null,null,null,null,null,null,12.35,1235.25,0,0]
[79785,100,"Sedum telephium","Mr. Goodbud","RC","✓",null,null,null,null,null,null,null,null,20.61,2061.4499999999998,0,0]
[75245,100,"Sedum telephium","Oriental Dancer","TC/RC","✓",null,null,null,null,null,null,null,null,23.71,2371.2800000000002,0,0]
[71837,100,"Sedum telephium","Thunderhead","RC","✓",null,null,null,null,null,null,null,null,22.68,2268,0,0]
[71859,100,"Sedum telephium","Touchdown Teak","RC","✓",null,null,null,null,null,null,null,null,22.68,2268,0,0]
[74587,84,"Sempervivum hybrida","Aquila","RC","✓",null,null,null,null,null,null,null,null,12.05,1012.18,0,0]
[76115,40,"Sempervivum hybrida","BigSam™ Black Cherry","RC",null,null,null,null,null,null,null,null,null,18.489999999999998,739.53,0,0]
[74546,40,"Sempervivum hybrida","BigSam™ Chrome Green","RC","✓",null,null,null,null,null,null,null,null,18.489999999999998,739.53,0,0]
[74551,40,"Sempervivum hybrida","BigSam™ Pink Pomelo","RC","✓",null,null,null,null,null,null,null,null,18.489999999999998,739.53,0,0]
[74543,40,"Sempervivum hybrida","BigSam™ Purple Quartz","RC","✓",null,null,null,null,null,null,null,null,18.489999999999998,739.53,0,0]
[76113,40,"Sempervivum hybrida","BigSam™ Ruby Star Imp.","RC",null,null,null,null,null,null,null,null,null,18.489999999999998,739.53,0,0]
[76114,40,"Sempervivum hybrida","BigSam™ Red Mellow","RC",null,null,null,null,null,null,null,null,null,18.489999999999998,739.53,0,0]
[79509,84,"Sempervivum hybrida","Cassiopea","RC","✓",null,null,null,null,null,null,null,null,12.05,1012.18,0,0]
[74545,84,"Sempervivum hybrida","Dr. Fritz Köhlein","RC","✓",null,null,null,null,null,null,null,null,12.05,1012.18,0,0]
[79581,84,"Sempervivum hybrida","Draco","RC","✓",null,null,null,null,null,null,null,null,12.05,1012.18,{"$f":"P1678*(G1678+H1678+I1678+J1678+K1678+L1678+M1678+N1678)","v":0},{"$f":"Q1678*1.12","v":0}]
[76117,84,"Sempervivum hybrida","Lacerta","RC",null,null,null,null,null,null,null,null,null,12.05,1012.18,0,0]
[74582,84,"Sempervivum hybrida","Leo","RC","✓",null,null,null,null,null,null,null,null,13.77,1156.76,0,0]
[74541,84,"Sempervivum hybrida","Reinhard","RC","✓",null,null,null,null,null,null,null,null,12.05,1012.18,0,0]
[74544,84,"Sempervivum hybrida","Rosa Mädchen","RC","✓",null,null,null,null,null,null,null,null,12.05,1012.18,0,0]
[76118,84,"Sempervivum hybrida","Scorpius","RC",null,null,null,null,null,null,null,null,null,12.05,1012.18,0,0]
[79506,84,"Sempervivum hybrida","Sirius","RC","✓",null,null,null,null,null,null,null,null,12.05,1012.18,0,0]
[79582,84,"Sempervivum hybrida","Taurus","RC","✓",null,null,null,null,null,null,null,null,12.05,1012.18,0,0]
[74624,84,"Senecio candidans","Angel Wings","TC",null,null,null,null,null,null,null,null,null,41.31,3470.12,0,0]
[79568,84,"Schizachyrium scoparium","Blue Heaven","TC","✓",null,null,null,null,null,null,null,null,35.11,2949.62,0,0]
[79194,84,"Schizachyrium scoparium","Smoke Signal","TC","✓",null,null,null,null,null,null,null,null,35.11,2949.62,0,0]
[79145,84,"Schizachyrium scoparium","Standing Ovation","TC","✓",null,null,null,null,null,null,null,null,38.56,3238.79,0,0]
[79195,84,"Schizachyrium scoparium","Twilight Zone","TC","✓",null,null,null,null,null,null,null,null,35.11,2949.62,0,0]
[71557,100,"Silene × robotii","Rollies Favorite","RC",null,null,null,null,null,null,null,null,null,18.55,1854.9,0,0]
[71608,84,"Silene viscaria (Lychnis)","Cherry Bubbles","TC",null,null,null,null,null,null,null,null,null,33.39,2805.03,0,0]
[74019,100,"Solidago flexicaulis","Flexi Belle","RC",null,null,null,null,null,null,null,null,null,13.04,1304.0999999999999,0,0]
[73984,100,"Solidago hybrida","Golden Dwarf","RC",null,null,null,null,null,null,null,null,null,11.66,1166.4000000000001,0,0]
[73986,100,"Solidago hybrida","Strahlenkrone","RC",null,null,null,null,null,null,null,null,null,11.66,1166.4000000000001,0,0]
[74020,100,"Solidago sphacelata","Golden Fleece","RC",null,null,null,null,null,null,null,null,null,13.04,1304.0999999999999,0,0]
[74308,84,"Sorghastrum nutans","JS Active Vulcano","RC","✓",null,null,null,null,null,null,null,null,22.38,1879.69,0,0]
[74502,100,"Stachys byzantina","Helene Von Stein (Big Ears)","RC",null,null,null,null,null,null,null,null,null,13.39,1338.53,0,0]
[79560,100,"Stachys byzantina","Silver Carpet","RC","✓",null,null,null,null,null,null,null,null,13.39,1338.53,0,0]
[74527,100,"Stachys monnieri","Hummelo","RC","✓",null,null,null,null,null,null,null,null,13.39,1338.53,0,0]
[75976,100,"Stachys officinalis","Pink Cotton Candy","RC","✓",null,null,null,null,null,null,null,null,13.39,1338.53,0,0]
[75978,100,"Stachys officinalis","Summer Sweets","RC","✓",null,null,null,null,null,null,null,null,18.55,1854.9,0,0]
[74503,100,"Stachys officinalis","Ukkie","RC",null,null,null,null,null,null,null,null,null,13.39,1338.53,0,0]
[75432,28,"Stokesia laevis","Mel's Blue","TC","✓",null,null,null,null,null,null,null,null,59.56,1667.63,0,0]
[75432,84,"Stokesia laevis","Mel's Blue","TC","✓",null,null,null,null,null,null,null,null,36.49,3065.28,0,0]
[76725,100,"Symphytum grandiflorum","Symphytum grandiflorum","RC","✓",null,null,null,null,null,null,null,null,13.39,1338.53,0,0]
[76726,100,"Symphytum grandiflorum","Wisley Blue","RC",null,null,null,null,null,null,null,null,null,13.39,1338.53,0,0]
[79602,100,"Teucrium chamaedrys","Album","RC",null,null,null,null,null,null,null,null,null,12.35,1235.25,0,0]
[73285,100,"Teucrium chamaedrys","Nanum","RC","✓",null,null,null,null,null,null,null,null,12.35,1235.25,0,0]
[79833,100,"Teucrium lucidrys","Teucrium lucidrys","RC","✓",null,null,null,null,null,null,null,null,12.35,1235.25,0,0]
[79453,84,"Thalictrum aquilegiifolium","Black Stockings","TC","✓",null,null,null,null,null,null,null,null,34.43,2891.78,0,0]
[74487,84,"Thalictrum aquilegiifolium","Nimbus™ Pink","TC","✓",null,null,null,null,null,null,null,null,34.43,2891.78,0,0]
[74488,84,"Thalictrum aquilegiifolium","Nimbus™ White","TC","✓",null,null,null,null,null,null,null,null,34.43,2891.78,0,0]
[77456,100,"Thymus capitatus","Thymus capitatus","RC","✓",null,null,null,null,null,null,null,null,10.98,1097.55,0,0]
[71454,100,"Thymus longicaulis","Thymus longicaulis","RC",null,null,null,null,null,null,null,null,null,10.98,1097.55,0,0]
[71449,100,"Thymus praecox","Albiflorus","RC",null,null,null,null,null,null,null,null,null,11.66,1166.4000000000001,0,0]
[79202,100,"Thymus praecox","Coccineus","RC","✓",null,null,null,null,null,null,null,null,11.66,1166.4000000000001,0,0]
[71450,100,"Thymus praecox","Highland Cream","RC",null,null,null,null,null,null,null,null,null,11.66,1166.4000000000001,0,0]
[71451,100,"Thymus praecox","Minor","RC",null,null,null,null,null,null,null,null,null,11.66,1166.4000000000001,0,0]
[77480,100,"Thymus praecox","Pink Chintz","RC",null,null,null,null,null,null,null,null,null,11.66,1166.4000000000001,0,0]
[79666,100,"Thymus praecox","Pseudolanuginosus","RC","✓",null,null,null,null,null,null,null,null,11.66,1166.4000000000001,0,0]
[71452,100,"Thymus praecox","Red Carpet","RC",null,null,null,null,null,null,null,null,null,11.66,1166.4000000000001,0,0]
[71448,100,"Thymus pulegioides","Foxley","RC",null,null,null,null,null,null,null,null,null,10.98,1097.55,0,0]
[79268,100,"Thymus serphyllum","Elfin","RC",null,null,null,null,null,null,null,null,null,11.66,1166.4000000000001,0,0]
[79644,100,"Thymus vulgaris","Compactus","RC",null,null,null,null,null,null,null,null,null,10.98,1097.55,0,0]
[77468,100,"Thymus vulgaris","Silver Posie","RC",null,null,null,null,null,null,null,null,null,10.98,1097.55,0,0]
[77467,100,"Thymus vulgaris","Thymus vulgaris","RC",null,null,null,null,null,null,null,null,null,10.98,1097.55,0,0]
[71455,100,"Thymus x citriodorus","Aureus","RC","✓",null,null,null,null,null,null,null,null,10.98,1097.55,0,0]
[79645,100,"Thymus x citriodorus","Doone Valley","RC","✓",null,null,null,null,null,null,null,null,10.98,1097.55,0,0]
[71447,100,"Thymus x citriodorus","E.B. Anderson","RC","✓",null,null,null,null,null,null,null,null,10.98,1097.55,0,0]
[74222,100,"Thymus x citriodorus","Gold Lemon","RC","✓",null,null,null,null,null,null,null,null,10.98,1097.55,0,0]
[71453,100,"Thymus x citriodorus","Sambesi","RC",null,null,null,null,null,null,null,null,null,10.98,1097.55,0,0]
[74223,100,"Thymus x citriodorus","Silver Queen","RC",null,null,null,null,null,null,null,null,null,10.98,1097.55,0,0]
[79834,100,"Tiarella cordifolia","Tiarella cordifolia","RC",null,null,null,null,null,null,null,null,null,13.04,1304.0999999999999,0,0]
[79149,84,"Tiarella hybrida","Angel Wings","TC","✓",null,null,null,null,null,null,null,null,31.67,2660.45,0,0]
[79873,84,"Tiarella hybrida","Iron Butterfly","TC",null,null,null,null,null,null,null,null,null,34.08,2862.86,0,0]
[79876,84,"Tiarella hybrida","Pink Skyrocket","TC","✓",null,null,null,null,null,null,null,null,34.08,2862.86,0,0]
[79878,84,"Tiarella hybrida","Spring Symphony","TC",null,null,null,null,null,null,null,null,null,34.08,2862.86,0,0]
[79879,84,"Tiarella hybrida","Sugar and Spice","TC","✓",null,null,null,null,null,null,null,null,34.08,2862.86,0,0]
[74199,252,"Trio","Flora Trio Candy","TC/RC",null,null,null,null,null,null,null,null,null,28.34,7142.58,0,0]
[74200,252,"Trio","Flora Trio Ruby","TC/RC",null,null,null,null,null,null,null,null,null,26.62,6708.83,0,0]
[74198,252,"Trio","Flora Trio Sunrise","TC/RC",null,null,null,null,null,null,null,null,null,26.97,6795.58,{"$f":"P1742*(G1742+H1742+I1742+J1742+K1742+L1742+M1742+N1742)","v":0},{"$f":"Q1742*1.12","v":0}]
[77494,84,"Uncinia rubra","Everflame","TC","✓",null,null,null,null,null,null,null,null,37.520000000000003,3152.03,0,0]
[74513,84,"Verbascum hybrida","Dark Eyes","TC/RC","✓",null,null,null,null,null,null,null,null,23.41,1966.44,0,0]
[74530,84,"Verbascum hybrida","Honey Dijon","TC/RC","✓",null,null,null,null,null,null,null,null,23.41,1966.44,0,0]
[74514,84,"Verbascum hybrida","Plum Smokey","TC/RC","✓",null,null,null,null,null,null,null,null,23.41,1966.44,0,0]
[79573,84,"Verbascum hybrida","Rosie","TC/RC","✓",null,null,null,null,null,null,null,null,21,1764.02,0,0]
[79555,84,"Verbascum hybrida","Sugar Plum","TC/RC","✓",null,null,null,null,null,null,null,null,23.41,1966.44,0,0]
[71457,100,"Verbena bonariensis","Lollipop","RC","✓",null,null,null,null,null,null,null,null,15.8,1579.5,0,0]
[74459,100,"Verbena bonariensis","Verbena bonariensis","RC",null,null,null,null,null,null,null,null,null,11.32,1131.98,0,0]
[74474,100,"Verbena canadiensis","Homestead Purple","RC",null,null,null,null,null,null,null,null,null,12.35,1235.25,0,0]
[71489,100,"Verbena hybrida","Seabrook's Lavender","RC","✓",null,null,null,null,null,null,null,null,15.8,1579.5,0,0]
[71456,100,"Verbena officinalis","Bampton","RC",null,null,null,null,null,null,null,null,null,12.35,1235.25,0,0]
[71458,100,"Verbena peruviana","Verbena peruviana","RC",null,null,null,null,null,null,null,null,null,12.35,1235.25,0,0]
[74887,100,"Veronica kemulariae","Veronica kemulariae","RC",null,null,null,null,null,null,null,null,null,14.07,1407.38,0,0]
[79951,100,"Veronica longifolia","Eveline","RC","✓",null,null,null,null,null,null,null,null,15.8,1579.5,0,0]
[71564,100,"Veronica longifolia","First Glory","TC/RC","✓",null,null,null,null,null,null,null,null,22.68,2268,0,0]
[71564,40,"Veronica longifolia","First Glory","TC/RC","✓",null,null,null,null,null,null,null,null,33.64,1345.41,0,0]
[75046,100,"Veronica longifolia","First Choice","TC/RC","✓",null,null,null,null,null,null,null,null,22.68,2268,0,0]
[75046,40,"Veronica longifolia","First Choice","TC/RC","✓",null,null,null,null,null,null,null,null,33.64,1345.41,0,0]
[71562,100,"Veronica longifolia","First Lady","TC/RC","✓",null,null,null,null,null,null,null,null,22.68,2268,0,0]
[71562,40,"Veronica longifolia","First Lady","TC/RC","✓",null,null,null,null,null,null,null,null,33.64,1345.41,0,0]
[71563,100,"Veronica longifolia","First Love","TC/RC","✓",null,null,null,null,null,null,null,null,22.68,2268,0,0]
[71563,40,"Veronica longifolia","First Love","TC/RC","✓",null,null,null,null,null,null,null,null,33.64,1345.41,0,0]
[74813,100,"Veronica longifolia","First Match","TC/RC","✓",null,null,null,null,null,null,null,null,22.68,2268,0,0]
[74813,40,"Veronica longifolia","First Match","TC/RC","✓",null,null,null,null,null,null,null,null,33.64,1345.41,0,0]
[75140,100,"Veronica longifolia","White Jolanda","RC",null,null,null,null,null,null,null,null,null,13.04,1304.0999999999999,0,0]
[79398,100,"Veronica repens","Sunshine","RC",null,null,null,null,null,null,null,null,null,13.04,1304.0999999999999,0,0]
[75156,100,"Veronica spicata","Anne","RC","✓",null,null,null,null,null,null,null,null,12.35,1235.25,0,0]
[74847,100,"Veronica spicata","Bubblegum Candles","RC","✓",null,null,null,null,null,null,null,null,20.96,2095.88,0,0]
[79360,100,"Veronica spicata","Rotfuchs","RC","✓",null,null,null,null,null,null,null,null,12.35,1235.25,0,0]
[79397,100,"Veronica spicata","Royal Candles","RC","✓",null,null,null,null,null,null,null,null,20.96,2095.88,0,0]
[75047,100,"Veronica spicata","Snow Candles","RC","✓",null,null,null,null,null,null,null,null,20.96,2095.88,0,0]
[79361,100,"Veronica spicata","Ulster Blue Dwarf","RC","✓",null,null,null,null,null,null,null,null,12.35,1235.25,0,0]
[71460,100,"Vinca major","Variegata","RC",null,null,null,null,null,null,null,null,null,10.63,1063.1300000000001,0,0]
[79919,100,"Vinca major","Vinca major","RC",null,null,null,null,null,null,null,null,null,10.63,1063.1300000000001,0,0]
[71551,100,"Vinca minor","Alba","RC",null,null,null,null,null,null,null,null,null,10.63,1063.1300000000001,0,0]
[71552,100,"Vinca minor","Atropurpurea","RC",null,null,null,null,null,null,null,null,null,10.63,1063.1300000000001,0,0]
[71553,100,"Vinca minor","Bowles Cunningham","RC",null,null,null,null,null,null,null,null,null,12.01,1200.83,0,0]
[71459,100,"Vinca minor","Elisa","RC",null,null,null,null,null,null,null,null,null,12.01,1200.83,0,0]
[79905,100,"Vinca minor","Gertrude Jekyll","RC",null,null,null,null,null,null,null,null,null,10.63,1063.1300000000001,0,0]
[79399,100,"Vinca minor","Illumination","RC","✓",null,null,null,null,null,null,null,null,12.01,1200.83,0,0]
[79561,100,"Vinca minor","Ralph Shugert","RC","✓",null,null,null,null,null,null,null,null,12.35,1235.25,0,0]
[79952,100,"Vinca minor","Vinca minor","RC",null,null,null,null,null,null,null,null,null,10.63,1063.1300000000001,0,0]
[75456,100,"Viola cornuta","Boughton Blue","RC",null,null,null,null,null,null,null,null,null,12.35,1235.25,0,0]
[75460,100,"Viola cornuta","Martin","RC",null,null,null,null,null,null,null,null,null,12.35,1235.25,0,0]
[75461,100,"Viola cornuta","Molly Sanderson","RC",null,null,null,null,null,null,null,null,null,12.35,1235.25,0,0]
[75459,100,"Viola sororia","Albiflora","RC",null,null,null,null,null,null,null,null,null,10.98,1097.55,0,0]
[75457,100,"Viola sororia","Dark Freckles","RC","✓",null,null,null,null,null,null,null,null,10.98,1097.55,0,0]
[75494,100,"Viola sororia","Red Cloud","RC","✓",null,null,null,null,null,null,null,null,10.98,1097.55,0,0]
[79523,100,"Waldsteinia ternata","Waldsteinia ternata","RC","✓",null,null,null,null,null,null,null,null,12.35,1235.25,0,0]
[74489,28,"Yucca filamentosa","Bright Edge","TC",null,null,null,null,null,null,null,null,null,70.23,1966.44,0,0]
[79455,28,"Yucca filamentosa","Color Guard","TC","✓",null,null,null,null,null,null,null,null,70.23,1966.44,0,0]
[75442,28,"Yucca flaccida","Ivory Towers","TC",null,null,null,null,null,null,null,null,null,70.23,1966.44,0,0]
[75408,28,"Yucca gloriosa","Bright Star","TC",null,null,null,null,null,null,null,null,null,70.23,1966.44,0,0]
[75433,28,"Yucca gloriosa","Variegata","TC",null,null,null,null,null,null,null,null,null,70.23,1966.44,0,0]
[79454,28,"Yucca rostrata","Sapphire Skies","TC",null,null,null,null,null,null,null,null,null,70.23,1966.44,0,0]